Body Name,Body,Date,Department,Beneficiary,Summary of Purpose (SeRCOP),Amount,Merchant Code,Transaction Number
Sandwell Metropolitan Borough Council,http://www.sandwell.gov.uk/info/200202/performance_and_spending/3233/government_procurement_cards,04-Jul-19,Housing & Communities,PREMIER INN,Neighbourhoods,166.67,Operational Services,1920Jul_PC00001
Sandwell Metropolitan Borough Council,http://www.sandwell.gov.uk/info/200202/performance_and_spending/3233/government_procurement_cards,04-Jul-19,Regeneration & Growth,ARGOS OLDBURY,Regeneration And The Economy,-5.83,Printing Stationery&Gen Office,1920Jul_PC00002
Sandwell Metropolitan Borough Council,http://www.sandwell.gov.uk/info/200202/performance_and_spending/3233/government_procurement_cards,04-Jul-19,Adult Social Care Health and Wellbeing - Total,WWW.ARGOS.CO.UK,Total Adult Social Care,333.27,Materials & Consumables,1920Jul_PC00003
Sandwell Metropolitan Borough Council,http://www.sandwell.gov.uk/info/200202/performance_and_spending/3233/government_procurement_cards,04-Jul-19,Adult Social Care Health and Wellbeing - Total,WWW.ARGOS.CO.UK,Total Adult Social Care,225.79,Materials & Consumables,1920Jul_PC00004
Sandwell Metropolitan Borough Council,http://www.sandwell.gov.uk/info/200202/performance_and_spending/3233/government_procurement_cards,04-Jul-19,Housing & Communities,POST OFFICE COUNTER,Neighbourhoods,1.88,Printing Stationery&Gen Office,1920Jul_PC00005
Sandwell Metropolitan Borough Council,http://www.sandwell.gov.uk/info/200202/performance_and_spending/3233/government_procurement_cards,04-Jul-19,Adult Social Care Health and Wellbeing - Total,PAYPAL  BLACKPIGEON,Total Adult Social Care,3.72,Printing Stationery&Gen Office,1920Jul_PC00006
Sandwell Metropolitan Borough Council,http://www.sandwell.gov.uk/info/200202/performance_and_spending/3233/government_procurement_cards,04-Jul-19,Adult Social Care Health and Wellbeing - Total,WWW.ARGOS.CO.UK,Total Adult Social Care,559.93,Materials & Consumables,1920Jul_PC00007
Sandwell Metropolitan Borough Council,http://www.sandwell.gov.uk/info/200202/performance_and_spending/3233/government_procurement_cards,04-Jul-19,Adult Social Care Health and Wellbeing - Total,WWW.ARGOS.CO.UK,Total Adult Social Care,273.27,Materials & Consumables,1920Jul_PC00008
Sandwell Metropolitan Borough Council,http://www.sandwell.gov.uk/info/200202/performance_and_spending/3233/government_procurement_cards,04-Jul-19,Total Housing Revenue Account,CAPITA GAS,Total Housing Revenue Account,10,Professional Services External,1920Jul_PC00009
Sandwell Metropolitan Borough Council,http://www.sandwell.gov.uk/info/200202/performance_and_spending/3233/government_procurement_cards,04-Jul-19,Childrens Services,VISTAPRINT,Childrens Services,14.29,Printing Stationery&Gen Office,1920Jul_PC00010
Sandwell Metropolitan Borough Council,http://www.sandwell.gov.uk/info/200202/performance_and_spending/3233/government_procurement_cards,04-Jul-19,Housing & Communities,AMZNMktplace,Neighbourhoods,22.25,Printing Stationery&Gen Office,1920Jul_PC00011
Sandwell Metropolitan Borough Council,http://www.sandwell.gov.uk/info/200202/performance_and_spending/3233/government_procurement_cards,04-Jul-19,Total Housing Revenue Account,Amazon.co.uk M660D2264,Total Housing Revenue Account,25.29,ICT,1920Jul_PC00012
Sandwell Metropolitan Borough Council,http://www.sandwell.gov.uk/info/200202/performance_and_spending/3233/government_procurement_cards,04-Jul-19,Total Housing Revenue Account,THE KEY SAFE COMPANY,Total Housing Revenue Account,65.58,Fixtures & Fittings,1920Jul_PC00013
Sandwell Metropolitan Borough Council,http://www.sandwell.gov.uk/info/200202/performance_and_spending/3233/government_procurement_cards,04-Jul-19,Childrens Services,OFFICE DEPOT UK,Childrens Services,30.28,Printing Stationery&Gen Office,1920Jul_PC00014
Sandwell Metropolitan Borough Council,http://www.sandwell.gov.uk/info/200202/performance_and_spending/3233/government_procurement_cards,04-Jul-19,Total Housing Revenue Account,Trainline.com,Total Housing Revenue Account,32.31,Public Transport,1920Jul_PC00015
Sandwell Metropolitan Borough Council,http://www.sandwell.gov.uk/info/200202/performance_and_spending/3233/government_procurement_cards,04-Jul-19,Total Housing Revenue Account,Trainline.com,Total Housing Revenue Account,34.34,Public Transport,1920Jul_PC00016
Sandwell Metropolitan Borough Council,http://www.sandwell.gov.uk/info/200202/performance_and_spending/3233/government_procurement_cards,04-Jul-19,Total Housing Revenue Account,POST OFFICE COUNTER,Total Housing Revenue Account,352.6,"Postages, Carriage & Courier Services",1920Jul_PC00017
Sandwell Metropolitan Borough Council,http://www.sandwell.gov.uk/info/200202/performance_and_spending/3233/government_procurement_cards,04-Jul-19,Adult Social Care Health and Wellbeing - Total,SANDWELL & DUD SST,Public Health,3.9,Public Transport,1920Jul_PC00018
Sandwell Metropolitan Borough Council,http://www.sandwell.gov.uk/info/200202/performance_and_spending/3233/government_procurement_cards,04-Jul-19,Childrens Services,AMZNMktplace,Childrens Services,7.99,Printing Stationery&Gen Office,1920Jul_PC00019
Sandwell Metropolitan Borough Council,http://www.sandwell.gov.uk/info/200202/performance_and_spending/3233/government_procurement_cards,04-Jul-19,Regeneration & Growth,OFFICE DEPOT UK,Regeneration And The Economy,55.6,Printing Stationery&Gen Office,1920Jul_PC00020
Sandwell Metropolitan Borough Council,http://www.sandwell.gov.uk/info/200202/performance_and_spending/3233/government_procurement_cards,04-Jul-19,Regeneration & Growth,AMZNMktplace,Regeneration And The Economy,97.01,Printing Stationery&Gen Office,1920Jul_PC00021
Sandwell Metropolitan Borough Council,http://www.sandwell.gov.uk/info/200202/performance_and_spending/3233/government_procurement_cards,04-Jul-19,Childrens Services,Amazon.co.uk M63ZX6K14,Childrens Services,26.43,Printing Stationery&Gen Office,1920Jul_PC00022
Sandwell Metropolitan Borough Council,http://www.sandwell.gov.uk/info/200202/performance_and_spending/3233/government_procurement_cards,05-Jul-19,Resources (Inc SIU),SurveyMonkey,Assistant Chief Executive (Excl SIU),-283.33,Subscriptions,1920Jul_PC00023
Sandwell Metropolitan Borough Council,http://www.sandwell.gov.uk/info/200202/performance_and_spending/3233/government_procurement_cards,05-Jul-19,Adult Social Care Health and Wellbeing - Total,PAYPAL  UNIVERSALSI,Total Adult Social Care,16.5,Printing Stationery&Gen Office,1920Jul_PC00024
Sandwell Metropolitan Borough Council,http://www.sandwell.gov.uk/info/200202/performance_and_spending/3233/government_procurement_cards,05-Jul-19,Housing & Communities,Amazon.co.uk M66U98KM4,Neighbourhoods,49.99,Equipment & Furniture,1920Jul_PC00025
Sandwell Metropolitan Borough Council,http://www.sandwell.gov.uk/info/200202/performance_and_spending/3233/government_procurement_cards,05-Jul-19,Housing & Communities,Amazon.co.uk M61XH4KD4,Neighbourhoods,49.99,Printing Stationery&Gen Office,1920Jul_PC00026
Sandwell Metropolitan Borough Council,http://www.sandwell.gov.uk/info/200202/performance_and_spending/3233/government_procurement_cards,05-Jul-19,Housing & Communities,Amazon.co.uk M62T42KU4,Neighbourhoods,49.99,Printing Stationery&Gen Office,1920Jul_PC00027
Sandwell Metropolitan Borough Council,http://www.sandwell.gov.uk/info/200202/performance_and_spending/3233/government_procurement_cards,05-Jul-19,Housing & Communities,Amazon.co.uk M63FM8KZ4,Neighbourhoods,49.99,Equipment & Furniture,1920Jul_PC00028
Sandwell Metropolitan Borough Council,http://www.sandwell.gov.uk/info/200202/performance_and_spending/3233/government_procurement_cards,05-Jul-19,Housing & Communities,TRAVELODGE,Neighbourhoods,212.5,Operational Services,1920Jul_PC00029
Sandwell Metropolitan Borough Council,http://www.sandwell.gov.uk/info/200202/performance_and_spending/3233/government_procurement_cards,05-Jul-19,Housing & Communities,TRAVELODGE,Neighbourhoods,362.5,Operational Services,1920Jul_PC00030
Sandwell Metropolitan Borough Council,http://www.sandwell.gov.uk/info/200202/performance_and_spending/3233/government_procurement_cards,05-Jul-19,Total Housing Revenue Account,THE CLEANING WAREHOUSE,Total Housing Revenue Account,32.5,Equipment & Furniture,1920Jul_PC00031
Sandwell Metropolitan Borough Council,http://www.sandwell.gov.uk/info/200202/performance_and_spending/3233/government_procurement_cards,05-Jul-19,Housing & Communities,WWW.VICARAGELODGE.COM,Neighbourhoods,166.67,Operational Services,1920Jul_PC00032
Sandwell Metropolitan Borough Council,http://www.sandwell.gov.uk/info/200202/performance_and_spending/3233/government_procurement_cards,05-Jul-19,Housing & Communities,WWW.VICARAGELODGE.COM,Neighbourhoods,166.67,Operational Services,1920Jul_PC00033
Sandwell Metropolitan Borough Council,http://www.sandwell.gov.uk/info/200202/performance_and_spending/3233/government_procurement_cards,05-Jul-19,Regeneration & Growth,B & Q 1276,Regeneration And The Economy,596.5,Materials & Consumables,1920Jul_PC00034
Sandwell Metropolitan Borough Council,http://www.sandwell.gov.uk/info/200202/performance_and_spending/3233/government_procurement_cards,05-Jul-19,Housing & Communities,TRAVELODGE,Neighbourhoods,158.33,Operational Services,1920Jul_PC00035
Sandwell Metropolitan Borough Council,http://www.sandwell.gov.uk/info/200202/performance_and_spending/3233/government_procurement_cards,05-Jul-19,Housing & Communities,SANDWELL M.B.C.,Neighbourhoods,-105,Licences,1920Jul_PC00036
Sandwell Metropolitan Borough Council,http://www.sandwell.gov.uk/info/200202/performance_and_spending/3233/government_procurement_cards,05-Jul-19,Childrens Services,OFFICE DEPOT UK,Childrens Services,76.95,Equipment & Furniture,1920Jul_PC00037
Sandwell Metropolitan Borough Council,http://www.sandwell.gov.uk/info/200202/performance_and_spending/3233/government_procurement_cards,05-Jul-19,Individual School Budgets With Inclusion,SMETHWICK RS T/O,Individual School Budgets With Inclusion,39.5,Public Transport,1920Jul_PC00038
Sandwell Metropolitan Borough Council,http://www.sandwell.gov.uk/info/200202/performance_and_spending/3233/government_procurement_cards,05-Jul-19,Adult Social Care Health and Wellbeing - Total,OFFICE DEPOT UK,Total Adult Social Care,6.33,Ind. Emp Exp-Emp. Welfare,1920Jul_PC00039
Sandwell Metropolitan Borough Council,http://www.sandwell.gov.uk/info/200202/performance_and_spending/3233/government_procurement_cards,05-Jul-19,Housing & Communities,SANDWELL M.B.C.,Neighbourhoods,21,Civic Events,1920Jul_PC00040
Sandwell Metropolitan Borough Council,http://www.sandwell.gov.uk/info/200202/performance_and_spending/3233/government_procurement_cards,05-Jul-19,Resources (Inc SIU),POST OFFICE COUNTER,Assistant Chief Executive (Excl SIU),75,Advertising & Publicity,1920Jul_PC00041
Sandwell Metropolitan Borough Council,http://www.sandwell.gov.uk/info/200202/performance_and_spending/3233/government_procurement_cards,05-Jul-19,Individual School Budgets With Inclusion,SAINSBURYS LOC4471,Individual School Budgets With Inclusion,4,Catering Provisions,1920Jul_PC00042
Sandwell Metropolitan Borough Council,http://www.sandwell.gov.uk/info/200202/performance_and_spending/3233/government_procurement_cards,05-Jul-19,Resources (Inc SIU),POST OFFICE COUNTER,Assistant Chief Executive (Excl SIU),5.43,Advertising & Publicity,1920Jul_PC00043
Sandwell Metropolitan Borough Council,http://www.sandwell.gov.uk/info/200202/performance_and_spending/3233/government_procurement_cards,05-Jul-19,Housing & Communities,SANDWELL M.B.C.,Neighbourhoods,21,Licences,1920Jul_PC00044
Sandwell Metropolitan Borough Council,http://www.sandwell.gov.uk/info/200202/performance_and_spending/3233/government_procurement_cards,05-Jul-19,Total Housing Revenue Account,OFFICE DEPOT UK,Total Housing Revenue Account,53.91,Printing Stationery&Gen Office,1920Jul_PC00045
Sandwell Metropolitan Borough Council,http://www.sandwell.gov.uk/info/200202/performance_and_spending/3233/government_procurement_cards,05-Jul-19,Resources (Inc SIU),Amazon.co.uk M679U67L4,Assistant Chief Executive (Excl SIU),117.38,Materials & Consumables,1920Jul_PC00046
Sandwell Metropolitan Borough Council,http://www.sandwell.gov.uk/info/200202/performance_and_spending/3233/government_procurement_cards,08-Jul-19,Childrens Services Capital,SOUTH STAFFS WATER PLC,Childrens Services Capital,3395.04,Water Services,1920Jul_PC00047
Sandwell Metropolitan Borough Council,http://www.sandwell.gov.uk/info/200202/performance_and_spending/3233/government_procurement_cards,08-Jul-19,Housing & Communities,PREMIER INN,Neighbourhoods,439.17,Operational Services,1920Jul_PC00048
Sandwell Metropolitan Borough Council,http://www.sandwell.gov.uk/info/200202/performance_and_spending/3233/government_procurement_cards,08-Jul-19,Total Housing Revenue Account,IKEA LTD 142 BIRMINGHA,Total Housing Revenue Account,87.5,Equipment & Furniture,1920Jul_PC00049
Sandwell Metropolitan Borough Council,http://www.sandwell.gov.uk/info/200202/performance_and_spending/3233/government_procurement_cards,08-Jul-19,Housing & Communities,AMZNMKTPLACE AMAZON.CO,Neighbourhoods,29.98,Equipment & Furniture,1920Jul_PC00050
Sandwell Metropolitan Borough Council,http://www.sandwell.gov.uk/info/200202/performance_and_spending/3233/government_procurement_cards,08-Jul-19,Housing & Communities,WWW.VICARAGELODGE.COM,Neighbourhoods,875,Operational Services,1920Jul_PC00051
Sandwell Metropolitan Borough Council,http://www.sandwell.gov.uk/info/200202/performance_and_spending/3233/government_procurement_cards,08-Jul-19,Resources (Inc SIU),AMZNMktplace,Assistant Chief Executive (Excl SIU),4.26,ICT,1920Jul_PC00052
Sandwell Metropolitan Borough Council,http://www.sandwell.gov.uk/info/200202/performance_and_spending/3233/government_procurement_cards,08-Jul-19,Resources (Inc SIU),AMZNMktplace,Assistant Chief Executive (Excl SIU),4.27,ICT,1920Jul_PC00053
Sandwell Metropolitan Borough Council,http://www.sandwell.gov.uk/info/200202/performance_and_spending/3233/government_procurement_cards,08-Jul-19,Housing & Communities,WWW.VICARAGELODGE.COM,Neighbourhoods,375,Operational Services,1920Jul_PC00054
Sandwell Metropolitan Borough Council,http://www.sandwell.gov.uk/info/200202/performance_and_spending/3233/government_procurement_cards,08-Jul-19,Housing & Communities,BESPOKE FOLK,Neighbourhoods,81.67,Materials & Consumables,1920Jul_PC00055
Sandwell Metropolitan Borough Council,http://www.sandwell.gov.uk/info/200202/performance_and_spending/3233/government_procurement_cards,08-Jul-19,Housing & Communities,AMZNMktplace,Neighbourhoods,13.32,Equipment & Furniture,1920Jul_PC00056
Sandwell Metropolitan Borough Council,http://www.sandwell.gov.uk/info/200202/performance_and_spending/3233/government_procurement_cards,08-Jul-19,Total Housing Revenue Account,PREMIER INN,Total Housing Revenue Account,130.83,Conference Expenses,1920Jul_PC00057
Sandwell Metropolitan Borough Council,http://www.sandwell.gov.uk/info/200202/performance_and_spending/3233/government_procurement_cards,08-Jul-19,Childrens Services,VISTAPR VistaPrint.com,Childrens Services,14.29,Materials & Consumables,1920Jul_PC00058
Sandwell Metropolitan Borough Council,http://www.sandwell.gov.uk/info/200202/performance_and_spending/3233/government_procurement_cards,08-Jul-19,Housing & Communities,PREMIER INN,Neighbourhoods,518.33,Operational Services,1920Jul_PC00059
Sandwell Metropolitan Borough Council,http://www.sandwell.gov.uk/info/200202/performance_and_spending/3233/government_procurement_cards,08-Jul-19,Housing & Communities,PAYPAL  KIERANMOLE7,Neighbourhoods,100,R& M - Building Maint&Imp.,1920Jul_PC00060
Sandwell Metropolitan Borough Council,http://www.sandwell.gov.uk/info/200202/performance_and_spending/3233/government_procurement_cards,08-Jul-19,Total Housing Revenue Account,NRS-UK,Total Housing Revenue Account,649.75,Materials & Consumables,1920Jul_PC00061
Sandwell Metropolitan Borough Council,http://www.sandwell.gov.uk/info/200202/performance_and_spending/3233/government_procurement_cards,08-Jul-19,Housing & Communities,HIGHFIELD HOUSE HO,Neighbourhoods,466.67,Operational Services,1920Jul_PC00062
Sandwell Metropolitan Borough Council,http://www.sandwell.gov.uk/info/200202/performance_and_spending/3233/government_procurement_cards,08-Jul-19,Housing & Communities,HIGHFIELD HOUSE HO,Neighbourhoods,291.67,Operational Services,1920Jul_PC00063
Sandwell Metropolitan Borough Council,http://www.sandwell.gov.uk/info/200202/performance_and_spending/3233/government_procurement_cards,08-Jul-19,Housing & Communities,WWW.FILMBANK.CO.UK,Neighbourhoods,150,Subscriptions,1920Jul_PC00064
Sandwell Metropolitan Borough Council,http://www.sandwell.gov.uk/info/200202/performance_and_spending/3233/government_procurement_cards,08-Jul-19,Adult Social Care Health and Wellbeing - Total,AMZNMktplace,Total Adult Social Care,134.97,Equipment & Furniture,1920Jul_PC00065
Sandwell Metropolitan Borough Council,http://www.sandwell.gov.uk/info/200202/performance_and_spending/3233/government_procurement_cards,08-Jul-19,Housing & Communities,Amazon.co.uk M63W23904,Neighbourhoods,16.27,Fixtures & Fittings,1920Jul_PC00066
Sandwell Metropolitan Borough Council,http://www.sandwell.gov.uk/info/200202/performance_and_spending/3233/government_procurement_cards,08-Jul-19,Resources (Inc SIU),AMZNMktplace,Assistant Chief Executive (Excl SIU),2.32,ICT,1920Jul_PC00067
Sandwell Metropolitan Borough Council,http://www.sandwell.gov.uk/info/200202/performance_and_spending/3233/government_procurement_cards,08-Jul-19,Resources (Inc SIU),OFFICE DEPOT UK,Assistant Chief Executive (Excl SIU),131.75,Printing Stationery&Gen Office,1920Jul_PC00068
Sandwell Metropolitan Borough Council,http://www.sandwell.gov.uk/info/200202/performance_and_spending/3233/government_procurement_cards,08-Jul-19,Total Housing Revenue Account,OFFICE DEPOT UK,Total Housing Revenue Account,44.44,Printing Stationery&Gen Office,1920Jul_PC00069
Sandwell Metropolitan Borough Council,http://www.sandwell.gov.uk/info/200202/performance_and_spending/3233/government_procurement_cards,08-Jul-19,Housing & Communities,BESPOKE FOLK,Neighbourhoods,-34.75,Materials & Consumables,1920Jul_PC00070
Sandwell Metropolitan Borough Council,http://www.sandwell.gov.uk/info/200202/performance_and_spending/3233/government_procurement_cards,08-Jul-19,Housing & Communities,Amazon.co.uk M66FP9UV4,Neighbourhoods,81.37,Fixtures & Fittings,1920Jul_PC00071
Sandwell Metropolitan Borough Council,http://www.sandwell.gov.uk/info/200202/performance_and_spending/3233/government_procurement_cards,08-Jul-19,Resources (Inc SIU),AMZNMktplace,Assistant Chief Executive (Excl SIU),9.02,ICT,1920Jul_PC00072
Sandwell Metropolitan Borough Council,http://www.sandwell.gov.uk/info/200202/performance_and_spending/3233/government_procurement_cards,09-Jul-19,Adult Social Care Health and Wellbeing - Total,TVLICENSING.CO.UK,Total Adult Social Care,154.5,Licences,1920Jul_PC00073
Sandwell Metropolitan Borough Council,http://www.sandwell.gov.uk/info/200202/performance_and_spending/3233/government_procurement_cards,09-Jul-19,Housing & Communities,TRAVELODGE,Neighbourhoods,-246.67,Operational Services,1920Jul_PC00074
Sandwell Metropolitan Borough Council,http://www.sandwell.gov.uk/info/200202/performance_and_spending/3233/government_procurement_cards,09-Jul-19,Housing & Communities,WWW.VICARAGELODGE.COM,Neighbourhoods,-125,Operational Services,1920Jul_PC00075
Sandwell Metropolitan Borough Council,http://www.sandwell.gov.uk/info/200202/performance_and_spending/3233/government_procurement_cards,09-Jul-19,Total Housing Revenue Account,PRESTIGE RADIATORS LTD,Total Housing Revenue Account,92.59,Materials & Consumables,1920Jul_PC00076
Sandwell Metropolitan Borough Council,http://www.sandwell.gov.uk/info/200202/performance_and_spending/3233/government_procurement_cards,09-Jul-19,Housing & Communities,WWW.VICARAGELODGE.COM,Neighbourhoods,70.83,Operational Services,1920Jul_PC00077
Sandwell Metropolitan Borough Council,http://www.sandwell.gov.uk/info/200202/performance_and_spending/3233/government_procurement_cards,09-Jul-19,Housing & Communities,WWW.VICARAGELODGE.COM,Neighbourhoods,326.67,Operational Services,1920Jul_PC00078
Sandwell Metropolitan Borough Council,http://www.sandwell.gov.uk/info/200202/performance_and_spending/3233/government_procurement_cards,09-Jul-19,Adult Social Care Health and Wellbeing - Total,PAYPAL  BUYUR LTD,Total Adult Social Care,48.07,Equipment & Furniture,1920Jul_PC00079
Sandwell Metropolitan Borough Council,http://www.sandwell.gov.uk/info/200202/performance_and_spending/3233/government_procurement_cards,09-Jul-19,Housing & Communities,TRAVELODGE,Neighbourhoods,387.5,Operational Services,1920Jul_PC00080
Sandwell Metropolitan Borough Council,http://www.sandwell.gov.uk/info/200202/performance_and_spending/3233/government_procurement_cards,09-Jul-19,Housing & Communities,Amazon.co.uk M67XD0UO4,Neighbourhoods,7.29,Ind. Emp Exp-Emp. Welfare,1920Jul_PC00081
Sandwell Metropolitan Borough Council,http://www.sandwell.gov.uk/info/200202/performance_and_spending/3233/government_procurement_cards,09-Jul-19,Housing & Communities,AMZNMktplace,Neighbourhoods,31.65,R& M - Building Maint&Imp.,1920Jul_PC00082
Sandwell Metropolitan Borough Council,http://www.sandwell.gov.uk/info/200202/performance_and_spending/3233/government_procurement_cards,09-Jul-19,Childrens Services,ASDA STORES LTD 5865,Childrens Services,5.83,Materials & Consumables,1920Jul_PC00083
Sandwell Metropolitan Borough Council,http://www.sandwell.gov.uk/info/200202/performance_and_spending/3233/government_procurement_cards,09-Jul-19,Resources (Inc SIU),Amazon Prime M61D60U44,Assistant Chief Executive (Excl SIU),6.66,Subscriptions,1920Jul_PC00084
Sandwell Metropolitan Borough Council,http://www.sandwell.gov.uk/info/200202/performance_and_spending/3233/government_procurement_cards,09-Jul-19,Resources (Inc SIU),Amazon.co.uk M66F60I84,Assistant Chief Executive (Excl SIU),23.51,Printing Stationery&Gen Office,1920Jul_PC00085
Sandwell Metropolitan Borough Council,http://www.sandwell.gov.uk/info/200202/performance_and_spending/3233/government_procurement_cards,09-Jul-19,Resources (Inc SIU),AMZNMktplace,Assistant Chief Executive (Excl SIU),66.66,Printing Stationery&Gen Office,1920Jul_PC00086
Sandwell Metropolitan Borough Council,http://www.sandwell.gov.uk/info/200202/performance_and_spending/3233/government_procurement_cards,09-Jul-19,Housing & Communities,HIGHFIELD HOUSE HO,Neighbourhoods,525,Operational Services,1920Jul_PC00087
Sandwell Metropolitan Borough Council,http://www.sandwell.gov.uk/info/200202/performance_and_spending/3233/government_procurement_cards,09-Jul-19,Resources (Inc SIU),OFFICE DEPOT UK,Assistant Chief Executive (Excl SIU),23.99,Printing Stationery&Gen Office,1920Jul_PC00088
Sandwell Metropolitan Borough Council,http://www.sandwell.gov.uk/info/200202/performance_and_spending/3233/government_procurement_cards,09-Jul-19,Childrens Services,HOMEBASE LTD 085,Childrens Services,47.15,Materials & Consumables,1920Jul_PC00089
Sandwell Metropolitan Borough Council,http://www.sandwell.gov.uk/info/200202/performance_and_spending/3233/government_procurement_cards,09-Jul-19,Individual School Budgets With Inclusion,AMZNMktplace,Individual School Budgets With Inclusion,77.87,ICT,1920Jul_PC00090
Sandwell Metropolitan Borough Council,http://www.sandwell.gov.uk/info/200202/performance_and_spending/3233/government_procurement_cards,09-Jul-19,Individual School Budgets With Inclusion,AMZNMktplace,Individual School Budgets With Inclusion,19.96,ICT,1920Jul_PC00091
Sandwell Metropolitan Borough Council,http://www.sandwell.gov.uk/info/200202/performance_and_spending/3233/government_procurement_cards,09-Jul-19,Housing & Communities,Amazon Prime M65DD2U34,Neighbourhoods,6.66,"Postages, Carriage & Courier Services",1920Jul_PC00092
Sandwell Metropolitan Borough Council,http://www.sandwell.gov.uk/info/200202/performance_and_spending/3233/government_procurement_cards,09-Jul-19,Childrens Services,EB  OUTDOORSTOGETHER 2,Childrens Services,240,Ind. Emp Exp-Staff Dev&Training,1920Jul_PC00093
Sandwell Metropolitan Borough Council,http://www.sandwell.gov.uk/info/200202/performance_and_spending/3233/government_procurement_cards,09-Jul-19,Adult Social Care Health and Wellbeing - Total,HOME COMFORTS STON,Total Adult Social Care,825,Fixtures & Fittings,1920Jul_PC00094
Sandwell Metropolitan Borough Council,http://www.sandwell.gov.uk/info/200202/performance_and_spending/3233/government_procurement_cards,09-Jul-19,Adult Social Care Health and Wellbeing - Total,Trainline.com,Total Adult Social Care,70.11,Public Transport,1920Jul_PC00095
Sandwell Metropolitan Borough Council,http://www.sandwell.gov.uk/info/200202/performance_and_spending/3233/government_procurement_cards,09-Jul-19,Adult Social Care Health and Wellbeing - Total,Trainline.com,Total Adult Social Care,35.05,Public Transport,1920Jul_PC00096
Sandwell Metropolitan Borough Council,http://www.sandwell.gov.uk/info/200202/performance_and_spending/3233/government_procurement_cards,09-Jul-19,Individual School Budgets With Inclusion,Amazon.co.uk M667I9UR4,Individual School Budgets With Inclusion,81.67,ICT,1920Jul_PC00097
Sandwell Metropolitan Borough Council,http://www.sandwell.gov.uk/info/200202/performance_and_spending/3233/government_procurement_cards,09-Jul-19,Resources (Inc SIU),AMZ Blackpoolal,Assistant Chief Executive (Excl SIU),-46.88,Catering Equipment,1920Jul_PC00098
Sandwell Metropolitan Borough Council,http://www.sandwell.gov.uk/info/200202/performance_and_spending/3233/government_procurement_cards,09-Jul-19,Individual School Budgets With Inclusion,AMZNMktplace,Individual School Budgets With Inclusion,29.03,ICT,1920Jul_PC00099
Sandwell Metropolitan Borough Council,http://www.sandwell.gov.uk/info/200202/performance_and_spending/3233/government_procurement_cards,09-Jul-19,Individual School Budgets With Inclusion,AMZNMktplace,Individual School Budgets With Inclusion,341.43,ICT,1920Jul_PC00100
Sandwell Metropolitan Borough Council,http://www.sandwell.gov.uk/info/200202/performance_and_spending/3233/government_procurement_cards,10-Jul-19,Childrens Services,DIY HIRE /KIDDERMI,Childrens Services,90,Grounds Maint&Improvements,1920Jul_PC00101
Sandwell Metropolitan Borough Council,http://www.sandwell.gov.uk/info/200202/performance_and_spending/3233/government_procurement_cards,10-Jul-19,Total Housing Revenue Account,AMZNMKTPLACE AMAZON.CO,Total Housing Revenue Account,7.87,Materials & Consumables,1920Jul_PC00102
Sandwell Metropolitan Borough Council,http://www.sandwell.gov.uk/info/200202/performance_and_spending/3233/government_procurement_cards,10-Jul-19,Resources (Inc SIU),PREMIER INN,Assistant Chief Executive (Excl SIU),62.5,Civic Events,1920Jul_PC00103
Sandwell Metropolitan Borough Council,http://www.sandwell.gov.uk/info/200202/performance_and_spending/3233/government_procurement_cards,10-Jul-19,Total Housing Revenue Account,WWW.HOUSING.ORG.UK,Total Housing Revenue Account,1516.67,Conference Expenses,1920Jul_PC00104
Sandwell Metropolitan Borough Council,http://www.sandwell.gov.uk/info/200202/performance_and_spending/3233/government_procurement_cards,10-Jul-19,Childrens Services,BEEBYS BUBBLES,Childrens Services,120.83,Laundry,1920Jul_PC00105
Sandwell Metropolitan Borough Council,http://www.sandwell.gov.uk/info/200202/performance_and_spending/3233/government_procurement_cards,10-Jul-19,Childrens Services,MFG MOBILE 1,Childrens Services,65.02,Fuel,1920Jul_PC00106
Sandwell Metropolitan Borough Council,http://www.sandwell.gov.uk/info/200202/performance_and_spending/3233/government_procurement_cards,10-Jul-19,Housing & Communities,WWW.VICARAGELODGE.COM,Neighbourhoods,333.33,Operational Services,1920Jul_PC00107
Sandwell Metropolitan Borough Council,http://www.sandwell.gov.uk/info/200202/performance_and_spending/3233/government_procurement_cards,10-Jul-19,Adult Social Care Health and Wellbeing - Total,PAYPAL  MAZO UK,Total Adult Social Care,35,Equipment & Furniture,1920Jul_PC00108
Sandwell Metropolitan Borough Council,http://www.sandwell.gov.uk/info/200202/performance_and_spending/3233/government_procurement_cards,10-Jul-19,Adult Social Care Health and Wellbeing - Total,Amazon.co.uk M66I47U84,Total Adult Social Care,61.9,ICT,1920Jul_PC00109
Sandwell Metropolitan Borough Council,http://www.sandwell.gov.uk/info/200202/performance_and_spending/3233/government_procurement_cards,10-Jul-19,Regeneration & Growth,EB  BUILDING SAFER FUT,Regeneration And The Economy,12.5,Ind. Emp Exp-Staff Dev&Training,1920Jul_PC00110
Sandwell Metropolitan Borough Council,http://www.sandwell.gov.uk/info/200202/performance_and_spending/3233/government_procurement_cards,10-Jul-19,Total Housing Revenue Account,AMZNMKTPLACE AMAZON.CO,Total Housing Revenue Account,74.92,Materials & Consumables,1920Jul_PC00111
Sandwell Metropolitan Borough Council,http://www.sandwell.gov.uk/info/200202/performance_and_spending/3233/government_procurement_cards,10-Jul-19,Total Housing Revenue Account,AMZNMktplace,Total Housing Revenue Account,150.82,Materials & Consumables,1920Jul_PC00112
Sandwell Metropolitan Borough Council,http://www.sandwell.gov.uk/info/200202/performance_and_spending/3233/government_procurement_cards,10-Jul-19,Housing & Communities,WWW.VICARAGELODGE.COM,Neighbourhoods,186.67,Operational Services,1920Jul_PC00113
Sandwell Metropolitan Borough Council,http://www.sandwell.gov.uk/info/200202/performance_and_spending/3233/government_procurement_cards,10-Jul-19,Housing & Communities,WWW.VICARAGELODGE.COM,Neighbourhoods,375,Operational Services,1920Jul_PC00114
Sandwell Metropolitan Borough Council,http://www.sandwell.gov.uk/info/200202/performance_and_spending/3233/government_procurement_cards,10-Jul-19,Adult Social Care Health and Wellbeing - Total,HOMEBASE LTD 085,Total Adult Social Care,-12.5,Materials & Consumables,1920Jul_PC00115
Sandwell Metropolitan Borough Council,http://www.sandwell.gov.uk/info/200202/performance_and_spending/3233/government_procurement_cards,10-Jul-19,Individual School Budgets With Inclusion,OFFICE DEPOT UK,Individual School Budgets With Inclusion,12.7,Printing Stationery&Gen Office,1920Jul_PC00116
Sandwell Metropolitan Borough Council,http://www.sandwell.gov.uk/info/200202/performance_and_spending/3233/government_procurement_cards,10-Jul-19,Resources (Inc SIU),OFFICE DEPOT UK,Assistant Chief Executive (Excl SIU),35.1,Printing Stationery&Gen Office,1920Jul_PC00117
Sandwell Metropolitan Borough Council,http://www.sandwell.gov.uk/info/200202/performance_and_spending/3233/government_procurement_cards,10-Jul-19,Resources (Inc SIU),OFFICE DEPOT UK,Assistant Chief Executive (Excl SIU),5.52,Printing Stationery&Gen Office,1920Jul_PC00118
Sandwell Metropolitan Borough Council,http://www.sandwell.gov.uk/info/200202/performance_and_spending/3233/government_procurement_cards,10-Jul-19,Adult Social Care Health and Wellbeing - Total,AMZNMKTPLACE AMAZON.CO,Total Adult Social Care,135.92,Equipment & Furniture,1920Jul_PC00119
Sandwell Metropolitan Borough Council,http://www.sandwell.gov.uk/info/200202/performance_and_spending/3233/government_procurement_cards,10-Jul-19,Adult Social Care Health and Wellbeing - Total,AMZNMktplace,Total Adult Social Care,18.48,Printing Stationery&Gen Office,1920Jul_PC00120
Sandwell Metropolitan Borough Council,http://www.sandwell.gov.uk/info/200202/performance_and_spending/3233/government_procurement_cards,10-Jul-19,Childrens Services,POST OFFICE COUNTER,Childrens Services,70,"Postages, Carriage & Courier Services",1920Jul_PC00121
Sandwell Metropolitan Borough Council,http://www.sandwell.gov.uk/info/200202/performance_and_spending/3233/government_procurement_cards,10-Jul-19,Individual School Budgets With Inclusion,PIZZALAND,Individual School Budgets With Inclusion,14,Catering Provisions,1920Jul_PC00122
Sandwell Metropolitan Borough Council,http://www.sandwell.gov.uk/info/200202/performance_and_spending/3233/government_procurement_cards,10-Jul-19,Housing & Communities,AMZNMktplace,Neighbourhoods,17.48,Materials & Consumables,1920Jul_PC00123
Sandwell Metropolitan Borough Council,http://www.sandwell.gov.uk/info/200202/performance_and_spending/3233/government_procurement_cards,10-Jul-19,Individual School Budgets With Inclusion,AMZNMktplace,Individual School Budgets With Inclusion,23.99,Equipment & Furniture,1920Jul_PC00124
Sandwell Metropolitan Borough Council,http://www.sandwell.gov.uk/info/200202/performance_and_spending/3233/government_procurement_cards,10-Jul-19,Housing & Communities,AMZNMktplace,Neighbourhoods,29.48,Civic Events,1920Jul_PC00125
Sandwell Metropolitan Borough Council,http://www.sandwell.gov.uk/info/200202/performance_and_spending/3233/government_procurement_cards,10-Jul-19,Resources Capital,AMZNMktplace,Resources Capital,26.67,ICT,1920Jul_PC00126
Sandwell Metropolitan Borough Council,http://www.sandwell.gov.uk/info/200202/performance_and_spending/3233/government_procurement_cards,11-Jul-19,Adult Social Care Health and Wellbeing - Total,TVLICENSING.CO.UK,Total Adult Social Care,154.5,Licences&Test Fees,1920Jul_PC00127
Sandwell Metropolitan Borough Council,http://www.sandwell.gov.uk/info/200202/performance_and_spending/3233/government_procurement_cards,11-Jul-19,Adult Social Care Health and Wellbeing - Total,WWW.ARGOS.CO.UK,Total Adult Social Care,-6.62,Materials & Consumables,1920Jul_PC00128
Sandwell Metropolitan Borough Council,http://www.sandwell.gov.uk/info/200202/performance_and_spending/3233/government_procurement_cards,11-Jul-19,Total Housing Revenue Account,WWW.PMGLTD.CO.UK,Total Housing Revenue Account,-355.5,Conference Expenses,1920Jul_PC00129
Sandwell Metropolitan Borough Council,http://www.sandwell.gov.uk/info/200202/performance_and_spending/3233/government_procurement_cards,11-Jul-19,Housing & Communities,BIRMINGHAM CATERING HI,Neighbourhoods,73,Equipment & Furniture,1920Jul_PC00130
Sandwell Metropolitan Borough Council,http://www.sandwell.gov.uk/info/200202/performance_and_spending/3233/government_procurement_cards,11-Jul-19,Childrens Services,PALM E INTERNATIONAL L,Childrens Services,190.26,Materials & Consumables,1920Jul_PC00131
Sandwell Metropolitan Borough Council,http://www.sandwell.gov.uk/info/200202/performance_and_spending/3233/government_procurement_cards,11-Jul-19,Childrens Services,SNOWDONIA WATERSPO,Childrens Services,56.53,Materials & Consumables,1920Jul_PC00132
Sandwell Metropolitan Borough Council,http://www.sandwell.gov.uk/info/200202/performance_and_spending/3233/government_procurement_cards,11-Jul-19,Childrens Services,AMZNMktplace,Childrens Services,16.66,Equipment & Furniture,1920Jul_PC00133
Sandwell Metropolitan Borough Council,http://www.sandwell.gov.uk/info/200202/performance_and_spending/3233/government_procurement_cards,11-Jul-19,Childrens Services,WWW.CLIMBERS-SHOP.COM,Childrens Services,50,Materials & Consumables,1920Jul_PC00134
Sandwell Metropolitan Borough Council,http://www.sandwell.gov.uk/info/200202/performance_and_spending/3233/government_procurement_cards,11-Jul-19,Childrens Services,AMZNMktplace,Childrens Services,15.79,Materials & Consumables,1920Jul_PC00135
Sandwell Metropolitan Borough Council,http://www.sandwell.gov.uk/info/200202/performance_and_spending/3233/government_procurement_cards,11-Jul-19,Childrens Services,WWW.WEIGHTMANS.COM,Childrens Services,360,Professional Services External,1920Jul_PC00136
Sandwell Metropolitan Borough Council,http://www.sandwell.gov.uk/info/200202/performance_and_spending/3233/government_procurement_cards,11-Jul-19,Childrens Services,WWW.WEIGHTMANS.COM,Childrens Services,360,Professional Services External,1920Jul_PC00137
Sandwell Metropolitan Borough Council,http://www.sandwell.gov.uk/info/200202/performance_and_spending/3233/government_procurement_cards,11-Jul-19,Childrens Services,MENAI CLEANING SER,Childrens Services,264,Agency Staff,1920Jul_PC00138
Sandwell Metropolitan Borough Council,http://www.sandwell.gov.uk/info/200202/performance_and_spending/3233/government_procurement_cards,11-Jul-19,Childrens Services,AMZNMktplace,Childrens Services,23.32,ICT,1920Jul_PC00139
Sandwell Metropolitan Borough Council,http://www.sandwell.gov.uk/info/200202/performance_and_spending/3233/government_procurement_cards,11-Jul-19,Adult Social Care Health and Wellbeing - Total,PAYPAL  TOPBRANDSDI,Total Adult Social Care,4.73,Equipment & Furniture,1920Jul_PC00140
Sandwell Metropolitan Borough Council,http://www.sandwell.gov.uk/info/200202/performance_and_spending/3233/government_procurement_cards,11-Jul-19,Childrens Services,SNOWDONIA WATERSPO,Childrens Services,62.63,Materials & Consumables,1920Jul_PC00141
Sandwell Metropolitan Borough Council,http://www.sandwell.gov.uk/info/200202/performance_and_spending/3233/government_procurement_cards,11-Jul-19,Childrens Services,AAIA,Childrens Services,395,Conference Expenses,1920Jul_PC00142
Sandwell Metropolitan Borough Council,http://www.sandwell.gov.uk/info/200202/performance_and_spending/3233/government_procurement_cards,11-Jul-19,Housing & Communities,OFFICE DEPOT UK,Neighbourhoods,54.2,Printing Stationery&Gen Office,1920Jul_PC00143
Sandwell Metropolitan Borough Council,http://www.sandwell.gov.uk/info/200202/performance_and_spending/3233/government_procurement_cards,11-Jul-19,Adult Social Care Health and Wellbeing - Total,AMZNMKTPLACE AMAZON.CO,Total Adult Social Care,177.15,Printing Stationery&Gen Office,1920Jul_PC00144
Sandwell Metropolitan Borough Council,http://www.sandwell.gov.uk/info/200202/performance_and_spending/3233/government_procurement_cards,11-Jul-19,Adult Social Care Health and Wellbeing - Total,AMZNMktplace,Total Adult Social Care,11.48,Materials & Consumables,1920Jul_PC00145
Sandwell Metropolitan Borough Council,http://www.sandwell.gov.uk/info/200202/performance_and_spending/3233/government_procurement_cards,11-Jul-19,Adult Social Care Health and Wellbeing - Total,AMZNMktplace,Total Adult Social Care,27.36,Materials & Consumables,1920Jul_PC00146
Sandwell Metropolitan Borough Council,http://www.sandwell.gov.uk/info/200202/performance_and_spending/3233/government_procurement_cards,11-Jul-19,Housing & Communities,FUTURE GARMENTS LTD,Neighbourhoods,34.14,Protective Clothing&Uniforms,1920Jul_PC00147
Sandwell Metropolitan Borough Council,http://www.sandwell.gov.uk/info/200202/performance_and_spending/3233/government_procurement_cards,11-Jul-19,Adult Social Care Health and Wellbeing - Total,AMZNMktplace,Total Adult Social Care,18.37,Materials & Consumables,1920Jul_PC00148
Sandwell Metropolitan Borough Council,http://www.sandwell.gov.uk/info/200202/performance_and_spending/3233/government_procurement_cards,11-Jul-19,Resources (Inc SIU),Trainline.com,Assistant Chief Executive (Excl SIU),49.35,Public Transport,1920Jul_PC00149
Sandwell Metropolitan Borough Council,http://www.sandwell.gov.uk/info/200202/performance_and_spending/3233/government_procurement_cards,11-Jul-19,Resources (Inc SIU),AMZNMktplace,Assistant Chief Executive (Excl SIU),72.95,Printing Stationery&Gen Office,1920Jul_PC00150
Sandwell Metropolitan Borough Council,http://www.sandwell.gov.uk/info/200202/performance_and_spending/3233/government_procurement_cards,11-Jul-19,Total Housing Revenue Account,AMZNMktplace,Total Housing Revenue Account,18.39,Materials & Consumables,1920Jul_PC00151
Sandwell Metropolitan Borough Council,http://www.sandwell.gov.uk/info/200202/performance_and_spending/3233/government_procurement_cards,11-Jul-19,Regeneration & Growth,OFFICE DEPOT UK,Regeneration And The Economy,21.97,Equipment & Furniture,1920Jul_PC00152
Sandwell Metropolitan Borough Council,http://www.sandwell.gov.uk/info/200202/performance_and_spending/3233/government_procurement_cards,11-Jul-19,Housing & Communities,DVSA,Neighbourhoods,1025,Licences&Test Fees,1920Jul_PC00153
Sandwell Metropolitan Borough Council,http://www.sandwell.gov.uk/info/200202/performance_and_spending/3233/government_procurement_cards,11-Jul-19,Individual School Budgets With Inclusion,ASDA STORES LTD 5865,Individual School Budgets With Inclusion,8.22,Catering Provisions,1920Jul_PC00154
Sandwell Metropolitan Borough Council,http://www.sandwell.gov.uk/info/200202/performance_and_spending/3233/government_procurement_cards,11-Jul-19,Housing & Communities,AMZNMktplace,Neighbourhoods,10.02,Materials & Consumables,1920Jul_PC00155
Sandwell Metropolitan Borough Council,http://www.sandwell.gov.uk/info/200202/performance_and_spending/3233/government_procurement_cards,11-Jul-19,Housing & Communities,Amazon.co.uk M60XA5R84,Neighbourhoods,27.67,Materials & Consumables,1920Jul_PC00156
Sandwell Metropolitan Borough Council,http://www.sandwell.gov.uk/info/200202/performance_and_spending/3233/government_procurement_cards,11-Jul-19,Adult Social Care Health and Wellbeing - Total,APPLE.COM/UK,Total Adult Social Care,80.37,ICT,1920Jul_PC00157
Sandwell Metropolitan Borough Council,http://www.sandwell.gov.uk/info/200202/performance_and_spending/3233/government_procurement_cards,11-Jul-19,Adult Social Care Health and Wellbeing - Total,AMZNMktplace,Total Adult Social Care,8.9,Materials & Consumables,1920Jul_PC00158
Sandwell Metropolitan Borough Council,http://www.sandwell.gov.uk/info/200202/performance_and_spending/3233/government_procurement_cards,11-Jul-19,Resources (Inc SIU),AMZNMktplace,Assistant Chief Executive (Excl SIU),19.27,Printing Stationery&Gen Office,1920Jul_PC00159
Sandwell Metropolitan Borough Council,http://www.sandwell.gov.uk/info/200202/performance_and_spending/3233/government_procurement_cards,12-Jul-19,Total Housing Revenue Account,INTUMESCENT SYSTEM,Total Housing Revenue Account,267.5,Materials & Consumables,1920Jul_PC00160
Sandwell Metropolitan Borough Council,http://www.sandwell.gov.uk/info/200202/performance_and_spending/3233/government_procurement_cards,12-Jul-19,Total Housing Revenue Account,INTUMESCENT SYSTEM,Total Housing Revenue Account,13.28,Materials & Consumables,1920Jul_PC00161
Sandwell Metropolitan Borough Council,http://www.sandwell.gov.uk/info/200202/performance_and_spending/3233/government_procurement_cards,12-Jul-19,Housing & Communities,CUNNINHAM CASH REGISTE,Neighbourhoods,160,Materials & Consumables,1920Jul_PC00162
Sandwell Metropolitan Borough Council,http://www.sandwell.gov.uk/info/200202/performance_and_spending/3233/government_procurement_cards,12-Jul-19,Housing & Communities,AMZNMktplace,Neighbourhoods,4.99,Equipment & Furniture,1920Jul_PC00163
Sandwell Metropolitan Borough Council,http://www.sandwell.gov.uk/info/200202/performance_and_spending/3233/government_procurement_cards,12-Jul-19,Housing & Communities,AMZNMktplace,Neighbourhoods,4.99,Equipment & Furniture,1920Jul_PC00164
Sandwell Metropolitan Borough Council,http://www.sandwell.gov.uk/info/200202/performance_and_spending/3233/government_procurement_cards,12-Jul-19,Housing & Communities,SCREWFIX DIRECT,Neighbourhoods,13.32,R& M - Building Maint&Imp.,1920Jul_PC00165
Sandwell Metropolitan Borough Council,http://www.sandwell.gov.uk/info/200202/performance_and_spending/3233/government_procurement_cards,12-Jul-19,Total Housing Revenue Account,SIG,Total Housing Revenue Account,39.21,Materials & Consumables,1920Jul_PC00166
Sandwell Metropolitan Borough Council,http://www.sandwell.gov.uk/info/200202/performance_and_spending/3233/government_procurement_cards,12-Jul-19,Housing & Communities,SCREWFIX WEST BROMWICH,Neighbourhoods,1.91,R& M - Building Maint&Imp.,1920Jul_PC00167
Sandwell Metropolitan Borough Council,http://www.sandwell.gov.uk/info/200202/performance_and_spending/3233/government_procurement_cards,12-Jul-19,Housing & Communities,Amazon.co.uk M649X5YJ4,Neighbourhoods,8.75,Materials & Consumables,1920Jul_PC00168
Sandwell Metropolitan Borough Council,http://www.sandwell.gov.uk/info/200202/performance_and_spending/3233/government_procurement_cards,12-Jul-19,Housing & Communities,BESTWAY WHOLESALE,Neighbourhoods,16.25,Catering Provisions,1920Jul_PC00169
Sandwell Metropolitan Borough Council,http://www.sandwell.gov.uk/info/200202/performance_and_spending/3233/government_procurement_cards,12-Jul-19,Individual School Budgets With Inclusion,Amazon.co.uk M67TG7W24,Individual School Budgets With Inclusion,33.29,Printing Stationery&Gen Office,1920Jul_PC00170
Sandwell Metropolitan Borough Council,http://www.sandwell.gov.uk/info/200202/performance_and_spending/3233/government_procurement_cards,12-Jul-19,Housing & Communities,AMZN Mktp UK M62QT9RH4,Neighbourhoods,75.89,Equipment & Furniture,1920Jul_PC00171
Sandwell Metropolitan Borough Council,http://www.sandwell.gov.uk/info/200202/performance_and_spending/3233/government_procurement_cards,12-Jul-19,Housing & Communities,HIGHFIELD HOUSE HO,Neighbourhoods,933.33,Operational Services,1920Jul_PC00172
Sandwell Metropolitan Borough Council,http://www.sandwell.gov.uk/info/200202/performance_and_spending/3233/government_procurement_cards,12-Jul-19,Childrens Services,OFFICE DEPOT UK,Childrens Services,0.7,Printing Stationery&Gen Office,1920Jul_PC00173
Sandwell Metropolitan Borough Council,http://www.sandwell.gov.uk/info/200202/performance_and_spending/3233/government_procurement_cards,12-Jul-19,Childrens Services,AMZ Telephones Online,Childrens Services,-35,Materials & Consumables,1920Jul_PC00174
Sandwell Metropolitan Borough Council,http://www.sandwell.gov.uk/info/200202/performance_and_spending/3233/government_procurement_cards,12-Jul-19,Childrens Services,OFFICE DEPOT UK,Childrens Services,34.64,Printing Stationery&Gen Office,1920Jul_PC00175
Sandwell Metropolitan Borough Council,http://www.sandwell.gov.uk/info/200202/performance_and_spending/3233/government_procurement_cards,12-Jul-19,Individual School Budgets With Inclusion,ASDA STORES LTD 5865,Individual School Budgets With Inclusion,8.18,Catering Provisions,1920Jul_PC00176
Sandwell Metropolitan Borough Council,http://www.sandwell.gov.uk/info/200202/performance_and_spending/3233/government_procurement_cards,12-Jul-19,Total Housing Revenue Account,TRAVIS PERKINS,Total Housing Revenue Account,87.36,Materials & Consumables,1920Jul_PC00177
Sandwell Metropolitan Borough Council,http://www.sandwell.gov.uk/info/200202/performance_and_spending/3233/government_procurement_cards,12-Jul-19,Resources (Inc SIU),SUBWAY,Assistant Chief Executive (Excl SIU),80,Catering Provisions,1920Jul_PC00178
Sandwell Metropolitan Borough Council,http://www.sandwell.gov.uk/info/200202/performance_and_spending/3233/government_procurement_cards,12-Jul-19,Resources (Inc SIU),Virgin Trains,Assistant Chief Executive (Excl SIU),23.2,Public Transport,1920Jul_PC00179
Sandwell Metropolitan Borough Council,http://www.sandwell.gov.uk/info/200202/performance_and_spending/3233/government_procurement_cards,12-Jul-19,Housing & Communities,SAINSBURYS SACAT0558,Neighbourhoods,3.3,Catering Provisions,1920Jul_PC00180
Sandwell Metropolitan Borough Council,http://www.sandwell.gov.uk/info/200202/performance_and_spending/3233/government_procurement_cards,12-Jul-19,Childrens Services,B & Q 1276,Childrens Services,42,Fixtures & Fittings,1920Jul_PC00181
Sandwell Metropolitan Borough Council,http://www.sandwell.gov.uk/info/200202/performance_and_spending/3233/government_procurement_cards,12-Jul-19,Housing & Communities,ETSY.COM - FIREBOXCERA,Neighbourhoods,29.9,Materials & Consumables,1920Jul_PC00182
Sandwell Metropolitan Borough Council,http://www.sandwell.gov.uk/info/200202/performance_and_spending/3233/government_procurement_cards,12-Jul-19,Housing & Communities,IZ  Edge Coffee Ltd,Neighbourhoods,50,Catering Provisions,1920Jul_PC00183
Sandwell Metropolitan Borough Council,http://www.sandwell.gov.uk/info/200202/performance_and_spending/3233/government_procurement_cards,12-Jul-19,Resources (Inc SIU),OFFICE DEPOT UK,Assistant Chief Executive (Excl SIU),34.95,Printing Stationery&Gen Office,1920Jul_PC00184
Sandwell Metropolitan Borough Council,http://www.sandwell.gov.uk/info/200202/performance_and_spending/3233/government_procurement_cards,12-Jul-19,Individual School Budgets With Inclusion,AMZNMktplace,Individual School Budgets With Inclusion,20.88,Printing Stationery&Gen Office,1920Jul_PC00185
Sandwell Metropolitan Borough Council,http://www.sandwell.gov.uk/info/200202/performance_and_spending/3233/government_procurement_cards,15-Jul-19,Total Housing Revenue Account,INTUMESCENT SYSTEM,Total Housing Revenue Account,732.34,Materials & Consumables,1920Jul_PC00186
Sandwell Metropolitan Borough Council,http://www.sandwell.gov.uk/info/200202/performance_and_spending/3233/government_procurement_cards,15-Jul-19,Regeneration & Growth,AMZNMKTPLACE AMAZON.CO,Regeneration And The Economy,74.41,Printing Stationery&Gen Office,1920Jul_PC00187
Sandwell Metropolitan Borough Council,http://www.sandwell.gov.uk/info/200202/performance_and_spending/3233/government_procurement_cards,15-Jul-19,Housing & Communities,PREMIER INN,Neighbourhoods,515,Operational Services,1920Jul_PC00188
Sandwell Metropolitan Borough Council,http://www.sandwell.gov.uk/info/200202/performance_and_spending/3233/government_procurement_cards,15-Jul-19,Housing & Communities,AMZNMKTPLACE AMAZON.CO,Neighbourhoods,48.6,Equipment & Furniture,1920Jul_PC00189
Sandwell Metropolitan Borough Council,http://www.sandwell.gov.uk/info/200202/performance_and_spending/3233/government_procurement_cards,15-Jul-19,Total Housing Revenue Account,AMZNMktplace,Total Housing Revenue Account,44.97,Materials & Consumables,1920Jul_PC00190
Sandwell Metropolitan Borough Council,http://www.sandwell.gov.uk/info/200202/performance_and_spending/3233/government_procurement_cards,15-Jul-19,Resources (Inc SIU),AMZNMKTPLACE AMAZON.CO,Assistant Chief Executive (Excl SIU),-52.53,Printing Stationery&Gen Office,1920Jul_PC00191
Sandwell Metropolitan Borough Council,http://www.sandwell.gov.uk/info/200202/performance_and_spending/3233/government_procurement_cards,15-Jul-19,Housing & Communities,WWW.INTENT24.COM,Neighbourhoods,64.02,Equipment & Furniture,1920Jul_PC00192
Sandwell Metropolitan Borough Council,http://www.sandwell.gov.uk/info/200202/performance_and_spending/3233/government_procurement_cards,15-Jul-19,Childrens Services,VISTAPR VistaPrint.com,Childrens Services,14.29,Materials & Consumables,1920Jul_PC00193
Sandwell Metropolitan Borough Council,http://www.sandwell.gov.uk/info/200202/performance_and_spending/3233/government_procurement_cards,15-Jul-19,Adult Social Care Health and Wellbeing - Total,PAYPAL  UNIVERSALSI,Total Adult Social Care,12.37,Printing Stationery&Gen Office,1920Jul_PC00194
Sandwell Metropolitan Borough Council,http://www.sandwell.gov.uk/info/200202/performance_and_spending/3233/government_procurement_cards,15-Jul-19,Housing & Communities,AMZNMktplace,Neighbourhoods,8.92,Printing Stationery&Gen Office,1920Jul_PC00195
Sandwell Metropolitan Borough Council,http://www.sandwell.gov.uk/info/200202/performance_and_spending/3233/government_procurement_cards,15-Jul-19,Housing & Communities,B & Q 1357,Neighbourhoods,36.71,Materials & Consumables,1920Jul_PC00196
Sandwell Metropolitan Borough Council,http://www.sandwell.gov.uk/info/200202/performance_and_spending/3233/government_procurement_cards,15-Jul-19,Housing & Communities,HIGHFIELD HOUSE HO,Neighbourhoods,66.67,Operational Services,1920Jul_PC00197
Sandwell Metropolitan Borough Council,http://www.sandwell.gov.uk/info/200202/performance_and_spending/3233/government_procurement_cards,15-Jul-19,Total Housing Revenue Account,Trainline,Total Housing Revenue Account,-127,Public Transport,1920Jul_PC00198
Sandwell Metropolitan Borough Council,http://www.sandwell.gov.uk/info/200202/performance_and_spending/3233/government_procurement_cards,15-Jul-19,Total Housing Revenue Account,Trainline,Total Housing Revenue Account,-127,Public Transport,1920Jul_PC00199
Sandwell Metropolitan Borough Council,http://www.sandwell.gov.uk/info/200202/performance_and_spending/3233/government_procurement_cards,15-Jul-19,Childrens Services,OFFICE DEPOT UK,Childrens Services,21.2,Printing Stationery&Gen Office,1920Jul_PC00200
Sandwell Metropolitan Borough Council,http://www.sandwell.gov.uk/info/200202/performance_and_spending/3233/government_procurement_cards,15-Jul-19,Childrens Services,ASDA STORES LTD 5865,Childrens Services,16.58,Materials & Consumables,1920Jul_PC00201
Sandwell Metropolitan Borough Council,http://www.sandwell.gov.uk/info/200202/performance_and_spending/3233/government_procurement_cards,15-Jul-19,Childrens Services,TRAVIS PERKINS,Childrens Services,97.33,R& M - Building Maint&Imp.,1920Jul_PC00202
Sandwell Metropolitan Borough Council,http://www.sandwell.gov.uk/info/200202/performance_and_spending/3233/government_procurement_cards,15-Jul-19,Total Housing Revenue Account,SEVERN TRENT WATER,Total Housing Revenue Account,2734.02,Water Services,1920Jul_PC00203
Sandwell Metropolitan Borough Council,http://www.sandwell.gov.uk/info/200202/performance_and_spending/3233/government_procurement_cards,15-Jul-19,Childrens Services,OFFICE DEPOT UK,Childrens Services,40.17,Printing Stationery&Gen Office,1920Jul_PC00204
Sandwell Metropolitan Borough Council,http://www.sandwell.gov.uk/info/200202/performance_and_spending/3233/government_procurement_cards,15-Jul-19,Resources (Inc SIU),AMZNMKTPLACE AMAZON.CO,Assistant Chief Executive (Excl SIU),76.48,Printing Stationery&Gen Office,1920Jul_PC00205
Sandwell Metropolitan Borough Council,http://www.sandwell.gov.uk/info/200202/performance_and_spending/3233/government_procurement_cards,15-Jul-19,Childrens Services,POUNDSTRETCHER 852,Childrens Services,3.79,Printing Stationery&Gen Office,1920Jul_PC00206
Sandwell Metropolitan Borough Council,http://www.sandwell.gov.uk/info/200202/performance_and_spending/3233/government_procurement_cards,15-Jul-19,Childrens Services,MARC GOUGH,Childrens Services,108,Catering Provisions,1920Jul_PC00207
Sandwell Metropolitan Borough Council,http://www.sandwell.gov.uk/info/200202/performance_and_spending/3233/government_procurement_cards,15-Jul-19,Individual School Budgets With Inclusion,Amazon.co.uk M65JZ8YM4,Individual School Budgets With Inclusion,41.36,ICT,1920Jul_PC00208
Sandwell Metropolitan Borough Council,http://www.sandwell.gov.uk/info/200202/performance_and_spending/3233/government_procurement_cards,15-Jul-19,Individual School Budgets With Inclusion,Amazon.co.uk MH8ZL2CA4,Individual School Budgets With Inclusion,39.56,ICT,1920Jul_PC00209
Sandwell Metropolitan Borough Council,http://www.sandwell.gov.uk/info/200202/performance_and_spending/3233/government_procurement_cards,15-Jul-19,Individual School Budgets With Inclusion,Amazon.co.uk MH8ZW3CO4,Individual School Budgets With Inclusion,35.96,ICT,1920Jul_PC00210
Sandwell Metropolitan Borough Council,http://www.sandwell.gov.uk/info/200202/performance_and_spending/3233/government_procurement_cards,15-Jul-19,Individual School Budgets With Inclusion,Amazon.co.uk MH8UR4CN4,Individual School Budgets With Inclusion,37.76,ICT,1920Jul_PC00211
Sandwell Metropolitan Borough Council,http://www.sandwell.gov.uk/info/200202/performance_and_spending/3233/government_procurement_cards,15-Jul-19,Individual School Budgets With Inclusion,Amazon.co.uk MH39O1CZ4,Individual School Budgets With Inclusion,35.96,ICT,1920Jul_PC00212
Sandwell Metropolitan Borough Council,http://www.sandwell.gov.uk/info/200202/performance_and_spending/3233/government_procurement_cards,15-Jul-19,Individual School Budgets With Inclusion,Amazon.co.uk MH2OF4C34,Individual School Budgets With Inclusion,35.96,ICT,1920Jul_PC00213
Sandwell Metropolitan Borough Council,http://www.sandwell.gov.uk/info/200202/performance_and_spending/3233/government_procurement_cards,15-Jul-19,Individual School Budgets With Inclusion,Amazon.co.uk M67PY8YF4,Individual School Budgets With Inclusion,35.96,ICT,1920Jul_PC00214
Sandwell Metropolitan Borough Council,http://www.sandwell.gov.uk/info/200202/performance_and_spending/3233/government_procurement_cards,15-Jul-19,Individual School Budgets With Inclusion,Amazon.co.uk MH49T3CS4,Individual School Budgets With Inclusion,35.96,ICT,1920Jul_PC00215
Sandwell Metropolitan Borough Council,http://www.sandwell.gov.uk/info/200202/performance_and_spending/3233/government_procurement_cards,15-Jul-19,Individual School Budgets With Inclusion,Amazon.co.uk M63PN2YH4,Individual School Budgets With Inclusion,37.76,ICT,1920Jul_PC00216
Sandwell Metropolitan Borough Council,http://www.sandwell.gov.uk/info/200202/performance_and_spending/3233/government_procurement_cards,15-Jul-19,Individual School Budgets With Inclusion,Amazon.co.uk MH29T2CN4,Individual School Budgets With Inclusion,35.96,ICT,1920Jul_PC00217
Sandwell Metropolitan Borough Council,http://www.sandwell.gov.uk/info/200202/performance_and_spending/3233/government_procurement_cards,15-Jul-19,Resources (Inc SIU),AMZNMktplace,Assistant Chief Executive (Excl SIU),10.82,Materials & Consumables,1920Jul_PC00218
Sandwell Metropolitan Borough Council,http://www.sandwell.gov.uk/info/200202/performance_and_spending/3233/government_procurement_cards,15-Jul-19,Housing & Communities,PP MR MARQUEE,Neighbourhoods,320,Operational Services,1920Jul_PC00219
Sandwell Metropolitan Borough Council,http://www.sandwell.gov.uk/info/200202/performance_and_spending/3233/government_procurement_cards,15-Jul-19,Childrens Services,TESCO STORES 5194,Childrens Services,67.85,Catering Provisions,1920Jul_PC00220
Sandwell Metropolitan Borough Council,http://www.sandwell.gov.uk/info/200202/performance_and_spending/3233/government_procurement_cards,16-Jul-19,Housing & Communities,OCADO RETAIL LIMIT,Neighbourhoods,98.52,Catering Provisions,1920Jul_PC00221
Sandwell Metropolitan Borough Council,http://www.sandwell.gov.uk/info/200202/performance_and_spending/3233/government_procurement_cards,16-Jul-19,Childrens Services,WWW.AELP.ORG.UK,Childrens Services,159,Ind. Emp Exp-Staff Dev&Training,1920Jul_PC00222
Sandwell Metropolitan Borough Council,http://www.sandwell.gov.uk/info/200202/performance_and_spending/3233/government_procurement_cards,16-Jul-19,Housing & Communities,WWW.VICARAGELODGE.COM,Neighbourhoods,326.67,Operational Services,1920Jul_PC00223
Sandwell Metropolitan Borough Council,http://www.sandwell.gov.uk/info/200202/performance_and_spending/3233/government_procurement_cards,16-Jul-19,Housing & Communities,AMZNMktplace,Neighbourhoods,23.72,Printing Stationery&Gen Office,1920Jul_PC00224
Sandwell Metropolitan Borough Council,http://www.sandwell.gov.uk/info/200202/performance_and_spending/3233/government_procurement_cards,16-Jul-19,Childrens Services,DOMU,Childrens Services,20.82,R& M - Building Maint&Imp.,1920Jul_PC00225
Sandwell Metropolitan Borough Council,http://www.sandwell.gov.uk/info/200202/performance_and_spending/3233/government_procurement_cards,16-Jul-19,Housing & Communities,TRAVELODGE,Neighbourhoods,150,Operational Services,1920Jul_PC00226
Sandwell Metropolitan Borough Council,http://www.sandwell.gov.uk/info/200202/performance_and_spending/3233/government_procurement_cards,16-Jul-19,Childrens Services,SAINSBURYS SACAT0558,Childrens Services,11.08,Printing Stationery&Gen Office,1920Jul_PC00227
Sandwell Metropolitan Borough Council,http://www.sandwell.gov.uk/info/200202/performance_and_spending/3233/government_procurement_cards,16-Jul-19,Childrens Services,WWW.NISBETS.COM,Childrens Services,133.98,Equipment & Furniture,1920Jul_PC00228
Sandwell Metropolitan Borough Council,http://www.sandwell.gov.uk/info/200202/performance_and_spending/3233/government_procurement_cards,16-Jul-19,Housing & Communities,AXIONMATIC TECHNOLOGY,Neighbourhoods,233.29,R& M - Building Maint&Imp.,1920Jul_PC00229
Sandwell Metropolitan Borough Council,http://www.sandwell.gov.uk/info/200202/performance_and_spending/3233/government_procurement_cards,16-Jul-19,Housing & Communities,AMZNMKTPLACE AMAZON.CO,Neighbourhoods,21.08,ICT,1920Jul_PC00230
Sandwell Metropolitan Borough Council,http://www.sandwell.gov.uk/info/200202/performance_and_spending/3233/government_procurement_cards,16-Jul-19,Total Housing Revenue Account,B & Q 1357,Total Housing Revenue Account,40,Materials & Consumables,1920Jul_PC00231
Sandwell Metropolitan Borough Council,http://www.sandwell.gov.uk/info/200202/performance_and_spending/3233/government_procurement_cards,16-Jul-19,Regeneration & Growth,TIMPSON LTD,Regeneration And The Economy,25,R & M - Security,1920Jul_PC00232
Sandwell Metropolitan Borough Council,http://www.sandwell.gov.uk/info/200202/performance_and_spending/3233/government_procurement_cards,16-Jul-19,Resources (Inc SIU),KAYS MEDICAL LIMITED,Assistant Chief Executive (Excl SIU),131.88,Professional Services External,1920Jul_PC00233
Sandwell Metropolitan Borough Council,http://www.sandwell.gov.uk/info/200202/performance_and_spending/3233/government_procurement_cards,16-Jul-19,Housing & Communities,HIGHFIELD HOUSE HO,Neighbourhoods,157.5,Operational Services,1920Jul_PC00234
Sandwell Metropolitan Borough Council,http://www.sandwell.gov.uk/info/200202/performance_and_spending/3233/government_procurement_cards,16-Jul-19,Housing & Communities,ARGOS RETAIL GROUP,Neighbourhoods,10.82,Materials & Consumables,1920Jul_PC00235
Sandwell Metropolitan Borough Council,http://www.sandwell.gov.uk/info/200202/performance_and_spending/3233/government_procurement_cards,16-Jul-19,Adult Social Care Health and Wellbeing - Total,CARTRIDGEPEOPLE.COM,Total Adult Social Care,56.6,Printing Stationery&Gen Office,1920Jul_PC00236
Sandwell Metropolitan Borough Council,http://www.sandwell.gov.uk/info/200202/performance_and_spending/3233/government_procurement_cards,16-Jul-19,Childrens Services,Spotify P0BD31248E,Childrens Services,8.32,Subscriptions,1920Jul_PC00237
Sandwell Metropolitan Borough Council,http://www.sandwell.gov.uk/info/200202/performance_and_spending/3233/government_procurement_cards,16-Jul-19,Childrens Services,ASDA STORES 4253,Childrens Services,2.68,Catering Provisions,1920Jul_PC00238
Sandwell Metropolitan Borough Council,http://www.sandwell.gov.uk/info/200202/performance_and_spending/3233/government_procurement_cards,16-Jul-19,Adult Social Care Health and Wellbeing - Total,OFFICE DEPOT UK,Total Adult Social Care,112.08,Printing Stationery&Gen Office,1920Jul_PC00239
Sandwell Metropolitan Borough Council,http://www.sandwell.gov.uk/info/200202/performance_and_spending/3233/government_procurement_cards,16-Jul-19,Childrens Services,OFFICE DEPOT UK,Childrens Services,32.53,Fixtures & Fittings,1920Jul_PC00240
Sandwell Metropolitan Borough Council,http://www.sandwell.gov.uk/info/200202/performance_and_spending/3233/government_procurement_cards,16-Jul-19,Childrens Services,POUNDSTRETCHER 003,Childrens Services,9.99,Printing Stationery&Gen Office,1920Jul_PC00241
Sandwell Metropolitan Borough Council,http://www.sandwell.gov.uk/info/200202/performance_and_spending/3233/government_procurement_cards,16-Jul-19,Individual School Budgets With Inclusion,Amazon.co.uk MH1CO6FJ4,Individual School Budgets With Inclusion,37.76,ICT,1920Jul_PC00242
Sandwell Metropolitan Borough Council,http://www.sandwell.gov.uk/info/200202/performance_and_spending/3233/government_procurement_cards,16-Jul-19,Individual School Budgets With Inclusion,Amazon.co.uk MH9Y12FR4,Individual School Budgets With Inclusion,26.97,ICT,1920Jul_PC00243
Sandwell Metropolitan Borough Council,http://www.sandwell.gov.uk/info/200202/performance_and_spending/3233/government_procurement_cards,16-Jul-19,Individual School Budgets With Inclusion,Amazon.co.uk MH5ZF9FY4,Individual School Budgets With Inclusion,37.76,ICT,1920Jul_PC00244
Sandwell Metropolitan Borough Council,http://www.sandwell.gov.uk/info/200202/performance_and_spending/3233/government_procurement_cards,16-Jul-19,Childrens Services,ASDA STORES 4253,Childrens Services,4,Catering Provisions,1920Jul_PC00245
Sandwell Metropolitan Borough Council,http://www.sandwell.gov.uk/info/200202/performance_and_spending/3233/government_procurement_cards,16-Jul-19,Adult Social Care Health and Wellbeing - Total,Amazon.co.uk MH70T7FX4,Total Adult Social Care,49.82,Printing Stationery&Gen Office,1920Jul_PC00246
Sandwell Metropolitan Borough Council,http://www.sandwell.gov.uk/info/200202/performance_and_spending/3233/government_procurement_cards,16-Jul-19,Adult Social Care Health and Wellbeing - Total,AMZNMktplace,Total Adult Social Care,2.11,ICT,1920Jul_PC00247
Sandwell Metropolitan Borough Council,http://www.sandwell.gov.uk/info/200202/performance_and_spending/3233/government_procurement_cards,16-Jul-19,Housing & Communities,AMZNMktplace,Neighbourhoods,18.48,Printing Stationery&Gen Office,1920Jul_PC00248
Sandwell Metropolitan Borough Council,http://www.sandwell.gov.uk/info/200202/performance_and_spending/3233/government_procurement_cards,16-Jul-19,Individual School Budgets With Inclusion,AMZNMktplace,Individual School Budgets With Inclusion,65.22,ICT,1920Jul_PC00249
Sandwell Metropolitan Borough Council,http://www.sandwell.gov.uk/info/200202/performance_and_spending/3233/government_procurement_cards,17-Jul-19,Housing & Communities,AMZNMktplace,Neighbourhoods,69.77,Materials & Consumables,1920Jul_PC00250
Sandwell Metropolitan Borough Council,http://www.sandwell.gov.uk/info/200202/performance_and_spending/3233/government_procurement_cards,17-Jul-19,Childrens Services,ALDI 8 778,Childrens Services,3.75,Materials & Consumables,1920Jul_PC00251
Sandwell Metropolitan Borough Council,http://www.sandwell.gov.uk/info/200202/performance_and_spending/3233/government_procurement_cards,17-Jul-19,Childrens Services,PEIRIANWAITH EIFIONYDD,Childrens Services,51.67,Grounds Maint&Improvements,1920Jul_PC00252
Sandwell Metropolitan Borough Council,http://www.sandwell.gov.uk/info/200202/performance_and_spending/3233/government_procurement_cards,17-Jul-19,Resources (Inc SIU),BCU CASH MANAGEMENT,Assistant Chief Executive (Excl SIU),555.6,Civic Events,1920Jul_PC00253
Sandwell Metropolitan Borough Council,http://www.sandwell.gov.uk/info/200202/performance_and_spending/3233/government_procurement_cards,17-Jul-19,Housing & Communities,AMZNMktplace,Neighbourhoods,5.82,Printing Stationery&Gen Office,1920Jul_PC00254
Sandwell Metropolitan Borough Council,http://www.sandwell.gov.uk/info/200202/performance_and_spending/3233/government_procurement_cards,17-Jul-19,Housing & Communities,Amazon.co.uk MH4VW64J4,Neighbourhoods,17.5,Materials & Consumables,1920Jul_PC00255
Sandwell Metropolitan Borough Council,http://www.sandwell.gov.uk/info/200202/performance_and_spending/3233/government_procurement_cards,17-Jul-19,Total Housing Revenue Account,SMART WALL PAINT,Total Housing Revenue Account,742.5,Materials & Consumables,1920Jul_PC00256
Sandwell Metropolitan Borough Council,http://www.sandwell.gov.uk/info/200202/performance_and_spending/3233/government_procurement_cards,17-Jul-19,Housing & Communities,AMZNMktplace,Neighbourhoods,10.82,Equipment & Furniture,1920Jul_PC00257
Sandwell Metropolitan Borough Council,http://www.sandwell.gov.uk/info/200202/performance_and_spending/3233/government_procurement_cards,17-Jul-19,Housing & Communities,AMZNMktplace,Neighbourhoods,8.87,Materials & Consumables,1920Jul_PC00258
Sandwell Metropolitan Borough Council,http://www.sandwell.gov.uk/info/200202/performance_and_spending/3233/government_procurement_cards,17-Jul-19,Housing & Communities,PAYPAL  MASTERJECT,Neighbourhoods,30,Equipment & Furniture,1920Jul_PC00259
Sandwell Metropolitan Borough Council,http://www.sandwell.gov.uk/info/200202/performance_and_spending/3233/government_procurement_cards,17-Jul-19,Housing & Communities,B & Q 1357,Neighbourhoods,12.48,Materials & Consumables,1920Jul_PC00260
Sandwell Metropolitan Borough Council,http://www.sandwell.gov.uk/info/200202/performance_and_spending/3233/government_procurement_cards,17-Jul-19,Childrens Services,BEEBYS BUBBLES,Childrens Services,104.17,Laundry,1920Jul_PC00261
Sandwell Metropolitan Borough Council,http://www.sandwell.gov.uk/info/200202/performance_and_spending/3233/government_procurement_cards,17-Jul-19,Childrens Services,ANTHONY PHILLIPS,Childrens Services,203,Printing Stationery&Gen Office,1920Jul_PC00262
Sandwell Metropolitan Borough Council,http://www.sandwell.gov.uk/info/200202/performance_and_spending/3233/government_procurement_cards,17-Jul-19,Childrens Services,SCREWFIX DIRECT,Childrens Services,83.33,Grounds Maint&Improvements,1920Jul_PC00263
Sandwell Metropolitan Borough Council,http://www.sandwell.gov.uk/info/200202/performance_and_spending/3233/government_procurement_cards,17-Jul-19,Resources (Inc SIU),Amazon Prime MH5TF14R4,Assistant Chief Executive (Excl SIU),6.66,Printing Stationery&Gen Office,1920Jul_PC00264
Sandwell Metropolitan Borough Council,http://www.sandwell.gov.uk/info/200202/performance_and_spending/3233/government_procurement_cards,17-Jul-19,Adult Social Care Health and Wellbeing - Total,Amazon.co.uk MH1HV74E4,Public Health,12.91,Printing Stationery&Gen Office,1920Jul_PC00265
Sandwell Metropolitan Borough Council,http://www.sandwell.gov.uk/info/200202/performance_and_spending/3233/government_procurement_cards,17-Jul-19,Adult Social Care Health and Wellbeing - Total,Amazon.co.uk MH9527L04,Public Health,12.91,Printing Stationery&Gen Office,1920Jul_PC00266
Sandwell Metropolitan Borough Council,http://www.sandwell.gov.uk/info/200202/performance_and_spending/3233/government_procurement_cards,17-Jul-19,Adult Social Care Health and Wellbeing - Total,Amazon.co.uk MH4XJ84E4,Public Health,12.91,Printing Stationery&Gen Office,1920Jul_PC00267
Sandwell Metropolitan Borough Council,http://www.sandwell.gov.uk/info/200202/performance_and_spending/3233/government_procurement_cards,17-Jul-19,Adult Social Care Health and Wellbeing - Total,Amazon.co.uk MH3S994K4,Public Health,12.9,Printing Stationery&Gen Office,1920Jul_PC00268
Sandwell Metropolitan Borough Council,http://www.sandwell.gov.uk/info/200202/performance_and_spending/3233/government_procurement_cards,17-Jul-19,Resources (Inc SIU),SAINSBURYS 0558,Assistant Chief Executive (Excl SIU),15,Catering Equipment,1920Jul_PC00269
Sandwell Metropolitan Borough Council,http://www.sandwell.gov.uk/info/200202/performance_and_spending/3233/government_procurement_cards,17-Jul-19,Resources (Inc SIU),HMCOURTS-SERVICE.G,Assistant Chief Executive (Excl SIU),223,Council Tax,1920Jul_PC00270
Sandwell Metropolitan Borough Council,http://www.sandwell.gov.uk/info/200202/performance_and_spending/3233/government_procurement_cards,17-Jul-19,Adult Social Care Health and Wellbeing - Total,AMZNMktplace,Total Adult Social Care,47.99,ICT,1920Jul_PC00271
Sandwell Metropolitan Borough Council,http://www.sandwell.gov.uk/info/200202/performance_and_spending/3233/government_procurement_cards,17-Jul-19,Childrens Services,AMZNMKTPLACE AMAZON.CO,Childrens Services,56.48,Printing Stationery&Gen Office,1920Jul_PC00272
Sandwell Metropolitan Borough Council,http://www.sandwell.gov.uk/info/200202/performance_and_spending/3233/government_procurement_cards,17-Jul-19,Resources (Inc SIU),OFFICE DEPOT UK,Assistant Chief Executive (Excl SIU),28.6,Printing Stationery&Gen Office,1920Jul_PC00273
Sandwell Metropolitan Borough Council,http://www.sandwell.gov.uk/info/200202/performance_and_spending/3233/government_procurement_cards,18-Jul-19,Resources (Inc SIU),DRI Lenovo,Assistant Chief Executive (Excl SIU),19.99,Printing Stationery&Gen Office,1920Jul_PC00274
Sandwell Metropolitan Borough Council,http://www.sandwell.gov.uk/info/200202/performance_and_spending/3233/government_procurement_cards,18-Jul-19,Regeneration & Growth,TVLICENSING.CO.UK,Regeneration And The Economy,154.5,Licences,1920Jul_PC00275
Sandwell Metropolitan Borough Council,http://www.sandwell.gov.uk/info/200202/performance_and_spending/3233/government_procurement_cards,18-Jul-19,Childrens Services,ALDI STORES,Childrens Services,0.71,Materials & Consumables,1920Jul_PC00276
Sandwell Metropolitan Borough Council,http://www.sandwell.gov.uk/info/200202/performance_and_spending/3233/government_procurement_cards,18-Jul-19,Corporate Management,WWW.SHREDPRO-UKCOU,Corporate Management,40.95,Waste Disposal Charge,1920Jul_PC00277
Sandwell Metropolitan Borough Council,http://www.sandwell.gov.uk/info/200202/performance_and_spending/3233/government_procurement_cards,18-Jul-19,Regeneration & Growth,Amazon.co.uk MH3E15LX4,Regeneration And The Economy,5.66,Equipment & Furniture,1920Jul_PC00278
Sandwell Metropolitan Borough Council,http://www.sandwell.gov.uk/info/200202/performance_and_spending/3233/government_procurement_cards,18-Jul-19,Regeneration & Growth,AMZNMktplace,Regeneration And The Economy,9.99,Equipment & Furniture,1920Jul_PC00279
Sandwell Metropolitan Borough Council,http://www.sandwell.gov.uk/info/200202/performance_and_spending/3233/government_procurement_cards,18-Jul-19,Childrens Services,WWW.BPSACCESSSOLUT,Childrens Services,95.82,Equipment & Furniture,1920Jul_PC00280
Sandwell Metropolitan Borough Council,http://www.sandwell.gov.uk/info/200202/performance_and_spending/3233/government_procurement_cards,18-Jul-19,Regeneration & Growth,AMZNMktplace,Regeneration And The Economy,4.99,Equipment & Furniture,1920Jul_PC00281
Sandwell Metropolitan Borough Council,http://www.sandwell.gov.uk/info/200202/performance_and_spending/3233/government_procurement_cards,18-Jul-19,Housing & Communities,AMZNMktplace,Neighbourhoods,8.25,Materials & Consumables,1920Jul_PC00282
Sandwell Metropolitan Borough Council,http://www.sandwell.gov.uk/info/200202/performance_and_spending/3233/government_procurement_cards,18-Jul-19,Housing & Communities,AMZNMktplace,Neighbourhoods,30.77,Materials & Consumables,1920Jul_PC00283
Sandwell Metropolitan Borough Council,http://www.sandwell.gov.uk/info/200202/performance_and_spending/3233/government_procurement_cards,18-Jul-19,Housing & Communities,AMZNMktplace,Neighbourhoods,28.32,Materials & Consumables,1920Jul_PC00284
Sandwell Metropolitan Borough Council,http://www.sandwell.gov.uk/info/200202/performance_and_spending/3233/government_procurement_cards,18-Jul-19,Housing & Communities,AMZNMktplace,Neighbourhoods,14.16,Materials & Consumables,1920Jul_PC00285
Sandwell Metropolitan Borough Council,http://www.sandwell.gov.uk/info/200202/performance_and_spending/3233/government_procurement_cards,18-Jul-19,Housing & Communities,AMZNMktplace,Neighbourhoods,9,Materials & Consumables,1920Jul_PC00286
Sandwell Metropolitan Borough Council,http://www.sandwell.gov.uk/info/200202/performance_and_spending/3233/government_procurement_cards,18-Jul-19,Housing & Communities,WWW.BOSTONSEEDS.CO,Neighbourhoods,129.96,Grounds Maint&Improvements,1920Jul_PC00287
Sandwell Metropolitan Borough Council,http://www.sandwell.gov.uk/info/200202/performance_and_spending/3233/government_procurement_cards,18-Jul-19,Housing & Communities,WWW.GARDENGAMES.COM,Neighbourhoods,86.62,Materials & Consumables,1920Jul_PC00288
Sandwell Metropolitan Borough Council,http://www.sandwell.gov.uk/info/200202/performance_and_spending/3233/government_procurement_cards,18-Jul-19,Housing & Communities,AMZNMktplace,Neighbourhoods,10.82,Materials & Consumables,1920Jul_PC00289
Sandwell Metropolitan Borough Council,http://www.sandwell.gov.uk/info/200202/performance_and_spending/3233/government_procurement_cards,18-Jul-19,Housing & Communities,JONES MULTISERVICE CEN,Neighbourhoods,29.17,Fixtures & Fittings,1920Jul_PC00290
Sandwell Metropolitan Borough Council,http://www.sandwell.gov.uk/info/200202/performance_and_spending/3233/government_procurement_cards,18-Jul-19,Regeneration & Growth,SMARTCARD,Regeneration And The Economy,257.45,Materials & Consumables,1920Jul_PC00291
Sandwell Metropolitan Borough Council,http://www.sandwell.gov.uk/info/200202/performance_and_spending/3233/government_procurement_cards,18-Jul-19,Housing & Communities,AMZNMktplace,Neighbourhoods,49.63,Equipment & Furniture,1920Jul_PC00292
Sandwell Metropolitan Borough Council,http://www.sandwell.gov.uk/info/200202/performance_and_spending/3233/government_procurement_cards,18-Jul-19,Regeneration & Growth,AMZNMKTPLACE AMAZON.CO,Regeneration And The Economy,17.9,Printing Stationery&Gen Office,1920Jul_PC00293
Sandwell Metropolitan Borough Council,http://www.sandwell.gov.uk/info/200202/performance_and_spending/3233/government_procurement_cards,18-Jul-19,Housing & Communities,WWW.ARGOS.CO.UK,Neighbourhoods,86.59,Equipment & Furniture,1920Jul_PC00294
Sandwell Metropolitan Borough Council,http://www.sandwell.gov.uk/info/200202/performance_and_spending/3233/government_procurement_cards,18-Jul-19,Regeneration & Growth,AMZNMKTPLACE AMAZON.CO,Regeneration And The Economy,9.16,Printing Stationery&Gen Office,1920Jul_PC00295
Sandwell Metropolitan Borough Council,http://www.sandwell.gov.uk/info/200202/performance_and_spending/3233/government_procurement_cards,18-Jul-19,Regeneration & Growth,AMZNMKTPLACE AMAZON.CO,Regeneration And The Economy,38.75,R& M - Building Maint&Imp.,1920Jul_PC00296
Sandwell Metropolitan Borough Council,http://www.sandwell.gov.uk/info/200202/performance_and_spending/3233/government_procurement_cards,18-Jul-19,Resources (Inc SIU),Amazon.co.uk MH7SQ1LZ4,Assistant Chief Executive (Excl SIU),7.21,Printing Stationery&Gen Office,1920Jul_PC00297
Sandwell Metropolitan Borough Council,http://www.sandwell.gov.uk/info/200202/performance_and_spending/3233/government_procurement_cards,18-Jul-19,Resources (Inc SIU),AMZNMktplace,Assistant Chief Executive (Excl SIU),49.99,Materials & Consumables,1920Jul_PC00298
Sandwell Metropolitan Borough Council,http://www.sandwell.gov.uk/info/200202/performance_and_spending/3233/government_procurement_cards,18-Jul-19,Childrens Services,SAINSBURYS SACAT0558,Childrens Services,18.5,Materials & Consumables,1920Jul_PC00299
Sandwell Metropolitan Borough Council,http://www.sandwell.gov.uk/info/200202/performance_and_spending/3233/government_procurement_cards,18-Jul-19,Resources (Inc SIU),AMZNMktplace,Assistant Chief Executive (Excl SIU),2.46,Printing Stationery&Gen Office,1920Jul_PC00300
Sandwell Metropolitan Borough Council,http://www.sandwell.gov.uk/info/200202/performance_and_spending/3233/government_procurement_cards,18-Jul-19,Total Housing Revenue Account,TRAVIS PERKINS,Total Housing Revenue Account,131.04,Materials & Consumables,1920Jul_PC00301
Sandwell Metropolitan Borough Council,http://www.sandwell.gov.uk/info/200202/performance_and_spending/3233/government_procurement_cards,18-Jul-19,Housing & Communities,AMZNMktplace,Neighbourhoods,8.99,Materials & Consumables,1920Jul_PC00302
Sandwell Metropolitan Borough Council,http://www.sandwell.gov.uk/info/200202/performance_and_spending/3233/government_procurement_cards,18-Jul-19,Resources (Inc SIU),OFFICE DEPOT UK,Assistant Chief Executive (Excl SIU),17,Printing Stationery&Gen Office,1920Jul_PC00303
Sandwell Metropolitan Borough Council,http://www.sandwell.gov.uk/info/200202/performance_and_spending/3233/government_procurement_cards,19-Jul-19,Resources (Inc SIU),DIGITAL RIVER,Assistant Chief Executive (Excl SIU),79.99,Printing Stationery&Gen Office,1920Jul_PC00304
Sandwell Metropolitan Borough Council,http://www.sandwell.gov.uk/info/200202/performance_and_spending/3233/government_procurement_cards,19-Jul-19,Total Housing Revenue Account,INTUMESCENT SYSTEM,Total Housing Revenue Account,303.1,Materials & Consumables,1920Jul_PC00305
Sandwell Metropolitan Borough Council,http://www.sandwell.gov.uk/info/200202/performance_and_spending/3233/government_procurement_cards,19-Jul-19,Regeneration & Growth,ARCO LTD,Regeneration And The Economy,72.09,Protective Clothing&Uniforms,1920Jul_PC00306
Sandwell Metropolitan Borough Council,http://www.sandwell.gov.uk/info/200202/performance_and_spending/3233/government_procurement_cards,19-Jul-19,Childrens Services,Amazon.co.uk MH03M1N94,Childrens Services,20.39,Equipment & Furniture,1920Jul_PC00307
Sandwell Metropolitan Borough Council,http://www.sandwell.gov.uk/info/200202/performance_and_spending/3233/government_procurement_cards,19-Jul-19,Total Housing Revenue Account,VALENCIA FINE FOODS LT,Total Housing Revenue Account,149.17,Catering Provisions,1920Jul_PC00308
Sandwell Metropolitan Borough Council,http://www.sandwell.gov.uk/info/200202/performance_and_spending/3233/government_procurement_cards,19-Jul-19,Housing & Communities,SAINSBURYS SACAT0558,Neighbourhoods,16.5,Materials & Consumables,1920Jul_PC00309
Sandwell Metropolitan Borough Council,http://www.sandwell.gov.uk/info/200202/performance_and_spending/3233/government_procurement_cards,19-Jul-19,Housing & Communities,AMZNMktplace,Neighbourhoods,5,Printing Stationery&Gen Office,1920Jul_PC00310
Sandwell Metropolitan Borough Council,http://www.sandwell.gov.uk/info/200202/performance_and_spending/3233/government_procurement_cards,19-Jul-19,Housing & Communities,ARGOS OLDBURY,Neighbourhoods,20.83,Materials & Consumables,1920Jul_PC00311
Sandwell Metropolitan Borough Council,http://www.sandwell.gov.uk/info/200202/performance_and_spending/3233/government_procurement_cards,19-Jul-19,Housing & Communities,ARGOS OLDBURY,Neighbourhoods,12.5,Materials & Consumables,1920Jul_PC00312
Sandwell Metropolitan Borough Council,http://www.sandwell.gov.uk/info/200202/performance_and_spending/3233/government_procurement_cards,19-Jul-19,Housing & Communities,ARGOS OLDBURY,Neighbourhoods,8.33,Materials & Consumables,1920Jul_PC00313
Sandwell Metropolitan Borough Council,http://www.sandwell.gov.uk/info/200202/performance_and_spending/3233/government_procurement_cards,19-Jul-19,Housing & Communities,WWW.VICARAGELODGE.COM,Neighbourhoods,554.17,Operational Services,1920Jul_PC00314
Sandwell Metropolitan Borough Council,http://www.sandwell.gov.uk/info/200202/performance_and_spending/3233/government_procurement_cards,19-Jul-19,Housing & Communities,TOOLSTATION LTD,Neighbourhoods,3.35,Equipment & Furniture,1920Jul_PC00315
Sandwell Metropolitan Borough Council,http://www.sandwell.gov.uk/info/200202/performance_and_spending/3233/government_procurement_cards,19-Jul-19,Housing & Communities,SAFETYSUPPL,Neighbourhoods,93.15,Materials & Consumables,1920Jul_PC00316
Sandwell Metropolitan Borough Council,http://www.sandwell.gov.uk/info/200202/performance_and_spending/3233/government_procurement_cards,19-Jul-19,Housing & Communities,OCADO,Neighbourhoods,49,Catering Provisions,1920Jul_PC00317
Sandwell Metropolitan Borough Council,http://www.sandwell.gov.uk/info/200202/performance_and_spending/3233/government_procurement_cards,19-Jul-19,Childrens Services,AMMERHURST LTD,Childrens Services,20.9,Fixtures & Fittings,1920Jul_PC00318
Sandwell Metropolitan Borough Council,http://www.sandwell.gov.uk/info/200202/performance_and_spending/3233/government_procurement_cards,19-Jul-19,Housing & Communities,AMZ ElzoDirect,Neighbourhoods,-18.48,Printing Stationery&Gen Office,1920Jul_PC00319
Sandwell Metropolitan Borough Council,http://www.sandwell.gov.uk/info/200202/performance_and_spending/3233/government_procurement_cards,19-Jul-19,Resources (Inc SIU),AMZNMktplace,Assistant Chief Executive (Excl SIU),3.98,Printing Stationery&Gen Office,1920Jul_PC00320
Sandwell Metropolitan Borough Council,http://www.sandwell.gov.uk/info/200202/performance_and_spending/3233/government_procurement_cards,19-Jul-19,Housing & Communities,AMZNMktplace,Neighbourhoods,30.57,Printing Stationery&Gen Office,1920Jul_PC00321
Sandwell Metropolitan Borough Council,http://www.sandwell.gov.uk/info/200202/performance_and_spending/3233/government_procurement_cards,19-Jul-19,Housing & Communities,AMZNMktplace,Neighbourhoods,11.62,Printing Stationery&Gen Office,1920Jul_PC00322
Sandwell Metropolitan Borough Council,http://www.sandwell.gov.uk/info/200202/performance_and_spending/3233/government_procurement_cards,19-Jul-19,Housing & Communities,Amazon.co.uk MH2EE3ZL4,Neighbourhoods,29.98,Printing Stationery&Gen Office,1920Jul_PC00323
Sandwell Metropolitan Borough Council,http://www.sandwell.gov.uk/info/200202/performance_and_spending/3233/government_procurement_cards,19-Jul-19,Housing & Communities,OFFICE DEPOT UK,Neighbourhoods,41.32,Printing Stationery&Gen Office,1920Jul_PC00324
Sandwell Metropolitan Borough Council,http://www.sandwell.gov.uk/info/200202/performance_and_spending/3233/government_procurement_cards,19-Jul-19,Resources (Inc SIU),B & M RETAIL,Assistant Chief Executive (Excl SIU),27.77,Printing Stationery&Gen Office,1920Jul_PC00325
Sandwell Metropolitan Borough Council,http://www.sandwell.gov.uk/info/200202/performance_and_spending/3233/government_procurement_cards,19-Jul-19,Adult Social Care Health and Wellbeing - Total,OFFICE DEPOT UK,Public Health,4.8,Printing Stationery&Gen Office,1920Jul_PC00326
Sandwell Metropolitan Borough Council,http://www.sandwell.gov.uk/info/200202/performance_and_spending/3233/government_procurement_cards,19-Jul-19,Housing & Communities,TANI SKLEP WEST BROM,Neighbourhoods,5.97,Catering Provisions,1920Jul_PC00327
Sandwell Metropolitan Borough Council,http://www.sandwell.gov.uk/info/200202/performance_and_spending/3233/government_procurement_cards,19-Jul-19,Childrens Services,OFFICE DEPOT UK,Childrens Services,20.5,Materials & Consumables,1920Jul_PC00328
Sandwell Metropolitan Borough Council,http://www.sandwell.gov.uk/info/200202/performance_and_spending/3233/government_procurement_cards,19-Jul-19,Housing & Communities,Amazon.co.uk MH0BB2N04,Neighbourhoods,53,Printing Stationery&Gen Office,1920Jul_PC00329
Sandwell Metropolitan Borough Council,http://www.sandwell.gov.uk/info/200202/performance_and_spending/3233/government_procurement_cards,22-Jul-19,Housing & Communities,PREMIER INN,Neighbourhoods,435.83,Operational Services,1920Jul_PC00330
Sandwell Metropolitan Borough Council,http://www.sandwell.gov.uk/info/200202/performance_and_spending/3233/government_procurement_cards,22-Jul-19,Regeneration & Growth,AMZNMKTPLACE AMAZON.CO,Regeneration And The Economy,18.73,Materials & Consumables,1920Jul_PC00331
Sandwell Metropolitan Borough Council,http://www.sandwell.gov.uk/info/200202/performance_and_spending/3233/government_procurement_cards,22-Jul-19,Individual School Budgets With Inclusion,AMZNMKTPLACE AMAZON.CO,Individual School Budgets With Inclusion,9.17,Pest Control,1920Jul_PC00332
Sandwell Metropolitan Borough Council,http://www.sandwell.gov.uk/info/200202/performance_and_spending/3233/government_procurement_cards,22-Jul-19,Individual School Budgets With Inclusion,AMZNMKTPLACE AMAZON.CO,Individual School Budgets With Inclusion,75.22,ICT,1920Jul_PC00333
Sandwell Metropolitan Borough Council,http://www.sandwell.gov.uk/info/200202/performance_and_spending/3233/government_procurement_cards,22-Jul-19,Individual School Budgets With Inclusion,AMZNMKTPLACE AMAZON.CO,Individual School Budgets With Inclusion,5.82,Printing Stationery&Gen Office,1920Jul_PC00334
Sandwell Metropolitan Borough Council,http://www.sandwell.gov.uk/info/200202/performance_and_spending/3233/government_procurement_cards,22-Jul-19,Childrens Services,BEEBYS BUBBLES,Childrens Services,37.5,Laundry,1920Jul_PC00335
Sandwell Metropolitan Borough Council,http://www.sandwell.gov.uk/info/200202/performance_and_spending/3233/government_procurement_cards,22-Jul-19,Housing & Communities,PREMIER INN,Neighbourhoods,455,Operational Services,1920Jul_PC00336
Sandwell Metropolitan Borough Council,http://www.sandwell.gov.uk/info/200202/performance_and_spending/3233/government_procurement_cards,22-Jul-19,Adult Social Care Health and Wellbeing - Total,AMZNMktplace,Total Adult Social Care,17.56,ICT,1920Jul_PC00337
Sandwell Metropolitan Borough Council,http://www.sandwell.gov.uk/info/200202/performance_and_spending/3233/government_procurement_cards,22-Jul-19,Housing & Communities,TESCO STORES 2335,Neighbourhoods,12.5,Printing Stationery&Gen Office,1920Jul_PC00338
Sandwell Metropolitan Borough Council,http://www.sandwell.gov.uk/info/200202/performance_and_spending/3233/government_procurement_cards,22-Jul-19,Total Housing Revenue Account,AMZNMktplace,Total Housing Revenue Account,18.32,ICT,1920Jul_PC00339
Sandwell Metropolitan Borough Council,http://www.sandwell.gov.uk/info/200202/performance_and_spending/3233/government_procurement_cards,22-Jul-19,Housing & Communities,ASDA SUPERSTORE,Neighbourhoods,150.15,Catering Provisions,1920Jul_PC00340
Sandwell Metropolitan Borough Council,http://www.sandwell.gov.uk/info/200202/performance_and_spending/3233/government_procurement_cards,22-Jul-19,Childrens Services,AMZNMktplace,Childrens Services,14.56,Equipment & Furniture,1920Jul_PC00341
Sandwell Metropolitan Borough Council,http://www.sandwell.gov.uk/info/200202/performance_and_spending/3233/government_procurement_cards,22-Jul-19,Childrens Services,AMZNMktplace,Childrens Services,24.99,Equipment & Furniture,1920Jul_PC00342
Sandwell Metropolitan Borough Council,http://www.sandwell.gov.uk/info/200202/performance_and_spending/3233/government_procurement_cards,22-Jul-19,Childrens Services,AMZNMktplace,Childrens Services,12.49,Equipment & Furniture,1920Jul_PC00343
Sandwell Metropolitan Borough Council,http://www.sandwell.gov.uk/info/200202/performance_and_spending/3233/government_procurement_cards,22-Jul-19,Childrens Services,AMZNMktplace,Childrens Services,12.49,Equipment & Furniture,1920Jul_PC00344
Sandwell Metropolitan Borough Council,http://www.sandwell.gov.uk/info/200202/performance_and_spending/3233/government_procurement_cards,22-Jul-19,Housing & Communities,ENVIROMENT AGENCY,Housing & Communities,34.66,Water Services,1920Jul_PC00345
Sandwell Metropolitan Borough Council,http://www.sandwell.gov.uk/info/200202/performance_and_spending/3233/government_procurement_cards,22-Jul-19,Adult Social Care Health and Wellbeing - Total,LIDL GB  BLACKHEATH,Total Adult Social Care,19.4,Materials & Consumables,1920Jul_PC00346
Sandwell Metropolitan Borough Council,http://www.sandwell.gov.uk/info/200202/performance_and_spending/3233/government_procurement_cards,22-Jul-19,Housing & Communities,Amazon Prime MH53L33Q4,Neighbourhoods,6.66,Fixtures & Fittings,1920Jul_PC00347
Sandwell Metropolitan Borough Council,http://www.sandwell.gov.uk/info/200202/performance_and_spending/3233/government_procurement_cards,22-Jul-19,Adult Social Care Health and Wellbeing - Total,AMZNMKTPLACE AMAZON.CO,Total Adult Social Care,27.06,Printing Stationery&Gen Office,1920Jul_PC00348
Sandwell Metropolitan Borough Council,http://www.sandwell.gov.uk/info/200202/performance_and_spending/3233/government_procurement_cards,22-Jul-19,Childrens Services,AMZNMktplace,Childrens Services,50.79,Equipment & Furniture,1920Jul_PC00349
Sandwell Metropolitan Borough Council,http://www.sandwell.gov.uk/info/200202/performance_and_spending/3233/government_procurement_cards,22-Jul-19,Childrens Services,AMZNMktplace,Childrens Services,22.96,Equipment & Furniture,1920Jul_PC00350
Sandwell Metropolitan Borough Council,http://www.sandwell.gov.uk/info/200202/performance_and_spending/3233/government_procurement_cards,22-Jul-19,Adult Social Care Health and Wellbeing - Total,Amazon.co.uk MH8TC1J74,Total Adult Social Care,129,Printing Stationery&Gen Office,1920Jul_PC00351
Sandwell Metropolitan Borough Council,http://www.sandwell.gov.uk/info/200202/performance_and_spending/3233/government_procurement_cards,23-Jul-19,Adult Social Care Health and Wellbeing - Total,AMZNMktplace,Total Adult Social Care,43.25,ICT,1920Jul_PC00352
Sandwell Metropolitan Borough Council,http://www.sandwell.gov.uk/info/200202/performance_and_spending/3233/government_procurement_cards,23-Jul-19,Housing & Communities,WWW.VICARAGELODGE.COM,Neighbourhoods,326.67,Operational Services,1920Jul_PC00353
Sandwell Metropolitan Borough Council,http://www.sandwell.gov.uk/info/200202/performance_and_spending/3233/government_procurement_cards,23-Jul-19,Childrens Services,ASDA STORES LTD 5865,Childrens Services,4.83,Materials & Consumables,1920Jul_PC00354
Sandwell Metropolitan Borough Council,http://www.sandwell.gov.uk/info/200202/performance_and_spending/3233/government_procurement_cards,23-Jul-19,Total Housing Revenue Account,SGS,Total Housing Revenue Account,687.23,Materials & Consumables,1920Jul_PC00355
Sandwell Metropolitan Borough Council,http://www.sandwell.gov.uk/info/200202/performance_and_spending/3233/government_procurement_cards,23-Jul-19,Regeneration & Growth,Amazon.co.uk MH62K7TD4,Regeneration And The Economy,5.17,ICT,1920Jul_PC00356
Sandwell Metropolitan Borough Council,http://www.sandwell.gov.uk/info/200202/performance_and_spending/3233/government_procurement_cards,23-Jul-19,Regeneration & Growth,Amazon.co.uk MH62K7TD4,Regeneration And The Economy,1.66,ICT,1920Jul_PC00357
Sandwell Metropolitan Borough Council,http://www.sandwell.gov.uk/info/200202/performance_and_spending/3233/government_procurement_cards,23-Jul-19,Childrens Services,J VAN VLIET BIRMINGHAM,Childrens Services,137.04,Printing Stationery&Gen Office,1920Jul_PC00358
Sandwell Metropolitan Borough Council,http://www.sandwell.gov.uk/info/200202/performance_and_spending/3233/government_procurement_cards,23-Jul-19,Housing & Communities,ARGOS LTD,Neighbourhoods,12.5,Materials & Consumables,1920Jul_PC00359
Sandwell Metropolitan Borough Council,http://www.sandwell.gov.uk/info/200202/performance_and_spending/3233/government_procurement_cards,23-Jul-19,Housing & Communities,HIGHFIELD HOUSE HO,Neighbourhoods,157.5,Operational Services,1920Jul_PC00360
Sandwell Metropolitan Borough Council,http://www.sandwell.gov.uk/info/200202/performance_and_spending/3233/government_procurement_cards,23-Jul-19,Housing & Communities,HIGHFIELD HOUSE HO,Neighbourhoods,262.5,Operational Services,1920Jul_PC00361
Sandwell Metropolitan Borough Council,http://www.sandwell.gov.uk/info/200202/performance_and_spending/3233/government_procurement_cards,23-Jul-19,Housing & Communities,HIGHFIELD HOUSE HO,Neighbourhoods,191.67,Operational Services,1920Jul_PC00362
Sandwell Metropolitan Borough Council,http://www.sandwell.gov.uk/info/200202/performance_and_spending/3233/government_procurement_cards,23-Jul-19,Resources (Inc SIU),Amazon.co.uk MH0D57A14,Assistant Chief Executive (Excl SIU),27.13,Printing Stationery&Gen Office,1920Jul_PC00363
Sandwell Metropolitan Borough Council,http://www.sandwell.gov.uk/info/200202/performance_and_spending/3233/government_procurement_cards,23-Jul-19,Adult Social Care Health and Wellbeing - Total,AMZNMKTPLACE AMAZON.CO,Total Adult Social Care,22.04,Printing Stationery&Gen Office,1920Jul_PC00364
Sandwell Metropolitan Borough Council,http://www.sandwell.gov.uk/info/200202/performance_and_spending/3233/government_procurement_cards,23-Jul-19,Childrens Services,OFFICE DEPOT UK,Childrens Services,172.04,Printing Stationery&Gen Office,1920Jul_PC00365
Sandwell Metropolitan Borough Council,http://www.sandwell.gov.uk/info/200202/performance_and_spending/3233/government_procurement_cards,23-Jul-19,Childrens Services,OFFICE DEPOT UK,Childrens Services,24.7,Printing Stationery&Gen Office,1920Jul_PC00366
Sandwell Metropolitan Borough Council,http://www.sandwell.gov.uk/info/200202/performance_and_spending/3233/government_procurement_cards,23-Jul-19,Housing & Communities,OFFICE DEPOT UK,Neighbourhoods,30.98,Printing Stationery&Gen Office,1920Jul_PC00367
Sandwell Metropolitan Borough Council,http://www.sandwell.gov.uk/info/200202/performance_and_spending/3233/government_procurement_cards,23-Jul-19,Housing & Communities,OFFICE DEPOT UK,Neighbourhoods,110.52,Printing Stationery&Gen Office,1920Jul_PC00368
Sandwell Metropolitan Borough Council,http://www.sandwell.gov.uk/info/200202/performance_and_spending/3233/government_procurement_cards,23-Jul-19,Housing & Communities,SANDWELL M.B.C.,Neighbourhoods,21,Civic Events,1920Jul_PC00369
Sandwell Metropolitan Borough Council,http://www.sandwell.gov.uk/info/200202/performance_and_spending/3233/government_procurement_cards,23-Jul-19,Housing & Communities,POUNDLAND LTD 1729,Neighbourhoods,36,Printing Stationery&Gen Office,1920Jul_PC00370
Sandwell Metropolitan Borough Council,http://www.sandwell.gov.uk/info/200202/performance_and_spending/3233/government_procurement_cards,23-Jul-19,Individual School Budgets With Inclusion,AMZNMktplace,Individual School Budgets With Inclusion,19.99,Printing Stationery&Gen Office,1920Jul_PC00371
Sandwell Metropolitan Borough Council,http://www.sandwell.gov.uk/info/200202/performance_and_spending/3233/government_procurement_cards,23-Jul-19,Individual School Budgets With Inclusion,AMZNMktplace,Individual School Budgets With Inclusion,13.32,Printing Stationery&Gen Office,1920Jul_PC00372
Sandwell Metropolitan Borough Council,http://www.sandwell.gov.uk/info/200202/performance_and_spending/3233/government_procurement_cards,23-Jul-19,Adult Social Care Health and Wellbeing - Total,HIGHSTREETVOUCHERS,Total Adult Social Care,100,Materials & Consumables,1920Jul_PC00373
Sandwell Metropolitan Borough Council,http://www.sandwell.gov.uk/info/200202/performance_and_spending/3233/government_procurement_cards,23-Jul-19,Individual School Budgets With Inclusion,Amazon.co.uk MH9K85TZ4,Individual School Budgets With Inclusion,10.02,Printing Stationery&Gen Office,1920Jul_PC00374
Sandwell Metropolitan Borough Council,http://www.sandwell.gov.uk/info/200202/performance_and_spending/3233/government_procurement_cards,24-Jul-19,Resources (Inc SIU),AMZNMKTPLACE AMAZON.CO,Assistant Chief Executive (Excl SIU),53.3,Fixtures & Fittings,1920Jul_PC00375
Sandwell Metropolitan Borough Council,http://www.sandwell.gov.uk/info/200202/performance_and_spending/3233/government_procurement_cards,24-Jul-19,Housing & Communities,PREMIER INN,Neighbourhoods,439.17,Operational Services,1920Jul_PC00376
Sandwell Metropolitan Borough Council,http://www.sandwell.gov.uk/info/200202/performance_and_spending/3233/government_procurement_cards,24-Jul-19,Resources (Inc SIU),Amazon.co.uk MH2ZU9ER4,Assistant Chief Executive (Excl SIU),17.91,ICT,1920Jul_PC00377
Sandwell Metropolitan Borough Council,http://www.sandwell.gov.uk/info/200202/performance_and_spending/3233/government_procurement_cards,24-Jul-19,Housing & Communities,AMZNMktplace,Neighbourhoods,15.39,Materials & Consumables,1920Jul_PC00378
Sandwell Metropolitan Borough Council,http://www.sandwell.gov.uk/info/200202/performance_and_spending/3233/government_procurement_cards,24-Jul-19,Childrens Services,HOME BARGAINS,Childrens Services,11.8,Materials & Consumables,1920Jul_PC00379
Sandwell Metropolitan Borough Council,http://www.sandwell.gov.uk/info/200202/performance_and_spending/3233/government_procurement_cards,24-Jul-19,Housing & Communities,AMZNMktplace,Neighbourhoods,90.67,Equipment & Furniture,1920Jul_PC00380
Sandwell Metropolitan Borough Council,http://www.sandwell.gov.uk/info/200202/performance_and_spending/3233/government_procurement_cards,24-Jul-19,Housing & Communities,AMZNMktplace,Neighbourhoods,141.65,Materials & Consumables,1920Jul_PC00381
Sandwell Metropolitan Borough Council,http://www.sandwell.gov.uk/info/200202/performance_and_spending/3233/government_procurement_cards,24-Jul-19,Housing & Communities,AMZNMktplace,Neighbourhoods,45.83,Equipment & Furniture,1920Jul_PC00382
Sandwell Metropolitan Borough Council,http://www.sandwell.gov.uk/info/200202/performance_and_spending/3233/government_procurement_cards,24-Jul-19,Childrens Services,PAPERSTONE LIMITED,Childrens Services,32.42,Printing Stationery&Gen Office,1920Jul_PC00383
Sandwell Metropolitan Borough Council,http://www.sandwell.gov.uk/info/200202/performance_and_spending/3233/government_procurement_cards,24-Jul-19,Housing & Communities,B & Q 1276,Neighbourhoods,8.19,R& M - Building Maint&Imp.,1920Jul_PC00384
Sandwell Metropolitan Borough Council,http://www.sandwell.gov.uk/info/200202/performance_and_spending/3233/government_procurement_cards,24-Jul-19,Childrens Services,3WM LTD - VT,Childrens Services,194.52,Materials & Consumables,1920Jul_PC00385
Sandwell Metropolitan Borough Council,http://www.sandwell.gov.uk/info/200202/performance_and_spending/3233/government_procurement_cards,24-Jul-19,Childrens Services,IIP AWARDS 2018,Childrens Services,150,Employee Expenses,1920Jul_PC00386
Sandwell Metropolitan Borough Council,http://www.sandwell.gov.uk/info/200202/performance_and_spending/3233/government_procurement_cards,24-Jul-19,Housing & Communities,ARGOS RETAIL GROUP,Neighbourhoods,12.49,Equipment & Furniture,1920Jul_PC00387
Sandwell Metropolitan Borough Council,http://www.sandwell.gov.uk/info/200202/performance_and_spending/3233/government_procurement_cards,24-Jul-19,Housing & Communities,WWW.VICARAGELODGE.COM,Neighbourhoods,37.5,Operational Services,1920Jul_PC00388
Sandwell Metropolitan Borough Council,http://www.sandwell.gov.uk/info/200202/performance_and_spending/3233/government_procurement_cards,24-Jul-19,Total Housing Revenue Account,Amazon.co.uk MH70T8A64,Total Housing Revenue Account,25.29,Materials & Consumables,1920Jul_PC00389
Sandwell Metropolitan Borough Council,http://www.sandwell.gov.uk/info/200202/performance_and_spending/3233/government_procurement_cards,24-Jul-19,Resources (Inc SIU),OFFICE DEPOT UK,Strategic Investment Unit,3.36,Printing Stationery&Gen Office,1920Jul_PC00390
Sandwell Metropolitan Borough Council,http://www.sandwell.gov.uk/info/200202/performance_and_spending/3233/government_procurement_cards,24-Jul-19,Childrens Services,OFFICE DEPOT UK,Childrens Services,11.7,Printing Stationery&Gen Office,1920Jul_PC00391
Sandwell Metropolitan Borough Council,http://www.sandwell.gov.uk/info/200202/performance_and_spending/3233/government_procurement_cards,24-Jul-19,Resources (Inc SIU),HMCOURTS-SERVICE.G,Assistant Chief Executive (Excl SIU),276,Council Tax,1920Jul_PC00392
Sandwell Metropolitan Borough Council,http://www.sandwell.gov.uk/info/200202/performance_and_spending/3233/government_procurement_cards,24-Jul-19,Housing & Communities,WM MORRISONS STORE,Neighbourhoods,4.5,Catering Provisions,1920Jul_PC00393
Sandwell Metropolitan Borough Council,http://www.sandwell.gov.uk/info/200202/performance_and_spending/3233/government_procurement_cards,24-Jul-19,Childrens Services,AMZNMKTPLACE AMAZON.CO,Childrens Services,8.99,Materials & Consumables,1920Jul_PC00394
Sandwell Metropolitan Borough Council,http://www.sandwell.gov.uk/info/200202/performance_and_spending/3233/government_procurement_cards,24-Jul-19,Housing & Communities,AMZNMktplace,Neighbourhoods,18.44,Materials & Consumables,1920Jul_PC00395
Sandwell Metropolitan Borough Council,http://www.sandwell.gov.uk/info/200202/performance_and_spending/3233/government_procurement_cards,25-Jul-19,Total Housing Revenue Account,INTUMESCENT SYSTEM,Total Housing Revenue Account,108.7,Materials & Consumables,1920Jul_PC00396
Sandwell Metropolitan Borough Council,http://www.sandwell.gov.uk/info/200202/performance_and_spending/3233/government_procurement_cards,25-Jul-19,Childrens Services,AMZNMKTPLACE AMAZON.CO,Childrens Services,19.99,Materials & Consumables,1920Jul_PC00397
Sandwell Metropolitan Borough Council,http://www.sandwell.gov.uk/info/200202/performance_and_spending/3233/government_procurement_cards,25-Jul-19,Childrens Services,WILKO RETAIL LIMIT,Childrens Services,-41.67,Catering Equipment,1920Jul_PC00398
Sandwell Metropolitan Borough Council,http://www.sandwell.gov.uk/info/200202/performance_and_spending/3233/government_procurement_cards,25-Jul-19,Regeneration & Growth,WWW.DESIGNOFFICESUPPLI,Regeneration And The Economy,87.2,Equipment & Furniture,1920Jul_PC00399
Sandwell Metropolitan Borough Council,http://www.sandwell.gov.uk/info/200202/performance_and_spending/3233/government_procurement_cards,25-Jul-19,Total Housing Revenue Account,GOVERNMENT EVENTS,Total Housing Revenue Account,322.15,Conference Expenses,1920Jul_PC00400
Sandwell Metropolitan Borough Council,http://www.sandwell.gov.uk/info/200202/performance_and_spending/3233/government_procurement_cards,25-Jul-19,Housing & Communities,POUNDLAND LTD 1729,Neighbourhoods,19.33,Catering Provisions,1920Jul_PC00401
Sandwell Metropolitan Borough Council,http://www.sandwell.gov.uk/info/200202/performance_and_spending/3233/government_procurement_cards,25-Jul-19,Housing & Communities,Amazon.co.uk MH04O8ET4,Neighbourhoods,20.82,Grounds Maint&Improvements,1920Jul_PC00402
Sandwell Metropolitan Borough Council,http://www.sandwell.gov.uk/info/200202/performance_and_spending/3233/government_procurement_cards,25-Jul-19,Housing & Communities,Amazon.co.uk MH6NV2EJ4,Neighbourhoods,20.82,Grounds Maint&Improvements,1920Jul_PC00403
Sandwell Metropolitan Borough Council,http://www.sandwell.gov.uk/info/200202/performance_and_spending/3233/government_procurement_cards,25-Jul-19,Total Housing Revenue Account,SCREWFIX DIRECT LT,Total Housing Revenue Account,2.74,Materials & Consumables,1920Jul_PC00404
Sandwell Metropolitan Borough Council,http://www.sandwell.gov.uk/info/200202/performance_and_spending/3233/government_procurement_cards,25-Jul-19,Total Housing Revenue Account,AMZNMktplace,Total Housing Revenue Account,31.5,Materials & Consumables,1920Jul_PC00405
Sandwell Metropolitan Borough Council,http://www.sandwell.gov.uk/info/200202/performance_and_spending/3233/government_procurement_cards,25-Jul-19,Childrens Services,ASDA STORES,Childrens Services,7.73,Catering Provisions,1920Jul_PC00406
Sandwell Metropolitan Borough Council,http://www.sandwell.gov.uk/info/200202/performance_and_spending/3233/government_procurement_cards,25-Jul-19,Adult Social Care Health and Wellbeing - Total,OFFICE DEPOT UK,Total Adult Social Care,55,Printing Stationery&Gen Office,1920Jul_PC00407
Sandwell Metropolitan Borough Council,http://www.sandwell.gov.uk/info/200202/performance_and_spending/3233/government_procurement_cards,25-Jul-19,Housing & Communities,SANDWELL M.B.C.,Neighbourhoods,89,Licences&Test Fees,1920Jul_PC00408
Sandwell Metropolitan Borough Council,http://www.sandwell.gov.uk/info/200202/performance_and_spending/3233/government_procurement_cards,25-Jul-19,Housing & Communities,OFFICE DEPOT UK,Neighbourhoods,159.66,Printing Stationery&Gen Office,1920Jul_PC00409
Sandwell Metropolitan Borough Council,http://www.sandwell.gov.uk/info/200202/performance_and_spending/3233/government_procurement_cards,25-Jul-19,Regeneration & Growth,FUTURE GARMENTS LTD,Regeneration And The Economy,16.2,Protective Clothing&Uniforms,1920Jul_PC00410
Sandwell Metropolitan Borough Council,http://www.sandwell.gov.uk/info/200202/performance_and_spending/3233/government_procurement_cards,26-Jul-19,Resources (Inc SIU),WWW.SIMPLYBE.CO.UK,Assistant Chief Executive (Excl SIU),3.5,Protective Clothing&Uniforms,1920Jul_PC00411
Sandwell Metropolitan Borough Council,http://www.sandwell.gov.uk/info/200202/performance_and_spending/3233/government_procurement_cards,26-Jul-19,Resources (Inc SIU),WWW.SIMPLYBE.CO.UK,Assistant Chief Executive (Excl SIU),5.1,Protective Clothing&Uniforms,1920Jul_PC00412
Sandwell Metropolitan Borough Council,http://www.sandwell.gov.uk/info/200202/performance_and_spending/3233/government_procurement_cards,26-Jul-19,Resources (Inc SIU),WWW.SIMPLYBE.CO.UK,Assistant Chief Executive (Excl SIU),5.1,Protective Clothing&Uniforms,1920Jul_PC00413
Sandwell Metropolitan Borough Council,http://www.sandwell.gov.uk/info/200202/performance_and_spending/3233/government_procurement_cards,26-Jul-19,Resources (Inc SIU),WWW.SIMPLYBE.CO.UK,Assistant Chief Executive (Excl SIU),8.1,Protective Clothing&Uniforms,1920Jul_PC00414
Sandwell Metropolitan Borough Council,http://www.sandwell.gov.uk/info/200202/performance_and_spending/3233/government_procurement_cards,26-Jul-19,Housing & Communities,EBUYER (UK) LTD,Neighbourhoods,173.7,R& M - Building Maint&Imp.,1920Jul_PC00415
Sandwell Metropolitan Borough Council,http://www.sandwell.gov.uk/info/200202/performance_and_spending/3233/government_procurement_cards,26-Jul-19,Resources (Inc SIU),AMZNMktplace,Assistant Chief Executive (Excl SIU),169.11,ICT,1920Jul_PC00416
Sandwell Metropolitan Borough Council,http://www.sandwell.gov.uk/info/200202/performance_and_spending/3233/government_procurement_cards,26-Jul-19,Housing & Communities,AMZNMktplace,Neighbourhoods,14.84,Equipment & Furniture,1920Jul_PC00417
Sandwell Metropolitan Borough Council,http://www.sandwell.gov.uk/info/200202/performance_and_spending/3233/government_procurement_cards,26-Jul-19,Childrens Services,PAYMENT,Childrens Services,260,Ind. Emp Exp-Staff Dev&Training,1920Jul_PC00418
Sandwell Metropolitan Borough Council,http://www.sandwell.gov.uk/info/200202/performance_and_spending/3233/government_procurement_cards,26-Jul-19,Childrens Services,Trainline.com,Childrens Services,233.72,Public Transport,1920Jul_PC00419
Sandwell Metropolitan Borough Council,http://www.sandwell.gov.uk/info/200202/performance_and_spending/3233/government_procurement_cards,26-Jul-19,Total Housing Revenue Account,OFFICE DEPOT UK,Total Housing Revenue Account,91.59,Printing Stationery&Gen Office,1920Jul_PC00420
Sandwell Metropolitan Borough Council,http://www.sandwell.gov.uk/info/200202/performance_and_spending/3233/government_procurement_cards,26-Jul-19,Resources (Inc SIU),OFFICE DEPOT UK,Assistant Chief Executive (Excl SIU),36.88,Printing Stationery&Gen Office,1920Jul_PC00421
Sandwell Metropolitan Borough Council,http://www.sandwell.gov.uk/info/200202/performance_and_spending/3233/government_procurement_cards,26-Jul-19,Total Housing Revenue Account,OFFICE DEPOT UK,Total Housing Revenue Account,22.08,Printing Stationery&Gen Office,1920Jul_PC00422
Sandwell Metropolitan Borough Council,http://www.sandwell.gov.uk/info/200202/performance_and_spending/3233/government_procurement_cards,26-Jul-19,Adult Social Care Health and Wellbeing - Total,OFFICE DEPOT UK,Total Adult Social Care,59.46,Printing Stationery&Gen Office,1920Jul_PC00423
Sandwell Metropolitan Borough Council,http://www.sandwell.gov.uk/info/200202/performance_and_spending/3233/government_procurement_cards,26-Jul-19,Total Housing Revenue Account,THE POST OFFICE,Total Housing Revenue Account,350,"Postages, Carriage & Courier Services",1920Jul_PC00424
Sandwell Metropolitan Borough Council,http://www.sandwell.gov.uk/info/200202/performance_and_spending/3233/government_procurement_cards,26-Jul-19,Regeneration & Growth,OFFICE DEPOT UK,Regeneration And The Economy,136.21,Printing Stationery&Gen Office,1920Jul_PC00425
Sandwell Metropolitan Borough Council,http://www.sandwell.gov.uk/info/200202/performance_and_spending/3233/government_procurement_cards,29-Jul-19,Housing & Communities,PREMIER INN,Neighbourhoods,450.83,Operational Services,1920Jul_PC00426
Sandwell Metropolitan Borough Council,http://www.sandwell.gov.uk/info/200202/performance_and_spending/3233/government_procurement_cards,29-Jul-19,Housing & Communities,PREMIER INN,Neighbourhoods,854.17,Operational Services,1920Jul_PC00427
Sandwell Metropolitan Borough Council,http://www.sandwell.gov.uk/info/200202/performance_and_spending/3233/government_procurement_cards,29-Jul-19,Housing & Communities,PREMIER INN,Neighbourhoods,233.75,Operational Services,1920Jul_PC00428
Sandwell Metropolitan Borough Council,http://www.sandwell.gov.uk/info/200202/performance_and_spending/3233/government_procurement_cards,29-Jul-19,Individual School Budgets With Inclusion,SCREWFIX DIRECT,Individual School Budgets With Inclusion,51.65,Repairs & Maintenance,1920Jul_PC00429
Sandwell Metropolitan Borough Council,http://www.sandwell.gov.uk/info/200202/performance_and_spending/3233/government_procurement_cards,29-Jul-19,Adult Social Care Health and Wellbeing - Total,GODADDY.COM EUROPE,Public Health,63.54,Professional Services External,1920Jul_PC00430
Sandwell Metropolitan Borough Council,http://www.sandwell.gov.uk/info/200202/performance_and_spending/3233/government_procurement_cards,29-Jul-19,Adult Social Care Health and Wellbeing - Total,AMZNMKTPLACE AMAZON.CO,Public Health,20.81,Printing Stationery&Gen Office,1920Jul_PC00431
Sandwell Metropolitan Borough Council,http://www.sandwell.gov.uk/info/200202/performance_and_spending/3233/government_procurement_cards,29-Jul-19,Housing & Communities,Amazon Prime,Neighbourhoods,-6.66,Fixtures & Fittings,1920Jul_PC00432
Sandwell Metropolitan Borough Council,http://www.sandwell.gov.uk/info/200202/performance_and_spending/3233/government_procurement_cards,29-Jul-19,Adult Social Care Health and Wellbeing - Total,AMZNMktplace,Total Adult Social Care,42.64,Ind. Emp Exp-Emp. Welfare,1920Jul_PC00433
Sandwell Metropolitan Borough Council,http://www.sandwell.gov.uk/info/200202/performance_and_spending/3233/government_procurement_cards,29-Jul-19,Housing & Communities,THE EDGBASTON PALA,Neighbourhoods,700,Operational Services,1920Jul_PC00434
Sandwell Metropolitan Borough Council,http://www.sandwell.gov.uk/info/200202/performance_and_spending/3233/government_procurement_cards,29-Jul-19,Housing & Communities,ARGOS OLDBURY,Neighbourhoods,33.31,Operational Services,1920Jul_PC00435
Sandwell Metropolitan Borough Council,http://www.sandwell.gov.uk/info/200202/performance_and_spending/3233/government_procurement_cards,29-Jul-19,Childrens Services Capital,SMS CONNECTIONS,Childrens Services Capital,2071.03,R& M - Building Maint&Imp.,1920Jul_PC00436
Sandwell Metropolitan Borough Council,http://www.sandwell.gov.uk/info/200202/performance_and_spending/3233/government_procurement_cards,29-Jul-19,Housing & Communities,HIGHFIELD HOUSE HO,Neighbourhoods,45.83,Operational Services,1920Jul_PC00437
Sandwell Metropolitan Borough Council,http://www.sandwell.gov.uk/info/200202/performance_and_spending/3233/government_procurement_cards,29-Jul-19,Housing & Communities,HIGHFIELD HOUSE HO,Neighbourhoods,320.83,Operational Services,1920Jul_PC00438
Sandwell Metropolitan Borough Council,http://www.sandwell.gov.uk/info/200202/performance_and_spending/3233/government_procurement_cards,29-Jul-19,Housing & Communities,HIGHFIELD HOUSE HO,Neighbourhoods,262.5,Operational Services,1920Jul_PC00439
Sandwell Metropolitan Borough Council,http://www.sandwell.gov.uk/info/200202/performance_and_spending/3233/government_procurement_cards,29-Jul-19,Resources (Inc SIU),OFFICE DEPOT UK,Assistant Chief Executive (Excl SIU),141.53,Printing Stationery&Gen Office,1920Jul_PC00440
Sandwell Metropolitan Borough Council,http://www.sandwell.gov.uk/info/200202/performance_and_spending/3233/government_procurement_cards,29-Jul-19,Childrens Services,OFFICE DEPOT UK,Childrens Services,54.2,Printing Stationery&Gen Office,1920Jul_PC00441
Sandwell Metropolitan Borough Council,http://www.sandwell.gov.uk/info/200202/performance_and_spending/3233/government_procurement_cards,29-Jul-19,Housing & Communities,Trainline,Neighbourhoods,129.73,Public Transport,1920Jul_PC00442
Sandwell Metropolitan Borough Council,http://www.sandwell.gov.uk/info/200202/performance_and_spending/3233/government_procurement_cards,29-Jul-19,Housing & Communities,BAKER ROSS,Neighbourhoods,94.27,Civic Events,1920Jul_PC00443
Sandwell Metropolitan Borough Council,http://www.sandwell.gov.uk/info/200202/performance_and_spending/3233/government_procurement_cards,29-Jul-19,Adult Social Care Health and Wellbeing - Total,OFFICE DEPOT UK,Total Adult Social Care,31.24,Printing Stationery&Gen Office,1920Jul_PC00444
Sandwell Metropolitan Borough Council,http://www.sandwell.gov.uk/info/200202/performance_and_spending/3233/government_procurement_cards,29-Jul-19,Housing & Communities,Amazon.co.uk MH66T5PG4,Neighbourhoods,8.32,Printing Stationery&Gen Office,1920Jul_PC00445
Sandwell Metropolitan Borough Council,http://www.sandwell.gov.uk/info/200202/performance_and_spending/3233/government_procurement_cards,29-Jul-19,Housing & Communities,AMZNMktplace,Neighbourhoods,6.07,Materials & Consumables,1920Jul_PC00446
Sandwell Metropolitan Borough Council,http://www.sandwell.gov.uk/info/200202/performance_and_spending/3233/government_procurement_cards,29-Jul-19,Adult Social Care Health and Wellbeing - Total,Amazon.co.uk MH1Y23G24,Total Adult Social Care,25.25,ICT,1920Jul_PC00447
Sandwell Metropolitan Borough Council,http://www.sandwell.gov.uk/info/200202/performance_and_spending/3233/government_procurement_cards,30-Jul-19,Resources (Inc SIU),MATALAN.CO.UK,Assistant Chief Executive (Excl SIU),16,Protective Clothing&Uniforms,1920Jul_PC00448
Sandwell Metropolitan Borough Council,http://www.sandwell.gov.uk/info/200202/performance_and_spending/3233/government_procurement_cards,30-Jul-19,Childrens Services,W O JONES PRINTERS LIM,Childrens Services,415,Materials & Consumables,1920Jul_PC00449
Sandwell Metropolitan Borough Council,http://www.sandwell.gov.uk/info/200202/performance_and_spending/3233/government_procurement_cards,30-Jul-19,Childrens Services,HOME BARGAINS,Childrens Services,1.65,Materials & Consumables,1920Jul_PC00450
Sandwell Metropolitan Borough Council,http://www.sandwell.gov.uk/info/200202/performance_and_spending/3233/government_procurement_cards,30-Jul-19,Total Housing Revenue Account,AMZNMktplace,Total Housing Revenue Account,70.32,Materials & Consumables,1920Jul_PC00451
Sandwell Metropolitan Borough Council,http://www.sandwell.gov.uk/info/200202/performance_and_spending/3233/government_procurement_cards,30-Jul-19,Childrens Services,ASDA STORES LTD 5865,Childrens Services,6.47,Materials & Consumables,1920Jul_PC00452
Sandwell Metropolitan Borough Council,http://www.sandwell.gov.uk/info/200202/performance_and_spending/3233/government_procurement_cards,30-Jul-19,Adult Social Care Health and Wellbeing - Total,PAYPAL  JUSTCAREGRO,Total Adult Social Care,12.49,Equipment & Furniture,1920Jul_PC00453
Sandwell Metropolitan Borough Council,http://www.sandwell.gov.uk/info/200202/performance_and_spending/3233/government_procurement_cards,30-Jul-19,Housing & Communities,WWW.VICARAGELODGE.COM,Neighbourhoods,166.67,Operational Services,1920Jul_PC00454
Sandwell Metropolitan Borough Council,http://www.sandwell.gov.uk/info/200202/performance_and_spending/3233/government_procurement_cards,30-Jul-19,Housing & Communities,WWW.VICARAGELODGE.COM,Neighbourhoods,160,Operational Services,1920Jul_PC00455
Sandwell Metropolitan Borough Council,http://www.sandwell.gov.uk/info/200202/performance_and_spending/3233/government_procurement_cards,30-Jul-19,Housing & Communities,Amazon.co.uk MH1NA1X24,Neighbourhoods,13.8,Materials & Consumables,1920Jul_PC00456
Sandwell Metropolitan Borough Council,http://www.sandwell.gov.uk/info/200202/performance_and_spending/3233/government_procurement_cards,30-Jul-19,Housing & Communities,TRAVELODGE,Neighbourhoods,45.83,Operational Services,1920Jul_PC00457
Sandwell Metropolitan Borough Council,http://www.sandwell.gov.uk/info/200202/performance_and_spending/3233/government_procurement_cards,30-Jul-19,Housing & Communities,TRAVELODGE,Neighbourhoods,36.67,Operational Services,1920Jul_PC00458
Sandwell Metropolitan Borough Council,http://www.sandwell.gov.uk/info/200202/performance_and_spending/3233/government_procurement_cards,30-Jul-19,Adult Social Care Health and Wellbeing - Total,Trainline.com,Public Health,12,Public Transport,1920Jul_PC00459
Sandwell Metropolitan Borough Council,http://www.sandwell.gov.uk/info/200202/performance_and_spending/3233/government_procurement_cards,31-Jul-19,Housing & Communities,PREMIER INN,Neighbourhoods,136.25,Operational Services,1920Jul_PC00460
Sandwell Metropolitan Borough Council,http://www.sandwell.gov.uk/info/200202/performance_and_spending/3233/government_procurement_cards,31-Jul-19,Housing & Communities,PREMIER INN,Neighbourhoods,145.83,Operational Services,1920Jul_PC00461
Sandwell Metropolitan Borough Council,http://www.sandwell.gov.uk/info/200202/performance_and_spending/3233/government_procurement_cards,31-Jul-19,Housing & Communities,PREMIER INN,Neighbourhoods,160.83,Operational Services,1920Jul_PC00462
Sandwell Metropolitan Borough Council,http://www.sandwell.gov.uk/info/200202/performance_and_spending/3233/government_procurement_cards,31-Jul-19,Housing & Communities,PREMIER INN,Neighbourhoods,125,Operational Services,1920Jul_PC00463
Sandwell Metropolitan Borough Council,http://www.sandwell.gov.uk/info/200202/performance_and_spending/3233/government_procurement_cards,31-Jul-19,Housing & Communities,PREMIER INN,Neighbourhoods,195.83,Operational Services,1920Jul_PC00464
Sandwell Metropolitan Borough Council,http://www.sandwell.gov.uk/info/200202/performance_and_spending/3233/government_procurement_cards,31-Jul-19,Housing & Communities,PREMIER INN,Neighbourhoods,130,Operational Services,1920Jul_PC00465
Sandwell Metropolitan Borough Council,http://www.sandwell.gov.uk/info/200202/performance_and_spending/3233/government_procurement_cards,31-Jul-19,Childrens Services,ASDA STORES LTD 5865,Childrens Services,7.08,Materials & Consumables,1920Jul_PC00466
Sandwell Metropolitan Borough Council,http://www.sandwell.gov.uk/info/200202/performance_and_spending/3233/government_procurement_cards,31-Jul-19,Housing & Communities,POUNDLAND LTD 1576,Neighbourhoods,30.83,Civic Events,1920Jul_PC00467
Sandwell Metropolitan Borough Council,http://www.sandwell.gov.uk/info/200202/performance_and_spending/3233/government_procurement_cards,31-Jul-19,Housing & Communities,LIDL GB GREAT BRIDGE,Neighbourhoods,8.29,Civic Events,1920Jul_PC00468
Sandwell Metropolitan Borough Council,http://www.sandwell.gov.uk/info/200202/performance_and_spending/3233/government_procurement_cards,31-Jul-19,Housing & Communities,WWW.VICARAGELODGE.COM,Neighbourhoods,208.33,Operational Services,1920Jul_PC00469
Sandwell Metropolitan Borough Council,http://www.sandwell.gov.uk/info/200202/performance_and_spending/3233/government_procurement_cards,31-Jul-19,Housing & Communities,WWW.BEMYBEAR.COM,Neighbourhoods,59.79,Civic Events,1920Jul_PC00470
Sandwell Metropolitan Borough Council,http://www.sandwell.gov.uk/info/200202/performance_and_spending/3233/government_procurement_cards,31-Jul-19,Resources (Inc SIU),Amazon.co.uk MH33Q8XC4,Assistant Chief Executive (Excl SIU),324.97,ICT,1920Jul_PC00471
Sandwell Metropolitan Borough Council,http://www.sandwell.gov.uk/info/200202/performance_and_spending/3233/government_procurement_cards,31-Jul-19,Housing & Communities,TRAVELODGE,Neighbourhoods,40,Operational Services,1920Jul_PC00472
Sandwell Metropolitan Borough Council,http://www.sandwell.gov.uk/info/200202/performance_and_spending/3233/government_procurement_cards,31-Jul-19,Housing & Communities,TRAVELODGE,Neighbourhoods,41.67,Operational Services,1920Jul_PC00473
Sandwell Metropolitan Borough Council,http://www.sandwell.gov.uk/info/200202/performance_and_spending/3233/government_procurement_cards,31-Jul-19,Housing & Communities,TRAVELODGE,Neighbourhoods,40.83,Operational Services,1920Jul_PC00474
Sandwell Metropolitan Borough Council,http://www.sandwell.gov.uk/info/200202/performance_and_spending/3233/government_procurement_cards,31-Jul-19,Resources (Inc SIU),HMCOURTS-SERVICE.G,Assistant Chief Executive (Excl SIU),44,NNDR,1920Jul_PC00475
Sandwell Metropolitan Borough Council,http://www.sandwell.gov.uk/info/200202/performance_and_spending/3233/government_procurement_cards,31-Jul-19,Adult Social Care Health and Wellbeing - Total,WEST COAST TRAINS,Public Health,3.5,Public Transport,1920Jul_PC00476
Sandwell Metropolitan Borough Council,http://www.sandwell.gov.uk/info/200202/performance_and_spending/3233/government_procurement_cards,31-Jul-19,Housing & Communities,OFFICE DEPOT UK,Neighbourhoods,55.1,Printing Stationery&Gen Office,1920Jul_PC00477
Sandwell Metropolitan Borough Council,http://www.sandwell.gov.uk/info/200202/performance_and_spending/3233/government_procurement_cards,31-Jul-19,Housing & Communities,OFFICE DEPOT UK,Neighbourhoods,59.53,Printing Stationery&Gen Office,1920Jul_PC00478
Sandwell Metropolitan Borough Council,http://www.sandwell.gov.uk/info/200202/performance_and_spending/3233/government_procurement_cards,01-Aug-19,Housing & Communities,PREMIER INN,Neighbourhoods,149.17,Operational Services,1920Jul_PC00479
Sandwell Metropolitan Borough Council,http://www.sandwell.gov.uk/info/200202/performance_and_spending/3233/government_procurement_cards,01-Aug-19,Housing & Communities,PREMIER INN,Neighbourhoods,147.5,Operational Services,1920Jul_PC00480
Sandwell Metropolitan Borough Council,http://www.sandwell.gov.uk/info/200202/performance_and_spending/3233/government_procurement_cards,01-Aug-19,Resources (Inc SIU),WWW.AOSONLINE.CO.UK,Assistant Chief Executive (Excl SIU),7.45,Printing Stationery&Gen Office,1920Jul_PC00481
Sandwell Metropolitan Borough Council,http://www.sandwell.gov.uk/info/200202/performance_and_spending/3233/government_procurement_cards,01-Aug-19,Resources (Inc SIU),Amazon.co.uk MH0D82MI4,Assistant Chief Executive (Excl SIU),124.99,ICT,1920Jul_PC00482
Sandwell Metropolitan Borough Council,http://www.sandwell.gov.uk/info/200202/performance_and_spending/3233/government_procurement_cards,01-Aug-19,Total Housing Revenue Account,AMZNMktplace,Total Housing Revenue Account,7.49,Ind. Emp Exp-Emp. Welfare,1920Jul_PC00483
Sandwell Metropolitan Borough Council,http://www.sandwell.gov.uk/info/200202/performance_and_spending/3233/government_procurement_cards,01-Aug-19,Adult Social Care Health and Wellbeing - Total,PROARK UK HOTELS LTD O,Total Adult Social Care,875,Hire of Facilities,1920Jul_PC00484
Sandwell Metropolitan Borough Council,http://www.sandwell.gov.uk/info/200202/performance_and_spending/3233/government_procurement_cards,01-Aug-19,Resources (Inc SIU),AMZNMktplace,Assistant Chief Executive (Excl SIU),14.98,Printing Stationery&Gen Office,1920Jul_PC00485
Sandwell Metropolitan Borough Council,http://www.sandwell.gov.uk/info/200202/performance_and_spending/3233/government_procurement_cards,01-Aug-19,Housing & Communities,TRAVELODGE,Neighbourhoods,60.83,Operational Services,1920Jul_PC00486
Sandwell Metropolitan Borough Council,http://www.sandwell.gov.uk/info/200202/performance_and_spending/3233/government_procurement_cards,01-Aug-19,Childrens Services,AMZNMktplace,Childrens Services,23.23,Printing Stationery&Gen Office,1920Jul_PC00487
Sandwell Metropolitan Borough Council,http://www.sandwell.gov.uk/info/200202/performance_and_spending/3233/government_procurement_cards,01-Aug-19,Childrens Services,Amazon.co.uk MH09V9MQ4,Childrens Services,25.85,Materials & Consumables,1920Jul_PC00488
Sandwell Metropolitan Borough Council,http://www.sandwell.gov.uk/info/200202/performance_and_spending/3233/government_procurement_cards,01-Aug-19,Adult Social Care Health and Wellbeing - Total,Amazon.co.uk MH2HZ0MI4,Total Adult Social Care,183.12,Equipment & Furniture,1920Jul_PC00489
Sandwell Metropolitan Borough Council,http://www.sandwell.gov.uk/info/200202/performance_and_spending/3233/government_procurement_cards,01-Aug-19,Resources (Inc SIU),AMZ Mamum Prime Day De,Assistant Chief Executive (Excl SIU),-4.15,Printing Stationery&Gen Office,1920Jul_PC00490
Sandwell Metropolitan Borough Council,http://www.sandwell.gov.uk/info/200202/performance_and_spending/3233/government_procurement_cards,02-Aug-19,Resources (Inc SIU),AMZNMKTPLACE AMAZON.CO,Assistant Chief Executive (Excl SIU),95.39,ICT,1920Jul_PC00491
Sandwell Metropolitan Borough Council,http://www.sandwell.gov.uk/info/200202/performance_and_spending/3233/government_procurement_cards,02-Aug-19,Housing & Communities,HIGHFIELD HOUSE HO,Neighbourhoods,191.67,Operational Services,1920Jul_PC00492
Sandwell Metropolitan Borough Council,http://www.sandwell.gov.uk/info/200202/performance_and_spending/3233/government_procurement_cards,02-Aug-19,Housing & Communities,HIGHFIELD HOUSE HO,Neighbourhoods,320.83,Operational Services,1920Jul_PC00493
Sandwell Metropolitan Borough Council,http://www.sandwell.gov.uk/info/200202/performance_and_spending/3233/government_procurement_cards,02-Aug-19,Housing & Communities,HIGHFIELD HOUSE HO,Neighbourhoods,262.5,Operational Services,1920Jul_PC00494
Sandwell Metropolitan Borough Council,http://www.sandwell.gov.uk/info/200202/performance_and_spending/3233/government_procurement_cards,02-Aug-19,Housing & Communities,SAINSBURYS SACAT0558,Neighbourhoods,7.46,Materials & Consumables,1920Jul_PC00495
Sandwell Metropolitan Borough Council,http://www.sandwell.gov.uk/info/200202/performance_and_spending/3233/government_procurement_cards,02-Aug-19,Housing & Communities,NATIONAL EXPRESS LIMIT,Neighbourhoods,59.79,Operational Services,1920Jul_PC00496
Sandwell Metropolitan Borough Council,http://www.sandwell.gov.uk/info/200202/performance_and_spending/3233/government_procurement_cards,02-Aug-19,Adult Social Care Health and Wellbeing - Total,Trainline.com,Public Health,84.25,Public Transport,1920Jul_PC00497
Sandwell Metropolitan Borough Council,http://www.sandwell.gov.uk/info/200202/performance_and_spending/3233/government_procurement_cards,02-Aug-19,Childrens Services,POST OFFICE COUNTER,Childrens Services,300,Printing Stationery&Gen Office,1920Jul_PC00498
Sandwell Metropolitan Borough Council,http://www.sandwell.gov.uk/info/200202/performance_and_spending/3233/government_procurement_cards,02-Aug-19,Resources (Inc SIU),WWW.STONEWALL.ORG.,Assistant Chief Executive (Excl SIU),276,Conference Expenses,1920Jul_PC00499
Sandwell Metropolitan Borough Council,http://www.sandwell.gov.uk/info/200202/performance_and_spending/3233/government_procurement_cards,02-Aug-19,Resources (Inc SIU),WWW.STONEWALL.ORG.,Assistant Chief Executive (Excl SIU),276,Conference Expenses,1920Jul_PC00500
Sandwell Metropolitan Borough Council,http://www.sandwell.gov.uk/info/200202/performance_and_spending/3233/government_procurement_cards,02-Aug-19,Resources (Inc SIU),WWW.STONEWALL.ORG.,Assistant Chief Executive (Excl SIU),276,Conference Expenses,1920Jul_PC00501
Sandwell Metropolitan Borough Council,http://www.sandwell.gov.uk/info/200202/performance_and_spending/3233/government_procurement_cards,02-Aug-19,Resources (Inc SIU),WWW.STONEWALL.ORG.,Assistant Chief Executive (Excl SIU),276,Conference Expenses,1920Jul_PC00502
Sandwell Metropolitan Borough Council,http://www.sandwell.gov.uk/info/200202/performance_and_spending/3233/government_procurement_cards,02-Aug-19,Childrens Services,OFFICE DEPOT UK,Childrens Services,208.24,Printing Stationery&Gen Office,1920Jul_PC00503
Sandwell Metropolitan Borough Council,http://www.sandwell.gov.uk/info/200202/performance_and_spending/3233/government_procurement_cards,02-Aug-19,Childrens Services,Amazon.co.uk MH16E8HW4,Childrens Services,15.17,Equipment & Furniture,1920Jul_PC00504
Sandwell Metropolitan Borough Council,http://www.sandwell.gov.uk/info/200202/performance_and_spending/3233/government_procurement_cards,05-Aug-19,Housing & Communities,PREMIER INN,Neighbourhoods,842.5,Operational Services,1920Aug_PC00001
Sandwell Metropolitan Borough Council,http://www.sandwell.gov.uk/info/200202/performance_and_spending/3233/government_procurement_cards,05-Aug-19,Housing & Communities,PREMIER INN,Neighbourhoods,421.25,Operational Services,1920Aug_PC00002
Sandwell Metropolitan Borough Council,http://www.sandwell.gov.uk/info/200202/performance_and_spending/3233/government_procurement_cards,05-Aug-19,Housing & Communities,AMZNMKTPLACE AMAZON.CO,Neighbourhoods,22.07,Equipment & Furniture,1920Aug_PC00003
Sandwell Metropolitan Borough Council,http://www.sandwell.gov.uk/info/200202/performance_and_spending/3233/government_procurement_cards,05-Aug-19,Housing & Communities,PREMIER INN,Neighbourhoods,377.5,Operational Services,1920Aug_PC00004
Sandwell Metropolitan Borough Council,http://www.sandwell.gov.uk/info/200202/performance_and_spending/3233/government_procurement_cards,05-Aug-19,Resources (Inc SIU),AMZNMKTPLACE AMAZON.CO,Assistant Chief Executive (Excl SIU),19.48,Materials & Consumables,1920Aug_PC00005
Sandwell Metropolitan Borough Council,http://www.sandwell.gov.uk/info/200202/performance_and_spending/3233/government_procurement_cards,05-Aug-19,Adult Social Care Health and Wellbeing - Total,PREMIER INN,Public Health,119,Conference Expenses,1920Aug_PC00006
Sandwell Metropolitan Borough Council,http://www.sandwell.gov.uk/info/200202/performance_and_spending/3233/government_procurement_cards,05-Aug-19,Adult Social Care Health and Wellbeing - Total,RAMADA INNS,Total Adult Social Care,833.33,Residential - Short Term,1920Aug_PC00007
Sandwell Metropolitan Borough Council,http://www.sandwell.gov.uk/info/200202/performance_and_spending/3233/government_procurement_cards,05-Aug-19,Housing & Communities,TRAVELODGE,Neighbourhoods,558.33,Operational Services,1920Aug_PC00008
Sandwell Metropolitan Borough Council,http://www.sandwell.gov.uk/info/200202/performance_and_spending/3233/government_procurement_cards,05-Aug-19,Housing & Communities,SAINSBURYS SACAT0558,Neighbourhoods,8.42,Materials & Consumables,1920Aug_PC00009
Sandwell Metropolitan Borough Council,http://www.sandwell.gov.uk/info/200202/performance_and_spending/3233/government_procurement_cards,05-Aug-19,Housing & Communities,TIMPSON LTD,Neighbourhoods,20,Equipment & Furniture,1920Aug_PC00010
Sandwell Metropolitan Borough Council,http://www.sandwell.gov.uk/info/200202/performance_and_spending/3233/government_procurement_cards,05-Aug-19,Housing & Communities,HIGHFIELD HOUSE HO,Neighbourhoods,233.33,Operational Services,1920Aug_PC00011
Sandwell Metropolitan Borough Council,http://www.sandwell.gov.uk/info/200202/performance_and_spending/3233/government_procurement_cards,05-Aug-19,Housing & Communities,HIGHFIELD HOUSE HO,Neighbourhoods,262.5,Operational Services,1920Aug_PC00012
Sandwell Metropolitan Borough Council,http://www.sandwell.gov.uk/info/200202/performance_and_spending/3233/government_procurement_cards,05-Aug-19,Regeneration & Growth,AMZNMktplace,Regeneration And The Economy,8.31,Equipment & Furniture,1920Aug_PC00013
Sandwell Metropolitan Borough Council,http://www.sandwell.gov.uk/info/200202/performance_and_spending/3233/government_procurement_cards,05-Aug-19,Housing & Communities,PREMIER INN,Neighbourhoods,197.08,Operational Services,1920Aug_PC00014
Sandwell Metropolitan Borough Council,http://www.sandwell.gov.uk/info/200202/performance_and_spending/3233/government_procurement_cards,05-Aug-19,Housing & Communities,FARMFOODS- WEDNESB,Neighbourhoods,19.17,Catering Provisions,1920Aug_PC00015
Sandwell Metropolitan Borough Council,http://www.sandwell.gov.uk/info/200202/performance_and_spending/3233/government_procurement_cards,05-Aug-19,Childrens Services,OFFICE DEPOT UK,Childrens Services,-13,Printing Stationery&Gen Office,1920Aug_PC00016
Sandwell Metropolitan Borough Council,http://www.sandwell.gov.uk/info/200202/performance_and_spending/3233/government_procurement_cards,05-Aug-19,Housing & Communities,AMZNMktplace,Neighbourhoods,14.43,Materials & Consumables,1920Aug_PC00017
Sandwell Metropolitan Borough Council,http://www.sandwell.gov.uk/info/200202/performance_and_spending/3233/government_procurement_cards,05-Aug-19,Resources (Inc SIU),AMZNMKTPLACE AMAZON.CO,Assistant Chief Executive (Excl SIU),-27.98,Printing Stationery&Gen Office,1920Aug_PC00018
Sandwell Metropolitan Borough Council,http://www.sandwell.gov.uk/info/200202/performance_and_spending/3233/government_procurement_cards,05-Aug-19,Childrens Services,AMZNMktplace,Childrens Services,2.95,ICT,1920Aug_PC00019
Sandwell Metropolitan Borough Council,http://www.sandwell.gov.uk/info/200202/performance_and_spending/3233/government_procurement_cards,05-Aug-19,Childrens Services,AMZNMktplace,Childrens Services,6.95,ICT,1920Aug_PC00020
Sandwell Metropolitan Borough Council,http://www.sandwell.gov.uk/info/200202/performance_and_spending/3233/government_procurement_cards,05-Aug-19,Childrens Services,AMZNMktplace,Childrens Services,6.95,ICT,1920Aug_PC00021
Sandwell Metropolitan Borough Council,http://www.sandwell.gov.uk/info/200202/performance_and_spending/3233/government_procurement_cards,05-Aug-19,Childrens Services,Amazon.co.uk MH7FU3HI4,Childrens Services,3.11,ICT,1920Aug_PC00022
Sandwell Metropolitan Borough Council,http://www.sandwell.gov.uk/info/200202/performance_and_spending/3233/government_procurement_cards,05-Aug-19,Regeneration & Growth,ARGOS RETAIL GROUP,Regeneration And The Economy,12.49,Equipment & Furniture,1920Aug_PC00023
Sandwell Metropolitan Borough Council,http://www.sandwell.gov.uk/info/200202/performance_and_spending/3233/government_procurement_cards,05-Aug-19,Resources (Inc SIU),AMZNMKTPLACE AMAZON.CO,Assistant Chief Executive (Excl SIU),8.12,Materials & Consumables,1920Aug_PC00024
Sandwell Metropolitan Borough Council,http://www.sandwell.gov.uk/info/200202/performance_and_spending/3233/government_procurement_cards,05-Aug-19,Housing & Communities,421 WEST BROMWICH,Neighbourhoods,-55.6,Equipment & Furniture,1920Aug_PC00025
Sandwell Metropolitan Borough Council,http://www.sandwell.gov.uk/info/200202/performance_and_spending/3233/government_procurement_cards,05-Aug-19,Adult Social Care Health and Wellbeing - Total,AMZNMKTPLACE AMAZON.CO,Total Adult Social Care,11.12,ICT,1920Aug_PC00026
Sandwell Metropolitan Borough Council,http://www.sandwell.gov.uk/info/200202/performance_and_spending/3233/government_procurement_cards,05-Aug-19,Individual School Budgets With Inclusion,AMZ Amazon.co.uk,Individual School Budgets With Inclusion,-35.97,ICT,1920Aug_PC00027
Sandwell Metropolitan Borough Council,http://www.sandwell.gov.uk/info/200202/performance_and_spending/3233/government_procurement_cards,05-Aug-19,Individual School Budgets With Inclusion,AMZ Amazon.co.uk,Individual School Budgets With Inclusion,-17.98,ICT,1920Aug_PC00028
Sandwell Metropolitan Borough Council,http://www.sandwell.gov.uk/info/200202/performance_and_spending/3233/government_procurement_cards,05-Aug-19,Individual School Budgets With Inclusion,AMZ Amazon.co.uk,Individual School Budgets With Inclusion,-8.99,ICT,1920Aug_PC00029
Sandwell Metropolitan Borough Council,http://www.sandwell.gov.uk/info/200202/performance_and_spending/3233/government_procurement_cards,05-Aug-19,Housing & Communities,AMZNMktplace,Neighbourhoods,62.04,Equipment & Furniture,1920Aug_PC00030
Sandwell Metropolitan Borough Council,http://www.sandwell.gov.uk/info/200202/performance_and_spending/3233/government_procurement_cards,05-Aug-19,Resources (Inc SIU),Amazon.co.uk MH9896BE4,Assistant Chief Executive (Excl SIU),16.67,ICT,1920Aug_PC00031
Sandwell Metropolitan Borough Council,http://www.sandwell.gov.uk/info/200202/performance_and_spending/3233/government_procurement_cards,05-Aug-19,Individual School Budgets With Inclusion,AMZ Amazon.co.uk,Individual School Budgets With Inclusion,-8.99,ICT,1920Aug_PC00032
Sandwell Metropolitan Borough Council,http://www.sandwell.gov.uk/info/200202/performance_and_spending/3233/government_procurement_cards,05-Aug-19,Individual School Budgets With Inclusion,B & Q 1357,Individual School Budgets With Inclusion,120,Repairs & Maintenance,1920Aug_PC00033
Sandwell Metropolitan Borough Council,http://www.sandwell.gov.uk/info/200202/performance_and_spending/3233/government_procurement_cards,05-Aug-19,Individual School Budgets With Inclusion,AMZNMktplace,Individual School Budgets With Inclusion,34.52,ICT,1920Aug_PC00034
Sandwell Metropolitan Borough Council,http://www.sandwell.gov.uk/info/200202/performance_and_spending/3233/government_procurement_cards,05-Aug-19,Resources (Inc SIU),Amazon.co.uk MH95328G4,Assistant Chief Executive (Excl SIU),13.32,Materials & Consumables,1920Aug_PC00035
Sandwell Metropolitan Borough Council,http://www.sandwell.gov.uk/info/200202/performance_and_spending/3233/government_procurement_cards,05-Aug-19,Resources (Inc SIU),Amazon.co.uk MH5F248L4,Assistant Chief Executive (Excl SIU),8.29,Materials & Consumables,1920Aug_PC00036
Sandwell Metropolitan Borough Council,http://www.sandwell.gov.uk/info/200202/performance_and_spending/3233/government_procurement_cards,05-Aug-19,Regeneration & Growth,AMZNMktplace,Regeneration And The Economy,12.49,Equipment & Furniture,1920Aug_PC00037
Sandwell Metropolitan Borough Council,http://www.sandwell.gov.uk/info/200202/performance_and_spending/3233/government_procurement_cards,05-Aug-19,Housing & Communities,AMZNMktplace,Neighbourhoods,20.61,ICT,1920Aug_PC00038
Sandwell Metropolitan Borough Council,http://www.sandwell.gov.uk/info/200202/performance_and_spending/3233/government_procurement_cards,06-Aug-19,Resources (Inc SIU),WWW.PREMIERMAN.COM,Assistant Chief Executive (Excl SIU),20.5,Protective Clothing&Uniforms,1920Aug_PC00039
Sandwell Metropolitan Borough Council,http://www.sandwell.gov.uk/info/200202/performance_and_spending/3233/government_procurement_cards,06-Aug-19,Resources (Inc SIU),WWW.PREMIERMAN.COM,Assistant Chief Executive (Excl SIU),3.5,Protective Clothing&Uniforms,1920Aug_PC00040
Sandwell Metropolitan Borough Council,http://www.sandwell.gov.uk/info/200202/performance_and_spending/3233/government_procurement_cards,06-Aug-19,Resources (Inc SIU),WWW.PREMIERMAN.COM,Assistant Chief Executive (Excl SIU),20.5,Protective Clothing&Uniforms,1920Aug_PC00041
Sandwell Metropolitan Borough Council,http://www.sandwell.gov.uk/info/200202/performance_and_spending/3233/government_procurement_cards,06-Aug-19,Resources (Inc SIU),AMZNMKTPLACE AMAZON.CO,Assistant Chief Executive (Excl SIU),1.72,Printing Stationery&Gen Office,1920Aug_PC00042
Sandwell Metropolitan Borough Council,http://www.sandwell.gov.uk/info/200202/performance_and_spending/3233/government_procurement_cards,06-Aug-19,Total Housing Revenue Account,STAFFORDSHIRE BLDS SUP,Total Housing Revenue Account,19.1,Materials & Consumables,1920Aug_PC00043
Sandwell Metropolitan Borough Council,http://www.sandwell.gov.uk/info/200202/performance_and_spending/3233/government_procurement_cards,06-Aug-19,Total Housing Revenue Account,INDEPENDENT 4 LIFE,Total Housing Revenue Account,81,Materials & Consumables,1920Aug_PC00044
Sandwell Metropolitan Borough Council,http://www.sandwell.gov.uk/info/200202/performance_and_spending/3233/government_procurement_cards,06-Aug-19,Adult Social Care Health and Wellbeing - Total,BRITISH STANDARDS,Total Adult Social Care,132,Professional Services External,1920Aug_PC00045
Sandwell Metropolitan Borough Council,http://www.sandwell.gov.uk/info/200202/performance_and_spending/3233/government_procurement_cards,06-Aug-19,Housing & Communities,STOURBRIDGE VOLKSWAGEN,Neighbourhoods,42.8,Repairs & Maintenance,1920Aug_PC00046
Sandwell Metropolitan Borough Council,http://www.sandwell.gov.uk/info/200202/performance_and_spending/3233/government_procurement_cards,06-Aug-19,Housing & Communities,T J MORRIS LTD,Neighbourhoods,4.65,Printing Stationery&Gen Office,1920Aug_PC00047
Sandwell Metropolitan Borough Council,http://www.sandwell.gov.uk/info/200202/performance_and_spending/3233/government_procurement_cards,06-Aug-19,Housing & Communities,AMZNMktplace,Neighbourhoods,9.48,Materials & Consumables,1920Aug_PC00048
Sandwell Metropolitan Borough Council,http://www.sandwell.gov.uk/info/200202/performance_and_spending/3233/government_procurement_cards,06-Aug-19,Housing & Communities,AMZNMKTPLACE AMAZON.CO,Neighbourhoods,7.99,Materials & Consumables,1920Aug_PC00049
Sandwell Metropolitan Borough Council,http://www.sandwell.gov.uk/info/200202/performance_and_spending/3233/government_procurement_cards,06-Aug-19,Individual School Budgets With Inclusion,OFFICE DEPOT UK,Individual School Budgets With Inclusion,206.63,Printing Stationery&Gen Office,1920Aug_PC00050
Sandwell Metropolitan Borough Council,http://www.sandwell.gov.uk/info/200202/performance_and_spending/3233/government_procurement_cards,06-Aug-19,Resources (Inc SIU),OFFICE DEPOT UK,Assistant Chief Executive (Excl SIU),155.91,Printing Stationery&Gen Office,1920Aug_PC00051
Sandwell Metropolitan Borough Council,http://www.sandwell.gov.uk/info/200202/performance_and_spending/3233/government_procurement_cards,06-Aug-19,Adult Social Care Health and Wellbeing - Total,OFFICE DEPOT UK,Total Adult Social Care,75.65,Printing Stationery&Gen Office,1920Aug_PC00052
Sandwell Metropolitan Borough Council,http://www.sandwell.gov.uk/info/200202/performance_and_spending/3233/government_procurement_cards,06-Aug-19,Childrens Services,OFFICE DEPOT UK,Childrens Services,30.16,Equipment & Furniture,1920Aug_PC00053
Sandwell Metropolitan Borough Council,http://www.sandwell.gov.uk/info/200202/performance_and_spending/3233/government_procurement_cards,06-Aug-19,Resources (Inc SIU),AMZNMktplace,Assistant Chief Executive (Excl SIU),6.88,Printing Stationery&Gen Office,1920Aug_PC00054
Sandwell Metropolitan Borough Council,http://www.sandwell.gov.uk/info/200202/performance_and_spending/3233/government_procurement_cards,06-Aug-19,Housing & Communities,GARAVI GUJARAT,Neighbourhoods,32,Materials & Consumables,1920Aug_PC00055
Sandwell Metropolitan Borough Council,http://www.sandwell.gov.uk/info/200202/performance_and_spending/3233/government_procurement_cards,06-Aug-19,Regeneration & Growth,AMZNMktplace,Regeneration And The Economy,6.65,Equipment & Furniture,1920Aug_PC00056
Sandwell Metropolitan Borough Council,http://www.sandwell.gov.uk/info/200202/performance_and_spending/3233/government_procurement_cards,06-Aug-19,Individual School Budgets With Inclusion,AMZNMktplace,Individual School Budgets With Inclusion,35.94,ICT,1920Aug_PC00057
Sandwell Metropolitan Borough Council,http://www.sandwell.gov.uk/info/200202/performance_and_spending/3233/government_procurement_cards,07-Aug-19,Housing & Communities,AMZNMKTPLACE AMAZON.CO,Neighbourhoods,7.22,Materials & Consumables,1920Aug_PC00058
Sandwell Metropolitan Borough Council,http://www.sandwell.gov.uk/info/200202/performance_and_spending/3233/government_procurement_cards,07-Aug-19,Housing & Communities,Amazon.co.uk MH0NF6Q94,Neighbourhoods,9.99,Civic Events,1920Aug_PC00059
Sandwell Metropolitan Borough Council,http://www.sandwell.gov.uk/info/200202/performance_and_spending/3233/government_procurement_cards,07-Aug-19,Total Housing Revenue Account,ASDA STORES,Total Housing Revenue Account,6.67,Hygiene Services,1920Aug_PC00060
Sandwell Metropolitan Borough Council,http://www.sandwell.gov.uk/info/200202/performance_and_spending/3233/government_procurement_cards,07-Aug-19,Regeneration & Growth,EB  SOILSCON 2019,Regeneration And The Economy,90,Ind. Emp Exp-Staff Dev&Training,1920Aug_PC00061
Sandwell Metropolitan Borough Council,http://www.sandwell.gov.uk/info/200202/performance_and_spending/3233/government_procurement_cards,07-Aug-19,Childrens Services,HOME BARGAINS,Childrens Services,3.05,Materials & Consumables,1920Aug_PC00062
Sandwell Metropolitan Borough Council,http://www.sandwell.gov.uk/info/200202/performance_and_spending/3233/government_procurement_cards,07-Aug-19,Adult Social Care Health and Wellbeing - Total,TESCO STORES 2335,Total Adult Social Care,63.32,Ind. Emp Exp-Staff Dev&Training,1920Aug_PC00063
Sandwell Metropolitan Borough Council,http://www.sandwell.gov.uk/info/200202/performance_and_spending/3233/government_procurement_cards,07-Aug-19,Total Housing Revenue Account,MIDLAND JETTING SERVIC,Total Housing Revenue Account,65,Materials & Consumables,1920Aug_PC00064
Sandwell Metropolitan Borough Council,http://www.sandwell.gov.uk/info/200202/performance_and_spending/3233/government_procurement_cards,07-Aug-19,Housing & Communities,AQUAID FRANCHISING LTD,Neighbourhoods,143.75,Catering Provisions,1920Aug_PC00065
Sandwell Metropolitan Borough Council,http://www.sandwell.gov.uk/info/200202/performance_and_spending/3233/government_procurement_cards,07-Aug-19,Adult Social Care Health and Wellbeing - Total,WWW.LOCAL.GOV.UK,Total Adult Social Care,475,Conference Expenses,1920Aug_PC00066
Sandwell Metropolitan Borough Council,http://www.sandwell.gov.uk/info/200202/performance_and_spending/3233/government_procurement_cards,07-Aug-19,Housing & Communities,AMZNMKTPLACE AMAZON.CO,Neighbourhoods,21.68,Civic Events,1920Aug_PC00067
Sandwell Metropolitan Borough Council,http://www.sandwell.gov.uk/info/200202/performance_and_spending/3233/government_procurement_cards,07-Aug-19,Childrens Services,OFFICE DEPOT UK,Childrens Services,-50.68,Printing Stationery&Gen Office,1920Aug_PC00068
Sandwell Metropolitan Borough Council,http://www.sandwell.gov.uk/info/200202/performance_and_spending/3233/government_procurement_cards,07-Aug-19,Childrens Services,POST OFFICE COUNTER,Childrens Services,6.6,"Postages, Carriage & Courier Services",1920Aug_PC00069
Sandwell Metropolitan Borough Council,http://www.sandwell.gov.uk/info/200202/performance_and_spending/3233/government_procurement_cards,07-Aug-19,Childrens Services,POST OFFICE COUNTER,Childrens Services,70,"Postages, Carriage & Courier Services",1920Aug_PC00070
Sandwell Metropolitan Borough Council,http://www.sandwell.gov.uk/info/200202/performance_and_spending/3233/government_procurement_cards,07-Aug-19,Childrens Services,MARC GOUGH,Childrens Services,108,Catering Provisions,1920Aug_PC00071
Sandwell Metropolitan Borough Council,http://www.sandwell.gov.uk/info/200202/performance_and_spending/3233/government_procurement_cards,07-Aug-19,Regeneration & Growth,OFFICE DEPOT UK,Regeneration And The Economy,2.64,Printing Stationery&Gen Office,1920Aug_PC00072
Sandwell Metropolitan Borough Council,http://www.sandwell.gov.uk/info/200202/performance_and_spending/3233/government_procurement_cards,07-Aug-19,Childrens Services,ASDA STORES LTD 5865,Childrens Services,8.54,Materials & Consumables,1920Aug_PC00073
Sandwell Metropolitan Borough Council,http://www.sandwell.gov.uk/info/200202/performance_and_spending/3233/government_procurement_cards,07-Aug-19,Adult Social Care Health and Wellbeing - Total,TESCO STORES 2335,Total Adult Social Care,38.78,Ind. Emp Exp-Staff Dev&Training,1920Aug_PC00074
Sandwell Metropolitan Borough Council,http://www.sandwell.gov.uk/info/200202/performance_and_spending/3233/government_procurement_cards,07-Aug-19,Resources (Inc SIU),PAYPAL  SWEETADDICT,Assistant Chief Executive (Excl SIU),15.52,Catering Provisions,1920Aug_PC00075
Sandwell Metropolitan Borough Council,http://www.sandwell.gov.uk/info/200202/performance_and_spending/3233/government_procurement_cards,07-Aug-19,Resources (Inc SIU),PAYPAL  TGTRADERSUK,Assistant Chief Executive (Excl SIU),12.14,Catering Provisions,1920Aug_PC00076
Sandwell Metropolitan Borough Council,http://www.sandwell.gov.uk/info/200202/performance_and_spending/3233/government_procurement_cards,07-Aug-19,Total Housing Revenue Account,THE POST OFFICE,Total Housing Revenue Account,220,Licences,1920Aug_PC00077
Sandwell Metropolitan Borough Council,http://www.sandwell.gov.uk/info/200202/performance_and_spending/3233/government_procurement_cards,08-Aug-19,Housing & Communities,AMZNMKTPLACE AMAZON.CO,Neighbourhoods,24.15,Civic Events,1920Aug_PC00078
Sandwell Metropolitan Borough Council,http://www.sandwell.gov.uk/info/200202/performance_and_spending/3233/government_procurement_cards,08-Aug-19,Total Housing Revenue Account,RS COMPONENTS,Total Housing Revenue Account,39.94,Ind. Emp Exp-Emp. Welfare,1920Aug_PC00079
Sandwell Metropolitan Borough Council,http://www.sandwell.gov.uk/info/200202/performance_and_spending/3233/government_procurement_cards,08-Aug-19,Housing & Communities,AMZNMktplace,Neighbourhoods,2.42,Equipment & Furniture,1920Aug_PC00080
Sandwell Metropolitan Borough Council,http://www.sandwell.gov.uk/info/200202/performance_and_spending/3233/government_procurement_cards,08-Aug-19,Housing & Communities,TRAVELODGE,Neighbourhoods,537.5,Operational Services,1920Aug_PC00081
Sandwell Metropolitan Borough Council,http://www.sandwell.gov.uk/info/200202/performance_and_spending/3233/government_procurement_cards,08-Aug-19,Regeneration & Growth,WWW.CSKILLS.ORG,Regeneration And The Economy,30,Ind. Emp Exp-Staff Dev&Training,1920Aug_PC00082
Sandwell Metropolitan Borough Council,http://www.sandwell.gov.uk/info/200202/performance_and_spending/3233/government_procurement_cards,08-Aug-19,Childrens Services,POUNDLAND 1509,Childrens Services,14.21,Materials & Consumables,1920Aug_PC00083
Sandwell Metropolitan Borough Council,http://www.sandwell.gov.uk/info/200202/performance_and_spending/3233/government_procurement_cards,08-Aug-19,Childrens Services,PAYMENT,Childrens Services,260,Ind. Emp Exp-Staff Dev&Training,1920Aug_PC00084
Sandwell Metropolitan Borough Council,http://www.sandwell.gov.uk/info/200202/performance_and_spending/3233/government_procurement_cards,08-Aug-19,Childrens Services,AMZNMktplace,Childrens Services,4.99,Materials & Consumables,1920Aug_PC00085
Sandwell Metropolitan Borough Council,http://www.sandwell.gov.uk/info/200202/performance_and_spending/3233/government_procurement_cards,08-Aug-19,Childrens Services,AMZNMktplace,Childrens Services,4.99,Materials & Consumables,1920Aug_PC00086
Sandwell Metropolitan Borough Council,http://www.sandwell.gov.uk/info/200202/performance_and_spending/3233/government_procurement_cards,08-Aug-19,Total Housing Revenue Account,WWW.MERLINLAZER.COM,Total Housing Revenue Account,218,Materials & Consumables,1920Aug_PC00087
Sandwell Metropolitan Borough Council,http://www.sandwell.gov.uk/info/200202/performance_and_spending/3233/government_procurement_cards,08-Aug-19,Individual School Budgets With Inclusion,Amazon.co.uk MH5UB8DQ4,Individual School Budgets With Inclusion,32.77,ICT,1920Aug_PC00088
Sandwell Metropolitan Borough Council,http://www.sandwell.gov.uk/info/200202/performance_and_spending/3233/government_procurement_cards,08-Aug-19,Individual School Budgets With Inclusion,Amazon.co.uk MH5M25DH4,Individual School Budgets With Inclusion,81.93,ICT,1920Aug_PC00089
Sandwell Metropolitan Borough Council,http://www.sandwell.gov.uk/info/200202/performance_and_spending/3233/government_procurement_cards,08-Aug-19,Total Housing Revenue Account,OFFICE DEPOT UK,Total Housing Revenue Account,117.55,Printing Stationery&Gen Office,1920Aug_PC00090
Sandwell Metropolitan Borough Council,http://www.sandwell.gov.uk/info/200202/performance_and_spending/3233/government_procurement_cards,08-Aug-19,Adult Social Care Health and Wellbeing - Total,OFFICE DEPOT UK,Total Adult Social Care,34.59,Printing Stationery&Gen Office,1920Aug_PC00091
Sandwell Metropolitan Borough Council,http://www.sandwell.gov.uk/info/200202/performance_and_spending/3233/government_procurement_cards,08-Aug-19,Adult Social Care Health and Wellbeing - Total,OFFICE DEPOT UK,Public Health,27.82,Printing Stationery&Gen Office,1920Aug_PC00092
Sandwell Metropolitan Borough Council,http://www.sandwell.gov.uk/info/200202/performance_and_spending/3233/government_procurement_cards,08-Aug-19,Total Housing Revenue Account,THE POST OFFICE,Total Housing Revenue Account,6.6,"Postages, Carriage & Courier Services",1920Aug_PC00093
Sandwell Metropolitan Borough Council,http://www.sandwell.gov.uk/info/200202/performance_and_spending/3233/government_procurement_cards,08-Aug-19,Regeneration & Growth,OFFICE DEPOT UK,Regeneration And The Economy,60.88,Printing Stationery&Gen Office,1920Aug_PC00094
Sandwell Metropolitan Borough Council,http://www.sandwell.gov.uk/info/200202/performance_and_spending/3233/government_procurement_cards,08-Aug-19,Regeneration & Growth,OFFICE DEPOT UK,Regeneration And The Economy,48.72,Equipment & Furniture,1920Aug_PC00095
Sandwell Metropolitan Borough Council,http://www.sandwell.gov.uk/info/200202/performance_and_spending/3233/government_procurement_cards,08-Aug-19,Regeneration & Growth,OFFICE DEPOT UK,Regeneration And The Economy,69.88,Printing Stationery&Gen Office,1920Aug_PC00096
Sandwell Metropolitan Borough Council,http://www.sandwell.gov.uk/info/200202/performance_and_spending/3233/government_procurement_cards,08-Aug-19,Housing & Communities,Amazon.co.uk MH9OQ6DP4,Neighbourhoods,10.44,Materials & Consumables,1920Aug_PC00097
Sandwell Metropolitan Borough Council,http://www.sandwell.gov.uk/info/200202/performance_and_spending/3233/government_procurement_cards,09-Aug-19,Resources (Inc SIU),AMZNMKTPLACE AMAZON.CO,Assistant Chief Executive (Excl SIU),116.63,Printing Stationery&Gen Office,1920Aug_PC00098
Sandwell Metropolitan Borough Council,http://www.sandwell.gov.uk/info/200202/performance_and_spending/3233/government_procurement_cards,09-Aug-19,Regeneration & Growth,EB  NATIONAL URBAN DES,Regeneration And The Economy,75,Ind. Emp Exp-Staff Dev&Training,1920Aug_PC00099
Sandwell Metropolitan Borough Council,http://www.sandwell.gov.uk/info/200202/performance_and_spending/3233/government_procurement_cards,09-Aug-19,Childrens Services,WWW.TTS-GROUPS.CO.UK,Childrens Services,104.9,Equipment & Furniture,1920Aug_PC00100
Sandwell Metropolitan Borough Council,http://www.sandwell.gov.uk/info/200202/performance_and_spending/3233/government_procurement_cards,09-Aug-19,Housing & Communities,CILIP,Neighbourhoods,25,Conference Expenses,1920Aug_PC00101
Sandwell Metropolitan Borough Council,http://www.sandwell.gov.uk/info/200202/performance_and_spending/3233/government_procurement_cards,09-Aug-19,Total Housing Revenue Account,B&Q DIRECT,Total Housing Revenue Account,24.17,Materials & Consumables,1920Aug_PC00102
Sandwell Metropolitan Borough Council,http://www.sandwell.gov.uk/info/200202/performance_and_spending/3233/government_procurement_cards,09-Aug-19,Resources (Inc SIU),Amazon Prime MH7C92DA4,Assistant Chief Executive (Excl SIU),6.66,Subscriptions,1920Aug_PC00103
Sandwell Metropolitan Borough Council,http://www.sandwell.gov.uk/info/200202/performance_and_spending/3233/government_procurement_cards,09-Aug-19,Childrens Services,AMZNMKTPLACE AMAZON.CO,Childrens Services,23.62,Printing Stationery&Gen Office,1920Aug_PC00104
Sandwell Metropolitan Borough Council,http://www.sandwell.gov.uk/info/200202/performance_and_spending/3233/government_procurement_cards,09-Aug-19,Housing & Communities,PAYPAL  PIXARTPRINT,Neighbourhoods,60.87,Printing Stationery&Gen Office,1920Aug_PC00105
Sandwell Metropolitan Borough Council,http://www.sandwell.gov.uk/info/200202/performance_and_spending/3233/government_procurement_cards,09-Aug-19,Housing & Communities,Amazon.co.uk MH0JQ9DG4,Neighbourhoods,8.16,Materials & Consumables,1920Aug_PC00106
Sandwell Metropolitan Borough Council,http://www.sandwell.gov.uk/info/200202/performance_and_spending/3233/government_procurement_cards,09-Aug-19,Housing & Communities,OFFICE DEPOT UK,Neighbourhoods,48.34,Printing Stationery&Gen Office,1920Aug_PC00107
Sandwell Metropolitan Borough Council,http://www.sandwell.gov.uk/info/200202/performance_and_spending/3233/government_procurement_cards,09-Aug-19,Childrens Services,OFFICE DEPOT UK,Childrens Services,79.41,Printing Stationery&Gen Office,1920Aug_PC00108
Sandwell Metropolitan Borough Council,http://www.sandwell.gov.uk/info/200202/performance_and_spending/3233/government_procurement_cards,09-Aug-19,Adult Social Care Health and Wellbeing - Total,AMZNMktplace,Total Adult Social Care,86.76,Printing Stationery&Gen Office,1920Aug_PC00109
Sandwell Metropolitan Borough Council,http://www.sandwell.gov.uk/info/200202/performance_and_spending/3233/government_procurement_cards,09-Aug-19,Adult Social Care Health and Wellbeing - Total,Amazon.co.uk MH1103DM4,Total Adult Social Care,14.12,Printing Stationery&Gen Office,1920Aug_PC00110
Sandwell Metropolitan Borough Council,http://www.sandwell.gov.uk/info/200202/performance_and_spending/3233/government_procurement_cards,09-Aug-19,Total Housing Revenue Account,Amazon.co.uk MH61M16G4,Total Housing Revenue Account,255,Materials & Consumables,1920Aug_PC00111
Sandwell Metropolitan Borough Council,http://www.sandwell.gov.uk/info/200202/performance_and_spending/3233/government_procurement_cards,09-Aug-19,Adult Social Care Health and Wellbeing - Total,AMZNMktplace,Total Adult Social Care,17.02,Equipment & Furniture,1920Aug_PC00112
Sandwell Metropolitan Borough Council,http://www.sandwell.gov.uk/info/200202/performance_and_spending/3233/government_procurement_cards,09-Aug-19,Adult Social Care Health and Wellbeing - Total,Amazon.co.uk MH5GM8S44,Total Adult Social Care,15.67,Equipment & Furniture,1920Aug_PC00113
Sandwell Metropolitan Borough Council,http://www.sandwell.gov.uk/info/200202/performance_and_spending/3233/government_procurement_cards,12-Aug-19,Housing & Communities,AMZNMktplace,Neighbourhoods,-7.5,Materials & Consumables,1920Aug_PC00114
Sandwell Metropolitan Borough Council,http://www.sandwell.gov.uk/info/200202/performance_and_spending/3233/government_procurement_cards,12-Aug-19,Total Housing Revenue Account,SAFETYSUPPL,Total Housing Revenue Account,10.25,Materials & Consumables,1920Aug_PC00115
Sandwell Metropolitan Borough Council,http://www.sandwell.gov.uk/info/200202/performance_and_spending/3233/government_procurement_cards,12-Aug-19,Housing & Communities,AQUAID FRANCHISING LTD,Neighbourhoods,37.5,Catering Provisions,1920Aug_PC00116
Sandwell Metropolitan Borough Council,http://www.sandwell.gov.uk/info/200202/performance_and_spending/3233/government_procurement_cards,12-Aug-19,Total Housing Revenue Account,INTUMESCENT SYSTEM,Total Housing Revenue Account,271.2,Materials & Consumables,1920Aug_PC00117
Sandwell Metropolitan Borough Council,http://www.sandwell.gov.uk/info/200202/performance_and_spending/3233/government_procurement_cards,12-Aug-19,Housing & Communities,AQUAID FRANCHISING LTD,Neighbourhoods,423.25,Catering Provisions,1920Aug_PC00118
Sandwell Metropolitan Borough Council,http://www.sandwell.gov.uk/info/200202/performance_and_spending/3233/government_procurement_cards,12-Aug-19,Housing & Communities,BAKER ROSS,Neighbourhoods,145.91,Civic Events,1920Aug_PC00119
Sandwell Metropolitan Borough Council,http://www.sandwell.gov.uk/info/200202/performance_and_spending/3233/government_procurement_cards,12-Aug-19,Housing & Communities,AMZNMktplace,Neighbourhoods,7.5,Materials & Consumables,1920Aug_PC00120
Sandwell Metropolitan Borough Council,http://www.sandwell.gov.uk/info/200202/performance_and_spending/3233/government_procurement_cards,12-Aug-19,Childrens Services,AMZNMKTPLACE AMAZON.CO,Childrens Services,8.32,Printing Stationery&Gen Office,1920Aug_PC00121
Sandwell Metropolitan Borough Council,http://www.sandwell.gov.uk/info/200202/performance_and_spending/3233/government_procurement_cards,12-Aug-19,Childrens Services,OFFICE DEPOT UK,Childrens Services,94.62,Printing Stationery&Gen Office,1920Aug_PC00122
Sandwell Metropolitan Borough Council,http://www.sandwell.gov.uk/info/200202/performance_and_spending/3233/government_procurement_cards,12-Aug-19,Housing & Communities,OFFICE DEPOT UK,Neighbourhoods,47.95,Printing Stationery&Gen Office,1920Aug_PC00123
Sandwell Metropolitan Borough Council,http://www.sandwell.gov.uk/info/200202/performance_and_spending/3233/government_procurement_cards,12-Aug-19,Housing & Communities,AMZNMktplace,Neighbourhoods,3.35,Materials & Consumables,1920Aug_PC00124
Sandwell Metropolitan Borough Council,http://www.sandwell.gov.uk/info/200202/performance_and_spending/3233/government_procurement_cards,12-Aug-19,Housing & Communities,AMZNMktplace,Neighbourhoods,5.66,Materials & Consumables,1920Aug_PC00125
Sandwell Metropolitan Borough Council,http://www.sandwell.gov.uk/info/200202/performance_and_spending/3233/government_procurement_cards,12-Aug-19,Adult Social Care Health and Wellbeing - Total,OFFICE DEPOT UK,Total Adult Social Care,78.53,Printing Stationery&Gen Office,1920Aug_PC00126
Sandwell Metropolitan Borough Council,http://www.sandwell.gov.uk/info/200202/performance_and_spending/3233/government_procurement_cards,12-Aug-19,Resources (Inc SIU),OFFICE DEPOT UK,Assistant Chief Executive (Excl SIU),19.44,Printing Stationery&Gen Office,1920Aug_PC00127
Sandwell Metropolitan Borough Council,http://www.sandwell.gov.uk/info/200202/performance_and_spending/3233/government_procurement_cards,12-Aug-19,Housing & Communities,HOME BARGAINS,Neighbourhoods,2.08,Materials & Consumables,1920Aug_PC00128
Sandwell Metropolitan Borough Council,http://www.sandwell.gov.uk/info/200202/performance_and_spending/3233/government_procurement_cards,12-Aug-19,Regeneration & Growth,AMZNMktplace,Regeneration And The Economy,12.49,Equipment & Furniture,1920Aug_PC00129
Sandwell Metropolitan Borough Council,http://www.sandwell.gov.uk/info/200202/performance_and_spending/3233/government_procurement_cards,12-Aug-19,Housing & Communities,AMZNMKTPLACE AMAZON.CO,Neighbourhoods,3.05,Materials & Consumables,1920Aug_PC00130
Sandwell Metropolitan Borough Council,http://www.sandwell.gov.uk/info/200202/performance_and_spending/3233/government_procurement_cards,12-Aug-19,Regeneration & Growth,AMZNMktplace,Regeneration And The Economy,6.16,Printing Stationery&Gen Office,1920Aug_PC00131
Sandwell Metropolitan Borough Council,http://www.sandwell.gov.uk/info/200202/performance_and_spending/3233/government_procurement_cards,12-Aug-19,Childrens Services,AMZNMKTPLACE AMAZON.CO,Childrens Services,5.33,Materials & Consumables,1920Aug_PC00132
Sandwell Metropolitan Borough Council,http://www.sandwell.gov.uk/info/200202/performance_and_spending/3233/government_procurement_cards,12-Aug-19,Childrens Services,Amazon.co.uk MH78F5KX4,Childrens Services,14.53,Materials & Consumables,1920Aug_PC00133
Sandwell Metropolitan Borough Council,http://www.sandwell.gov.uk/info/200202/performance_and_spending/3233/government_procurement_cards,12-Aug-19,Resources (Inc SIU),Amazon.co.uk MH0FK1QQ4,Assistant Chief Executive (Excl SIU),119.88,Printing Stationery&Gen Office,1920Aug_PC00134
Sandwell Metropolitan Borough Council,http://www.sandwell.gov.uk/info/200202/performance_and_spending/3233/government_procurement_cards,13-Aug-19,Housing & Communities,AMZNMKTPLACE AMAZON.CO,Neighbourhoods,11.42,Materials & Consumables,1920Aug_PC00135
Sandwell Metropolitan Borough Council,http://www.sandwell.gov.uk/info/200202/performance_and_spending/3233/government_procurement_cards,13-Aug-19,Adult Social Care Health and Wellbeing - Total,PROARK UK HOTELS LTD O,Total Adult Social Care,179.17,Hire of Facilities,1920Aug_PC00136
Sandwell Metropolitan Borough Council,http://www.sandwell.gov.uk/info/200202/performance_and_spending/3233/government_procurement_cards,13-Aug-19,Housing & Communities,TOOLSTATION LTD,Neighbourhoods,6.25,R& M - Building Maint&Imp.,1920Aug_PC00137
Sandwell Metropolitan Borough Council,http://www.sandwell.gov.uk/info/200202/performance_and_spending/3233/government_procurement_cards,13-Aug-19,Adult Social Care Health and Wellbeing - Total,WWW.MACLINGROUP.CO.UK,Total Adult Social Care,30.91,Catering Provisions,1920Aug_PC00138
Sandwell Metropolitan Borough Council,http://www.sandwell.gov.uk/info/200202/performance_and_spending/3233/government_procurement_cards,13-Aug-19,Housing & Communities,AMZNMKTPLACE AMAZON.CO,Neighbourhoods,11.54,R& M - Building Maint&Imp.,1920Aug_PC00139
Sandwell Metropolitan Borough Council,http://www.sandwell.gov.uk/info/200202/performance_and_spending/3233/government_procurement_cards,13-Aug-19,Resources (Inc SIU),Amazon.co.uk,Assistant Chief Executive (Excl SIU),-119.88,Printing Stationery&Gen Office,1920Aug_PC00140
Sandwell Metropolitan Borough Council,http://www.sandwell.gov.uk/info/200202/performance_and_spending/3233/government_procurement_cards,13-Aug-19,Housing & Communities,OFFICE DEPOT UK,Neighbourhoods,30.78,Printing Stationery&Gen Office,1920Aug_PC00141
Sandwell Metropolitan Borough Council,http://www.sandwell.gov.uk/info/200202/performance_and_spending/3233/government_procurement_cards,13-Aug-19,Housing & Communities,OFFICE DEPOT UK,Neighbourhoods,89.84,Printing Stationery&Gen Office,1920Aug_PC00142
Sandwell Metropolitan Borough Council,http://www.sandwell.gov.uk/info/200202/performance_and_spending/3233/government_procurement_cards,13-Aug-19,Adult Social Care Health and Wellbeing - Total,OFFICE DEPOT UK,Total Adult Social Care,18.81,Printing Stationery&Gen Office,1920Aug_PC00143
Sandwell Metropolitan Borough Council,http://www.sandwell.gov.uk/info/200202/performance_and_spending/3233/government_procurement_cards,13-Aug-19,Resources (Inc SIU),OFFICE DEPOT UK,Assistant Chief Executive (Excl SIU),10.74,Printing Stationery&Gen Office,1920Aug_PC00144
Sandwell Metropolitan Borough Council,http://www.sandwell.gov.uk/info/200202/performance_and_spending/3233/government_procurement_cards,13-Aug-19,Resources (Inc SIU),OFFICE DEPOT UK,Assistant Chief Executive (Excl SIU),11.66,Printing Stationery&Gen Office,1920Aug_PC00145
Sandwell Metropolitan Borough Council,http://www.sandwell.gov.uk/info/200202/performance_and_spending/3233/government_procurement_cards,13-Aug-19,Regeneration & Growth,PENNON WATER SERVICES,Regeneration And The Economy,83.7,Water Services,1920Aug_PC00146
Sandwell Metropolitan Borough Council,http://www.sandwell.gov.uk/info/200202/performance_and_spending/3233/government_procurement_cards,13-Aug-19,Housing & Communities,Trainline.com,Neighbourhoods,30.27,Public Transport,1920Aug_PC00147
Sandwell Metropolitan Borough Council,http://www.sandwell.gov.uk/info/200202/performance_and_spending/3233/government_procurement_cards,13-Aug-19,Housing & Communities,AMZNMKTPLACE AMAZON.CO,Neighbourhoods,3.88,Materials & Consumables,1920Aug_PC00148
Sandwell Metropolitan Borough Council,http://www.sandwell.gov.uk/info/200202/performance_and_spending/3233/government_procurement_cards,13-Aug-19,Housing & Communities,AMZNMKTPLACE AMAZON.CO,Neighbourhoods,10.32,Materials & Consumables,1920Aug_PC00149
Sandwell Metropolitan Borough Council,http://www.sandwell.gov.uk/info/200202/performance_and_spending/3233/government_procurement_cards,13-Aug-19,Housing & Communities,AMZNMKTPLACE AMAZON.CO,Neighbourhoods,2.99,Materials & Consumables,1920Aug_PC00150
Sandwell Metropolitan Borough Council,http://www.sandwell.gov.uk/info/200202/performance_and_spending/3233/government_procurement_cards,13-Aug-19,Housing & Communities,AMZNMKTPLACE AMAZON.CO,Neighbourhoods,7.93,Materials & Consumables,1920Aug_PC00151
Sandwell Metropolitan Borough Council,http://www.sandwell.gov.uk/info/200202/performance_and_spending/3233/government_procurement_cards,13-Aug-19,Resources (Inc SIU),Amazon.co.uk MH7PA67G4,Assistant Chief Executive (Excl SIU),42.48,Materials & Consumables,1920Aug_PC00152
Sandwell Metropolitan Borough Council,http://www.sandwell.gov.uk/info/200202/performance_and_spending/3233/government_procurement_cards,13-Aug-19,Resources (Inc SIU),Amazon.co.uk MH5PT07A4,Assistant Chief Executive (Excl SIU),11.02,Materials & Consumables,1920Aug_PC00153
Sandwell Metropolitan Borough Council,http://www.sandwell.gov.uk/info/200202/performance_and_spending/3233/government_procurement_cards,14-Aug-19,Resources (Inc SIU),AMZNMKTPLACE AMAZON.CO,Assistant Chief Executive (Excl SIU),32.12,ICT,1920Aug_PC00154
Sandwell Metropolitan Borough Council,http://www.sandwell.gov.uk/info/200202/performance_and_spending/3233/government_procurement_cards,14-Aug-19,Housing & Communities,AMZ TradeNRG (UK VAT R,Neighbourhoods,-25.41,Printing Stationery&Gen Office,1920Aug_PC00155
Sandwell Metropolitan Borough Council,http://www.sandwell.gov.uk/info/200202/performance_and_spending/3233/government_procurement_cards,14-Aug-19,Housing & Communities,AMZNMktplace,Neighbourhoods,6.07,Materials & Consumables,1920Aug_PC00156
Sandwell Metropolitan Borough Council,http://www.sandwell.gov.uk/info/200202/performance_and_spending/3233/government_procurement_cards,14-Aug-19,Resources (Inc SIU),Amazon.co.uk MH3M499S4,Assistant Chief Executive (Excl SIU),56.69,Printing Stationery&Gen Office,1920Aug_PC00157
Sandwell Metropolitan Borough Council,http://www.sandwell.gov.uk/info/200202/performance_and_spending/3233/government_procurement_cards,14-Aug-19,Housing & Communities,Trainline.com,Neighbourhoods,44.09,Public Transport,1920Aug_PC00158
Sandwell Metropolitan Borough Council,http://www.sandwell.gov.uk/info/200202/performance_and_spending/3233/government_procurement_cards,14-Aug-19,Regeneration & Growth,AMZNMKTPLACE AMAZON.CO,Regeneration And The Economy,5.64,Printing Stationery&Gen Office,1920Aug_PC00159
Sandwell Metropolitan Borough Council,http://www.sandwell.gov.uk/info/200202/performance_and_spending/3233/government_procurement_cards,14-Aug-19,Regeneration & Growth,AMZNMKTPLACE AMAZON.CO,Regeneration And The Economy,4.99,Printing Stationery&Gen Office,1920Aug_PC00160
Sandwell Metropolitan Borough Council,http://www.sandwell.gov.uk/info/200202/performance_and_spending/3233/government_procurement_cards,14-Aug-19,Total Housing Revenue Account,DISPLAYSENSE.CO.UK,Total Housing Revenue Account,20.45,Printing Stationery&Gen Office,1920Aug_PC00161
Sandwell Metropolitan Borough Council,http://www.sandwell.gov.uk/info/200202/performance_and_spending/3233/government_procurement_cards,14-Aug-19,Adult Social Care Health and Wellbeing - Total,AMZNMktplace,Total Adult Social Care,20.99,Materials & Consumables,1920Aug_PC00162
Sandwell Metropolitan Borough Council,http://www.sandwell.gov.uk/info/200202/performance_and_spending/3233/government_procurement_cards,14-Aug-19,Adult Social Care Health and Wellbeing - Total,AMZNMktplace,Total Adult Social Care,20.99,Materials & Consumables,1920Aug_PC00163
Sandwell Metropolitan Borough Council,http://www.sandwell.gov.uk/info/200202/performance_and_spending/3233/government_procurement_cards,14-Aug-19,Adult Social Care Health and Wellbeing - Total,AMZNMktplace,Total Adult Social Care,20.99,Materials & Consumables,1920Aug_PC00164
Sandwell Metropolitan Borough Council,http://www.sandwell.gov.uk/info/200202/performance_and_spending/3233/government_procurement_cards,14-Aug-19,Adult Social Care Health and Wellbeing - Total,AMZNMktplace,Total Adult Social Care,54.16,Materials & Consumables,1920Aug_PC00165
Sandwell Metropolitan Borough Council,http://www.sandwell.gov.uk/info/200202/performance_and_spending/3233/government_procurement_cards,14-Aug-19,Adult Social Care Health and Wellbeing - Total,AMZNMktplace,Total Adult Social Care,20.99,Materials & Consumables,1920Aug_PC00166
Sandwell Metropolitan Borough Council,http://www.sandwell.gov.uk/info/200202/performance_and_spending/3233/government_procurement_cards,14-Aug-19,Adult Social Care Health and Wellbeing - Total,AMZNMktplace,Total Adult Social Care,30.03,Materials & Consumables,1920Aug_PC00167
Sandwell Metropolitan Borough Council,http://www.sandwell.gov.uk/info/200202/performance_and_spending/3233/government_procurement_cards,14-Aug-19,Resources (Inc SIU),SAINSBURYS SACAT0558,Assistant Chief Executive (Excl SIU),4.3,Catering Provisions,1920Aug_PC00168
Sandwell Metropolitan Borough Council,http://www.sandwell.gov.uk/info/200202/performance_and_spending/3233/government_procurement_cards,14-Aug-19,Resources (Inc SIU),Trainline,Assistant Chief Executive (Excl SIU),61.56,Public Transport,1920Aug_PC00169
Sandwell Metropolitan Borough Council,http://www.sandwell.gov.uk/info/200202/performance_and_spending/3233/government_procurement_cards,14-Aug-19,Housing & Communities,CPC NATIONWIDE LTD,Neighbourhoods,140,Ind. Emp Exp-Staff Dev&Training,1920Aug_PC00170
Sandwell Metropolitan Borough Council,http://www.sandwell.gov.uk/info/200202/performance_and_spending/3233/government_procurement_cards,14-Aug-19,Resources (Inc SIU),AMZNMktplace,Assistant Chief Executive (Excl SIU),551.4,ICT,1920Aug_PC00171
Sandwell Metropolitan Borough Council,http://www.sandwell.gov.uk/info/200202/performance_and_spending/3233/government_procurement_cards,14-Aug-19,Housing & Communities,DVSA,Neighbourhoods,1025,Licences&Test Fees,1920Aug_PC00172
Sandwell Metropolitan Borough Council,http://www.sandwell.gov.uk/info/200202/performance_and_spending/3233/government_procurement_cards,14-Aug-19,Resources (Inc SIU),AMZNMKTPLACE AMAZON.CO,Assistant Chief Executive (Excl SIU),24.95,ICT,1920Aug_PC00173
Sandwell Metropolitan Borough Council,http://www.sandwell.gov.uk/info/200202/performance_and_spending/3233/government_procurement_cards,14-Aug-19,Housing & Communities,ALDI 42 772,Neighbourhoods,8.02,Civic Events,1920Aug_PC00174
Sandwell Metropolitan Borough Council,http://www.sandwell.gov.uk/info/200202/performance_and_spending/3233/government_procurement_cards,15-Aug-19,Resources (Inc SIU),PREMIER INN,Assistant Chief Executive (Excl SIU),60,Conference Expenses,1920Aug_PC00175
Sandwell Metropolitan Borough Council,http://www.sandwell.gov.uk/info/200202/performance_and_spending/3233/government_procurement_cards,15-Aug-19,Total Housing Revenue Account,OFFICE DEPOT UK,Total Housing Revenue Account,85.17,Printing Stationery&Gen Office,1920Aug_PC00176
Sandwell Metropolitan Borough Council,http://www.sandwell.gov.uk/info/200202/performance_and_spending/3233/government_procurement_cards,15-Aug-19,Housing & Communities,AMZNMKTPLACE AMAZON.CO,Neighbourhoods,15.4,Equipment & Furniture,1920Aug_PC00177
Sandwell Metropolitan Borough Council,http://www.sandwell.gov.uk/info/200202/performance_and_spending/3233/government_procurement_cards,15-Aug-19,Childrens Services,ASDA STORES LTD 5865,Childrens Services,3.17,Materials & Consumables,1920Aug_PC00178
Sandwell Metropolitan Borough Council,http://www.sandwell.gov.uk/info/200202/performance_and_spending/3233/government_procurement_cards,15-Aug-19,Housing & Communities,AMZNMktplace,Neighbourhoods,18.22,Materials & Consumables,1920Aug_PC00179
Sandwell Metropolitan Borough Council,http://www.sandwell.gov.uk/info/200202/performance_and_spending/3233/government_procurement_cards,15-Aug-19,Total Housing Revenue Account,STAFFORDSHIRE BLDS SUP,Total Housing Revenue Account,29.7,Materials & Consumables,1920Aug_PC00180
Sandwell Metropolitan Borough Council,http://www.sandwell.gov.uk/info/200202/performance_and_spending/3233/government_procurement_cards,15-Aug-19,Regeneration & Growth,AMZNMKTPLACE AMAZON.CO,Regeneration And The Economy,3.32,Printing Stationery&Gen Office,1920Aug_PC00181
Sandwell Metropolitan Borough Council,http://www.sandwell.gov.uk/info/200202/performance_and_spending/3233/government_procurement_cards,15-Aug-19,Resources (Inc SIU),AMZNMktplace,Assistant Chief Executive (Excl SIU),5.49,Printing Stationery&Gen Office,1920Aug_PC00182
Sandwell Metropolitan Borough Council,http://www.sandwell.gov.uk/info/200202/performance_and_spending/3233/government_procurement_cards,15-Aug-19,Resources (Inc SIU),Amazon.co.uk MH8OE79I4,Assistant Chief Executive (Excl SIU),20.97,Printing Stationery&Gen Office,1920Aug_PC00183
Sandwell Metropolitan Borough Council,http://www.sandwell.gov.uk/info/200202/performance_and_spending/3233/government_procurement_cards,15-Aug-19,Housing & Communities,ARGOS BLACKHEATH,Neighbourhoods,16.66,Catering Equipment,1920Aug_PC00184
Sandwell Metropolitan Borough Council,http://www.sandwell.gov.uk/info/200202/performance_and_spending/3233/government_procurement_cards,15-Aug-19,Housing & Communities,AMZNMKTPLACE AMAZON.CO,Neighbourhoods,8.64,Materials & Consumables,1920Aug_PC00185
Sandwell Metropolitan Borough Council,http://www.sandwell.gov.uk/info/200202/performance_and_spending/3233/government_procurement_cards,15-Aug-19,Individual School Budgets With Inclusion,WWW.OFFICEFURNITUREONL,Individual School Budgets With Inclusion,-10.68,Equipment & Furniture,1920Aug_PC00186
Sandwell Metropolitan Borough Council,http://www.sandwell.gov.uk/info/200202/performance_and_spending/3233/government_procurement_cards,15-Aug-19,Childrens Services,ASDA STORES LTD 5865,Childrens Services,2.75,Materials & Consumables,1920Aug_PC00187
Sandwell Metropolitan Borough Council,http://www.sandwell.gov.uk/info/200202/performance_and_spending/3233/government_procurement_cards,15-Aug-19,Adult Social Care Health and Wellbeing - Total,OFFICE DEPOT UK,Public Health,209.81,Printing Stationery&Gen Office,1920Aug_PC00188
Sandwell Metropolitan Borough Council,http://www.sandwell.gov.uk/info/200202/performance_and_spending/3233/government_procurement_cards,15-Aug-19,Housing & Communities,OFFICE DEPOT UK,Neighbourhoods,27.94,Printing Stationery&Gen Office,1920Aug_PC00189
Sandwell Metropolitan Borough Council,http://www.sandwell.gov.uk/info/200202/performance_and_spending/3233/government_procurement_cards,15-Aug-19,Resources (Inc SIU),AMZNMktplace,Assistant Chief Executive (Excl SIU),2.26,Printing Stationery&Gen Office,1920Aug_PC00190
Sandwell Metropolitan Borough Council,http://www.sandwell.gov.uk/info/200202/performance_and_spending/3233/government_procurement_cards,15-Aug-19,Individual School Budgets With Inclusion,WWW.OFFICEFURNITUREONL,Individual School Budgets With Inclusion,427.2,Equipment & Furniture,1920Aug_PC00191
Sandwell Metropolitan Borough Council,http://www.sandwell.gov.uk/info/200202/performance_and_spending/3233/government_procurement_cards,15-Aug-19,Individual School Budgets With Inclusion,WWW.OFFICEFURNITUREONL,Individual School Budgets With Inclusion,462.14,Equipment & Furniture,1920Aug_PC00192
Sandwell Metropolitan Borough Council,http://www.sandwell.gov.uk/info/200202/performance_and_spending/3233/government_procurement_cards,15-Aug-19,Individual School Budgets With Inclusion,WWW.OFFICEFURNITUREONL,Individual School Budgets With Inclusion,119.34,Equipment & Furniture,1920Aug_PC00193
Sandwell Metropolitan Borough Council,http://www.sandwell.gov.uk/info/200202/performance_and_spending/3233/government_procurement_cards,15-Aug-19,Adult Social Care Health and Wellbeing - Total,Amazon.co.uk MH36U7UM4,Total Adult Social Care,67.81,Equipment & Furniture,1920Aug_PC00194
Sandwell Metropolitan Borough Council,http://www.sandwell.gov.uk/info/200202/performance_and_spending/3233/government_procurement_cards,15-Aug-19,Regeneration & Growth,Amazon.co.uk MH2I61UZ4,Regeneration And The Economy,18.22,Printing Stationery&Gen Office,1920Aug_PC00195
Sandwell Metropolitan Borough Council,http://www.sandwell.gov.uk/info/200202/performance_and_spending/3233/government_procurement_cards,15-Aug-19,Resources (Inc SIU),AMZNMktplace,Assistant Chief Executive (Excl SIU),14.99,Printing Stationery&Gen Office,1920Aug_PC00196
Sandwell Metropolitan Borough Council,http://www.sandwell.gov.uk/info/200202/performance_and_spending/3233/government_procurement_cards,15-Aug-19,Resources (Inc SIU),AMZNMktplace,Assistant Chief Executive (Excl SIU),10.98,Printing Stationery&Gen Office,1920Aug_PC00197
Sandwell Metropolitan Borough Council,http://www.sandwell.gov.uk/info/200202/performance_and_spending/3233/government_procurement_cards,15-Aug-19,Resources (Inc SIU),AMZNMktplace,Assistant Chief Executive (Excl SIU),14.99,Printing Stationery&Gen Office,1920Aug_PC00198
Sandwell Metropolitan Borough Council,http://www.sandwell.gov.uk/info/200202/performance_and_spending/3233/government_procurement_cards,16-Aug-19,Regeneration & Growth,AMZNMKTPLACE AMAZON.CO,Regeneration And The Economy,4.77,Printing Stationery&Gen Office,1920Aug_PC00199
Sandwell Metropolitan Borough Council,http://www.sandwell.gov.uk/info/200202/performance_and_spending/3233/government_procurement_cards,16-Aug-19,Resources (Inc SIU),AMZ Amazon.co.uk,Assistant Chief Executive (Excl SIU),-324.97,ICT,1920Aug_PC00200
Sandwell Metropolitan Borough Council,http://www.sandwell.gov.uk/info/200202/performance_and_spending/3233/government_procurement_cards,16-Aug-19,Regeneration & Growth,AMZ changwei01,Regeneration And The Economy,-8.31,Equipment & Furniture,1920Aug_PC00201
Sandwell Metropolitan Borough Council,http://www.sandwell.gov.uk/info/200202/performance_and_spending/3233/government_procurement_cards,16-Aug-19,Adult Social Care Health and Wellbeing - Total,SAINSBURYS TO YOU 0558,Public Health,11.67,Catering Provisions,1920Aug_PC00202
Sandwell Metropolitan Borough Council,http://www.sandwell.gov.uk/info/200202/performance_and_spending/3233/government_procurement_cards,16-Aug-19,Regeneration & Growth,WWW.CSKILLS.ORG,Regeneration And The Economy,30,Ind. Emp Exp-Staff Dev&Training,1920Aug_PC00203
Sandwell Metropolitan Borough Council,http://www.sandwell.gov.uk/info/200202/performance_and_spending/3233/government_procurement_cards,16-Aug-19,Childrens Services,ASDA STORES LTD 5865,Childrens Services,7.33,Materials & Consumables,1920Aug_PC00204
Sandwell Metropolitan Borough Council,http://www.sandwell.gov.uk/info/200202/performance_and_spending/3233/government_procurement_cards,16-Aug-19,Childrens Services,AMZNMktplace,Childrens Services,21.45,Equipment & Furniture,1920Aug_PC00205
Sandwell Metropolitan Borough Council,http://www.sandwell.gov.uk/info/200202/performance_and_spending/3233/government_procurement_cards,16-Aug-19,Regeneration & Growth,AMZNMKTPLACE AMAZON.CO,Regeneration And The Economy,3.23,Printing Stationery&Gen Office,1920Aug_PC00206
Sandwell Metropolitan Borough Council,http://www.sandwell.gov.uk/info/200202/performance_and_spending/3233/government_procurement_cards,16-Aug-19,Resources (Inc SIU),Q PARK BIRMINGHAM BRIN,Assistant Chief Executive (Excl SIU),7.5,Car Parking,1920Aug_PC00207
Sandwell Metropolitan Borough Council,http://www.sandwell.gov.uk/info/200202/performance_and_spending/3233/government_procurement_cards,16-Aug-19,Housing & Communities,TOOLSTATION LTD,Neighbourhoods,11.35,Equipment & Furniture,1920Aug_PC00208
Sandwell Metropolitan Borough Council,http://www.sandwell.gov.uk/info/200202/performance_and_spending/3233/government_procurement_cards,16-Aug-19,Adult Social Care Health and Wellbeing - Total,AMZNMktplace,Total Adult Social Care,9.95,Equipment & Furniture,1920Aug_PC00209
Sandwell Metropolitan Borough Council,http://www.sandwell.gov.uk/info/200202/performance_and_spending/3233/government_procurement_cards,16-Aug-19,Childrens Services,Spotify UK,Childrens Services,8.32,Subscriptions,1920Aug_PC00210
Sandwell Metropolitan Borough Council,http://www.sandwell.gov.uk/info/200202/performance_and_spending/3233/government_procurement_cards,16-Aug-19,Housing & Communities,OFFICE DEPOT UK,Neighbourhoods,-17.72,Printing Stationery&Gen Office,1920Aug_PC00211
Sandwell Metropolitan Borough Council,http://www.sandwell.gov.uk/info/200202/performance_and_spending/3233/government_procurement_cards,16-Aug-19,Housing & Communities,SAINSBURYS SACAT (2340,Neighbourhoods,18.6,Civic Events,1920Aug_PC00212
Sandwell Metropolitan Borough Council,http://www.sandwell.gov.uk/info/200202/performance_and_spending/3233/government_procurement_cards,19-Aug-19,Housing & Communities,AMZNMKTPLACE AMAZON.CO,Neighbourhoods,19.97,Equipment & Furniture,1920Aug_PC00213
Sandwell Metropolitan Borough Council,http://www.sandwell.gov.uk/info/200202/performance_and_spending/3233/government_procurement_cards,19-Aug-19,Total Housing Revenue Account,AMZNMKTPLACE AMAZON.CO,Total Housing Revenue Account,119.47,Printing Stationery&Gen Office,1920Aug_PC00214
Sandwell Metropolitan Borough Council,http://www.sandwell.gov.uk/info/200202/performance_and_spending/3233/government_procurement_cards,19-Aug-19,Regeneration & Growth,AMZNMKTPLACE AMAZON.CO,Regeneration And The Economy,6.85,Printing Stationery&Gen Office,1920Aug_PC00215
Sandwell Metropolitan Borough Council,http://www.sandwell.gov.uk/info/200202/performance_and_spending/3233/government_procurement_cards,19-Aug-19,Housing & Communities,EB  WORKSHOP PRACTICAL,Neighbourhoods,224.95,Conference Expenses,1920Aug_PC00216
Sandwell Metropolitan Borough Council,http://www.sandwell.gov.uk/info/200202/performance_and_spending/3233/government_procurement_cards,19-Aug-19,Housing & Communities,AMZNMktplace,Neighbourhoods,212.42,Equipment & Furniture,1920Aug_PC00217
Sandwell Metropolitan Borough Council,http://www.sandwell.gov.uk/info/200202/performance_and_spending/3233/government_procurement_cards,19-Aug-19,Housing & Communities,AMZNMKTPLACE AMAZON.CO,Neighbourhoods,147.9,Equipment & Furniture,1920Aug_PC00218
Sandwell Metropolitan Borough Council,http://www.sandwell.gov.uk/info/200202/performance_and_spending/3233/government_procurement_cards,19-Aug-19,Resources (Inc SIU),OFFICE DEPOT UK,Assistant Chief Executive (Excl SIU),17.7,Printing Stationery&Gen Office,1920Aug_PC00219
Sandwell Metropolitan Borough Council,http://www.sandwell.gov.uk/info/200202/performance_and_spending/3233/government_procurement_cards,19-Aug-19,Individual School Budgets With Inclusion,OFFICE DEPOT UK,Individual School Budgets With Inclusion,85.3,Printing Stationery&Gen Office,1920Aug_PC00220
Sandwell Metropolitan Borough Council,http://www.sandwell.gov.uk/info/200202/performance_and_spending/3233/government_procurement_cards,19-Aug-19,Adult Social Care Health and Wellbeing - Total,OFFICE DEPOT UK,Total Adult Social Care,33.2,Printing Stationery&Gen Office,1920Aug_PC00221
Sandwell Metropolitan Borough Council,http://www.sandwell.gov.uk/info/200202/performance_and_spending/3233/government_procurement_cards,19-Aug-19,Housing & Communities,TESCO STORES 2335,Neighbourhoods,5,Materials & Consumables,1920Aug_PC00222
Sandwell Metropolitan Borough Council,http://www.sandwell.gov.uk/info/200202/performance_and_spending/3233/government_procurement_cards,19-Aug-19,Resources (Inc SIU),AMZNMktplace,Assistant Chief Executive (Excl SIU),31.6,ICT,1920Aug_PC00223
Sandwell Metropolitan Borough Council,http://www.sandwell.gov.uk/info/200202/performance_and_spending/3233/government_procurement_cards,19-Aug-19,Resources (Inc SIU),Amazon.co.uk MH1O53WR4,Assistant Chief Executive (Excl SIU),51.7,Printing Stationery&Gen Office,1920Aug_PC00224
Sandwell Metropolitan Borough Council,http://www.sandwell.gov.uk/info/200202/performance_and_spending/3233/government_procurement_cards,19-Aug-19,Resources (Inc SIU),AMZNMKTPLACE AMAZON.CO,Assistant Chief Executive (Excl SIU),17.25,Printing Stationery&Gen Office,1920Aug_PC00225
Sandwell Metropolitan Borough Council,http://www.sandwell.gov.uk/info/200202/performance_and_spending/3233/government_procurement_cards,20-Aug-19,Housing & Communities,NISA LOCAL,Neighbourhoods,7.1,Printing Stationery&Gen Office,1920Aug_PC00226
Sandwell Metropolitan Borough Council,http://www.sandwell.gov.uk/info/200202/performance_and_spending/3233/government_procurement_cards,20-Aug-19,Housing & Communities,WWW.BUNZLCLEANINGSUPPL,Neighbourhoods,246.58,Grounds Maint&Improvements,1920Aug_PC00227
Sandwell Metropolitan Borough Council,http://www.sandwell.gov.uk/info/200202/performance_and_spending/3233/government_procurement_cards,20-Aug-19,Resources (Inc SIU),AMZNMktplace,Assistant Chief Executive (Excl SIU),20.03,Equipment & Furniture,1920Aug_PC00228
Sandwell Metropolitan Borough Council,http://www.sandwell.gov.uk/info/200202/performance_and_spending/3233/government_procurement_cards,20-Aug-19,Housing & Communities,WAYFAIR #2736137648,Neighbourhoods,44.16,Equipment & Furniture,1920Aug_PC00229
Sandwell Metropolitan Borough Council,http://www.sandwell.gov.uk/info/200202/performance_and_spending/3233/government_procurement_cards,20-Aug-19,Adult Social Care Health and Wellbeing - Total,WICKES HANDSWORTH,Total Adult Social Care,15.17,Materials & Consumables,1920Aug_PC00230
Sandwell Metropolitan Borough Council,http://www.sandwell.gov.uk/info/200202/performance_and_spending/3233/government_procurement_cards,20-Aug-19,Total Housing Revenue Account,CAPITA GAS,Total Housing Revenue Account,77.94,Professional Services External,1920Aug_PC00231
Sandwell Metropolitan Borough Council,http://www.sandwell.gov.uk/info/200202/performance_and_spending/3233/government_procurement_cards,20-Aug-19,Resources (Inc SIU),AMZNMKTPLACE AMAZON.CO,Assistant Chief Executive (Excl SIU),45.83,Printing Stationery&Gen Office,1920Aug_PC00232
Sandwell Metropolitan Borough Council,http://www.sandwell.gov.uk/info/200202/performance_and_spending/3233/government_procurement_cards,20-Aug-19,Childrens Services,CENTRAL ENG COOP,Childrens Services,13.25,Rent Allowances Local Scheme,1920Aug_PC00233
Sandwell Metropolitan Borough Council,http://www.sandwell.gov.uk/info/200202/performance_and_spending/3233/government_procurement_cards,20-Aug-19,Total Housing Revenue Account,RICS COM UAE CYBS,Total Housing Revenue Account,600,Materials & Consumables,1920Aug_PC00234
Sandwell Metropolitan Borough Council,http://www.sandwell.gov.uk/info/200202/performance_and_spending/3233/government_procurement_cards,20-Aug-19,Total Housing Revenue Account,WESTERN POWER DISTRIBU,Total Housing Revenue Account,1429.26,Materials & Consumables,1920Aug_PC00235
Sandwell Metropolitan Borough Council,http://www.sandwell.gov.uk/info/200202/performance_and_spending/3233/government_procurement_cards,20-Aug-19,Resources (Inc SIU),OFFICE DEPOT UK,Assistant Chief Executive (Excl SIU),34.94,Printing Stationery&Gen Office,1920Aug_PC00236
Sandwell Metropolitan Borough Council,http://www.sandwell.gov.uk/info/200202/performance_and_spending/3233/government_procurement_cards,20-Aug-19,Resources (Inc SIU),AMZNMKTPLACE AMAZON.CO,Assistant Chief Executive (Excl SIU),54.82,ICT,1920Aug_PC00237
Sandwell Metropolitan Borough Council,http://www.sandwell.gov.uk/info/200202/performance_and_spending/3233/government_procurement_cards,20-Aug-19,Childrens Services,WORLD OF BOOKS,Childrens Services,4.49,Materials & Consumables,1920Aug_PC00238
Sandwell Metropolitan Borough Council,http://www.sandwell.gov.uk/info/200202/performance_and_spending/3233/government_procurement_cards,20-Aug-19,Resources (Inc SIU),POST OFFICE COUNTER,Assistant Chief Executive (Excl SIU),6.5,Printing Stationery&Gen Office,1920Aug_PC00239
Sandwell Metropolitan Borough Council,http://www.sandwell.gov.uk/info/200202/performance_and_spending/3233/government_procurement_cards,20-Aug-19,Resources (Inc SIU),AMZNMktplace,Assistant Chief Executive (Excl SIU),43.68,ICT,1920Aug_PC00240
Sandwell Metropolitan Borough Council,http://www.sandwell.gov.uk/info/200202/performance_and_spending/3233/government_procurement_cards,20-Aug-19,Adult Social Care Health and Wellbeing - Total,Amazon Prime MH7NR0YH4,Total Adult Social Care,6.66,Supp People Payments - Payments to Providers,1920Aug_PC00241
Sandwell Metropolitan Borough Council,http://www.sandwell.gov.uk/info/200202/performance_and_spending/3233/government_procurement_cards,20-Aug-19,Resources (Inc SIU),AMZNMktplace,Assistant Chief Executive (Excl SIU),59.96,ICT,1920Aug_PC00242
Sandwell Metropolitan Borough Council,http://www.sandwell.gov.uk/info/200202/performance_and_spending/3233/government_procurement_cards,21-Aug-19,Housing & Communities,SAFETYSUPPL,Neighbourhoods,93.15,Materials & Consumables,1920Aug_PC00243
Sandwell Metropolitan Borough Council,http://www.sandwell.gov.uk/info/200202/performance_and_spending/3233/government_procurement_cards,21-Aug-19,Childrens Services,AMZNMktplace,Childrens Services,29.97,Protective Clothing&Uniforms,1920Aug_PC00244
Sandwell Metropolitan Borough Council,http://www.sandwell.gov.uk/info/200202/performance_and_spending/3233/government_procurement_cards,21-Aug-19,Housing & Communities,BESTWAY WHOLESALE,Neighbourhoods,32.5,Catering Provisions,1920Aug_PC00245
Sandwell Metropolitan Borough Council,http://www.sandwell.gov.uk/info/200202/performance_and_spending/3233/government_procurement_cards,21-Aug-19,Childrens Services,BEEBYS BUBBLES,Childrens Services,20.83,Laundry,1920Aug_PC00246
Sandwell Metropolitan Borough Council,http://www.sandwell.gov.uk/info/200202/performance_and_spending/3233/government_procurement_cards,21-Aug-19,Resources (Inc SIU),AMZNMktplace,Assistant Chief Executive (Excl SIU),9.21,ICT,1920Aug_PC00247
Sandwell Metropolitan Borough Council,http://www.sandwell.gov.uk/info/200202/performance_and_spending/3233/government_procurement_cards,21-Aug-19,Resources (Inc SIU),AMZNMktplace,Assistant Chief Executive (Excl SIU),252.65,ICT,1920Aug_PC00248
Sandwell Metropolitan Borough Council,http://www.sandwell.gov.uk/info/200202/performance_and_spending/3233/government_procurement_cards,21-Aug-19,Individual School Budgets With Inclusion,AMZNMKTPLACE AMAZON.CO,Individual School Budgets With Inclusion,34.41,Printing Stationery&Gen Office,1920Aug_PC00249
Sandwell Metropolitan Borough Council,http://www.sandwell.gov.uk/info/200202/performance_and_spending/3233/government_procurement_cards,22-Aug-19,Total Housing Revenue Account,MRH OSPREY FSTN,Total Housing Revenue Account,12.5,Fuel,1920Aug_PC00250
Sandwell Metropolitan Borough Council,http://www.sandwell.gov.uk/info/200202/performance_and_spending/3233/government_procurement_cards,22-Aug-19,Individual School Budgets With Inclusion,AMZNMKTPLACE AMAZON.CO,Individual School Budgets With Inclusion,11.62,ICT,1920Aug_PC00251
Sandwell Metropolitan Borough Council,http://www.sandwell.gov.uk/info/200202/performance_and_spending/3233/government_procurement_cards,22-Aug-19,Individual School Budgets With Inclusion,AMZNMKTPLACE AMAZON.CO,Individual School Budgets With Inclusion,23.28,ICT,1920Aug_PC00252
Sandwell Metropolitan Borough Council,http://www.sandwell.gov.uk/info/200202/performance_and_spending/3233/government_procurement_cards,22-Aug-19,Regeneration & Growth,WWW.CSKILLS.ORG,Regeneration And The Economy,30,Ind. Emp Exp-Staff Dev&Training,1920Aug_PC00253
Sandwell Metropolitan Borough Council,http://www.sandwell.gov.uk/info/200202/performance_and_spending/3233/government_procurement_cards,22-Aug-19,Regeneration & Growth,WWW.CSKILLS.ORG,Regeneration And The Economy,30,Ind. Emp Exp-Staff Dev&Training,1920Aug_PC00254
Sandwell Metropolitan Borough Council,http://www.sandwell.gov.uk/info/200202/performance_and_spending/3233/government_procurement_cards,22-Aug-19,Adult Social Care Health and Wellbeing - Total,EB  CO-PRODUCTION HOLD,Total Adult Social Care,125,Conference Expenses,1920Aug_PC00255
Sandwell Metropolitan Borough Council,http://www.sandwell.gov.uk/info/200202/performance_and_spending/3233/government_procurement_cards,22-Aug-19,Total Housing Revenue Account,HSO MULTIPICK DIRECT,Total Housing Revenue Account,32.96,Materials & Consumables,1920Aug_PC00256
Sandwell Metropolitan Borough Council,http://www.sandwell.gov.uk/info/200202/performance_and_spending/3233/government_procurement_cards,22-Aug-19,Total Housing Revenue Account,POST OFFICE COUNTER,Total Housing Revenue Account,350,"Postages, Carriage & Courier Services",1920Aug_PC00257
Sandwell Metropolitan Borough Council,http://www.sandwell.gov.uk/info/200202/performance_and_spending/3233/government_procurement_cards,22-Aug-19,Housing & Communities,OFFICE DEPOT UK,Neighbourhoods,31.29,Materials & Consumables,1920Aug_PC00258
Sandwell Metropolitan Borough Council,http://www.sandwell.gov.uk/info/200202/performance_and_spending/3233/government_procurement_cards,22-Aug-19,Adult Social Care Health and Wellbeing - Total,HEADSETS4BUSINESS,Total Adult Social Care,470.4,ICT,1920Aug_PC00259
Sandwell Metropolitan Borough Council,http://www.sandwell.gov.uk/info/200202/performance_and_spending/3233/government_procurement_cards,22-Aug-19,Resources (Inc SIU),AMZNMktplace,Assistant Chief Executive (Excl SIU),36.84,ICT,1920Aug_PC00260
Sandwell Metropolitan Borough Council,http://www.sandwell.gov.uk/info/200202/performance_and_spending/3233/government_procurement_cards,22-Aug-19,Resources (Inc SIU),OFFICE DEPOT UK,Assistant Chief Executive (Excl SIU),79.57,Printing Stationery&Gen Office,1920Aug_PC00261
Sandwell Metropolitan Borough Council,http://www.sandwell.gov.uk/info/200202/performance_and_spending/3233/government_procurement_cards,22-Aug-19,Adult Social Care Health and Wellbeing - Total,OFFICE DEPOT UK,Total Adult Social Care,96.5,Printing Stationery&Gen Office,1920Aug_PC00262
Sandwell Metropolitan Borough Council,http://www.sandwell.gov.uk/info/200202/performance_and_spending/3233/government_procurement_cards,22-Aug-19,Resources (Inc SIU),OFFICE DEPOT UK,Assistant Chief Executive (Excl SIU),296.76,Printing Stationery&Gen Office,1920Aug_PC00263
Sandwell Metropolitan Borough Council,http://www.sandwell.gov.uk/info/200202/performance_and_spending/3233/government_procurement_cards,22-Aug-19,Total Housing Revenue Account,OFFICE DEPOT UK,Total Housing Revenue Account,53.37,Printing Stationery&Gen Office,1920Aug_PC00264
Sandwell Metropolitan Borough Council,http://www.sandwell.gov.uk/info/200202/performance_and_spending/3233/government_procurement_cards,22-Aug-19,Total Housing Revenue Account,POST OFFICE COUNTER,Total Housing Revenue Account,42.05,"Postages, Carriage & Courier Services",1920Aug_PC00265
Sandwell Metropolitan Borough Council,http://www.sandwell.gov.uk/info/200202/performance_and_spending/3233/government_procurement_cards,22-Aug-19,Resources (Inc SIU),OFFICE DEPOT UK,Assistant Chief Executive (Excl SIU),32.04,Printing Stationery&Gen Office,1920Aug_PC00266
Sandwell Metropolitan Borough Council,http://www.sandwell.gov.uk/info/200202/performance_and_spending/3233/government_procurement_cards,22-Aug-19,Housing & Communities,OFFICE DEPOT UK,Neighbourhoods,57.66,Printing Stationery&Gen Office,1920Aug_PC00267
Sandwell Metropolitan Borough Council,http://www.sandwell.gov.uk/info/200202/performance_and_spending/3233/government_procurement_cards,22-Aug-19,Housing & Communities,SANDWELL M.B.C.,Neighbourhoods,63,Licences,1920Aug_PC00268
